Local authority department which incurred the expenditure,Service Division,Cost Centre,Summary of the Purpose of Expenditure,Expense Type,Expense Code,Detailed Expense Type,Date of Transaction,Transaction Number,Beneficiary,Merchant Category Number,Merchant Category,Gross Amount,VAT,Net Amount
"Regeneration, Economy and Growth",Business Durham CL0850,030689,Inward Investment and Aftercare,Supplies and Services,304999,Equipment and Materials,01-Sep-2020,000007303225886,LinkedIn 5864714634,5968,Misc equipment tools and materials,93.74,0.00,93.74
Children and Young Peoples Services,Head of Education and Skills,071801,Selby Cottage Childcare Centre,Supplies and Services,304403,Equipment and Materials,01-Sep-2020,000007303225986,AMZNMktplace,5999,Other consumables,127.96,21.34,106.62
Children and Young Peoples Services,Head of Education and Skills,071801,Selby Cottage Childcare Centre,Supplies and Services,304403,Equipment and Materials,01-Sep-2020,000007303225996,AMZNMKTPLACE AMAZON.CO,5999,Other consumables,12.49,2.08,10.41
Adult and Health Services,Head of Adults,056601,Substance Misuse,Supplies and Services,338048,Services,01-Sep-2020,000007303226096,HMCOURTS-SERVICE.G,9222,Court costs 338048,75.00,0.00,75.00
"Regeneration, Economy and Growth",Development and Housing,031599,Prevention Initiatives,Supplies and Services,352001,Conference Expenses,01-Sep-2020,000007303226142,WWW.HOTEL52.CO.UK,7011,Conferencesseminars fees etc,250.00,0.00,250.00
"Regeneration, Economy and Growth",Development and Housing,031599,Prevention Initiatives,Supplies and Services,352001,Conference Expenses,01-Sep-2020,000007303226148,WWW.HOTEL52.CO.UK,7011,Conferencesseminars fees etc,253.00,0.00,253.00
"Regeneration, Economy and Growth",Development and Housing,031599,Prevention Initiatives,Supplies and Services,352001,Conference Expenses,01-Sep-2020,000007303226156,BUDGET H EXPRESS HOTEL,7011,Conferencesseminars fees etc,267.00,0.00,267.00
"Regeneration, Economy and Growth",Development and Housing,031599,Prevention Initiatives,Supplies and Services,352001,Conference Expenses,01-Sep-2020,000007303226160,BUDGET H EXPRESS HOTEL,7011,Conferencesseminars fees etc,267.00,0.00,267.00
Children and Young Peoples Services,Head of Education and Skills,075021,Youth Employment Initiative,Supplies and Services,364301,Grants to Voluntary Organisations,01-Sep-2020,000007303226242,WWW.DAVINESONLINE.COM,7230,Hardship,196.59,32.77,163.82
Children and Young Peoples Services,Head of Education and Skills,075021,Youth Employment Initiative,Supplies and Services,364301,Grants to Voluntary Organisations,01-Sep-2020,000007303226252,GO NORTH EAST LIMITED,4131,Hardship,17.00,0.00,17.00
Children and Young Peoples Services,Head of Education and Skills,075021,Youth Employment Initiative,Supplies and Services,364301,Grants to Voluntary Organisations,01-Sep-2020,000007303226258,GO NORTH EAST LIMITED,4131,Hardship,4.50,0.00,4.50
Children and Young Peoples Services,Head of Education and Skills,075021,Youth Employment Initiative,Supplies and Services,364301,Grants to Voluntary Organisations,01-Sep-2020,000007303226268,HARDEDGE LIMITED 1,5661,Hardship,44.40,7.40,37.00
Children and Young Peoples Services,Head of Education and Skills,075021,Youth Employment Initiative,Supplies and Services,364301,Grants to Voluntary Organisations,01-Sep-2020,000007303226268 - 1,HARDEDGE LIMITED 1,5661,Hardship,8.96,,8.96
Children and Young Peoples Services,Head of Education and Skills,075021,Youth Employment Initiative,Supplies and Services,364301,Grants to Voluntary Organisations,01-Sep-2020,000007303226272,WWW.LABEEBY.CO.UK,5691,Hardship,70.59,0.00,70.59
Children and Young Peoples Services,Head of Education and Skills,075021,Youth Employment Initiative,Supplies and Services,364301,Grants to Voluntary Organisations,01-Sep-2020,000007303226278,WWW.JOHNLEWIS.COM,5311,Hardship,229.95,38.33,191.62
Adult and Health Services,Head of Adults,055302,Durham Pathways,Supplies and Services,384999,Miscellaneous Expenses,01-Sep-2020,000007303226330,Amazon.co.uk 1W2QL5ZO5,5969,Other expenses,7.18,1.20,5.98
Adult and Health Services,Head of Adults,055302,Durham Pathways,Supplies and Services,304403,Equipment and Materials,01-Sep-2020,000007303226336,AMZNMktplace,5999,Other consumables,11.98,2.00,9.98
Adult and Health Services,Head of Adults,055302,Durham Pathways,Supplies and Services,304403,Equipment and Materials,01-Sep-2020,000007303226340,AMZNMktplace,5999,Other consumables,14.58,2.44,12.14
Children and Young Peoples Services,Head of Childrens Social Care,085332,Middlestone Moor CU,Supplies and Services,324117,Provisions E324,01-Sep-2020,000007303226444,TESCO STORES 2371,5411,Catering costs - provisions,49.91,0.00,49.91
"Regeneration, Economy and Growth",Culture Sport and Tourism,054233,Bishop Auckland Town Hall Library,Supplies and Services,324117,Provisions E324,01-Sep-2020,000007303226714,TESCO STORES 2971,5411,Catering costs - provisions,19.64,0.00,19.64
Children and Young Peoples Services,Head of Childrens Social Care,085332,Middlestone Moor CU,Supplies and Services,324117,Provisions E324,01-Sep-2020,000007303226726,LIDL GB SPENNYMOOR,5411,Catering costs - provisions,3.67,0.00,3.67
Children and Young Peoples Services,Head of Childrens Social Care,085332,Middlestone Moor CU,Supplies and Services,384871,Miscellaneous Expenses,01-Sep-2020,000007303226730,IZ Roxy Beauty Ltd.,7230,Training-other activities,12.00,0.00,12.00
"Regeneration, Economy and Growth",Development and Housing,031576,B& B - Temp Accom,Supplies and Services,364320,Grants to Voluntary Organisations,01-Sep-2020,000007303226752,WWW.HOTEL52.CO.UK,7011,Accommodation assistance,136.00,0.00,136.00
Children and Young Peoples Services,Head of Childrens Social Care,085342,16 Hickstead Rise (previously 9 Cedar Ave),Supplies and Services,324117,Provisions E324,01-Sep-2020,000007303226866,TESCO STORES 2916,5411,Catering costs - provisions,12.50,0.00,12.50
Children and Young Peoples Services,Head of Education and Skills,071732,Dean Bank Childcare,Supplies and Services,324117,Provisions E324,01-Sep-2020,000007303226888,SAINSBURYS SACAT (2303,5411,Catering costs - provisions,29.70,0.00,29.70
Children and Young Peoples Services,Head of Education and Skills,071732,Dean Bank Childcare,Supplies and Services,324117,Provisions E324,01-Sep-2020,000007303226896,CO-OP GROUP 010503,5411,Catering costs - provisions,6.40,0.00,6.40
Children and Young Peoples Services,Head of Childrens Social Care,085334,West Rainton Satelite Home,Supplies and Services,304403,Equipment and Materials,01-Sep-2020,000007303226954,AMZNMktplace,5999,Other consumables,17.10,0.00,17.10
Children and Young Peoples Services,Head of Childrens Social Care,085334,West Rainton Satelite Home,Supplies and Services,324117,Provisions E324,01-Sep-2020,000007303226964,TESCO STORES 2371,5411,Catering costs - provisions,21.00,0.00,21.00
Children and Young Peoples Services,Head of Childrens Social Care,085334,West Rainton Satelite Home,Supplies and Services,304259,Equipment and Materials,01-Sep-2020,000007303226972,SPORTSDIRECT 264,5941,Equipment-purchase and rental,27.00,0.00,27.00
Neighbourhoods and Climate Change,Environmental Services,010314,Nei.Prot - Bereavement Services,Supplies and Services,304259,Equipment and Materials,01-Sep-2020,000007303226984,Durham County CNCL,9399,Equipment-purchase and rental,11.00,0.00,11.00
Children and Young Peoples Services,Head of Childrens Social Care,085341,High Etherley Satelite Home,Supplies and Services,328041,Clothing uniforms and laundry E328,01-Sep-2020,000007303227000,TK MAXX,5331,Clothing uniforms and laundry,7.99,0.00,7.99
Children and Young Peoples Services,Head of Childrens Social Care,085341,High Etherley Satelite Home,Supplies and Services,304403,Equipment and Materials,01-Sep-2020,000007303227006,IZ GAMERS LOUNGE,5999,Other consumables,28.00,0.00,28.00
Children and Young Peoples Services,Head of Childrens Social Care,085341,High Etherley Satelite Home,Supplies and Services,348037,Subsistence E348,01-Sep-2020,000007303227010,BURGER KING,5812,Subsistence,21.36,0.00,21.36
"Regeneration, Economy and Growth",Development and Housing,030771,Durham Advance Flexible Fund,Transport,235057,Public Transport,01-Sep-2020,000007303227044,ARRIVA UK BUS,4131,Staff travelling,7.50,0.00,7.50
"Regeneration, Economy and Growth",Development and Housing,030776,LINKCD Flexible Fund,Transport,235057,Public Transport,01-Sep-2020,000007303227196,GO NORTH EAST LIMITED,4131,Staff travelling,25.00,0.00,25.00
Children and Young Peoples Services,Head of Early Help Inclusion & Vulnerable Children.,071445,Chester le Street One Point Hub,Transport,235057,Public Transport,01-Sep-2020,000007303227210,SUNDERLAND CC,7523,Staff travelling,11.00,0.00,11.00
Children and Young Peoples Services,Head of Early Help Inclusion & Vulnerable Children.,088100,Durham West & CLS 0-19 Targeted Family Support,Supplies and Services,328041,Clothing uniforms and laundry E328,01-Sep-2020,000007303227238,WWW.THEWORKS.CO.UK,5310,Clothing uniforms and laundry,150.00,0.00,150.00
Neighbourhoods and Climate Change,Environmental Services,011060,C&G - Hardwick Park Catering,Supplies and Services,324117,Provisions E324,01-Sep-2020,000007303227306,JR HOLLAND FOODSERVICE,5499,Catering costs - provisions,44.51,0.00,44.51
Resources BK0010,People & Talent Management,010984,Training and Development,Supplies and Services,352001,Conference Expenses,01-Sep-2020,000007303227346,ELIA INTERNATIONAL LTD,7392,Conferencesseminars fees etc,300.00,0.00,300.00
"Regeneration, Economy and Growth",Development and Housing,031500,Housing Solutions - Core Team,Supplies and Services,352001,Conference Expenses,01-Sep-2020,000007303227408,AYCLIFFE BIZ,7011,Conferencesseminars fees etc,114.00,0.00,114.00
"Regeneration, Economy and Growth",Development and Housing,031500,Housing Solutions - Core Team,Supplies and Services,352001,Conference Expenses,01-Sep-2020,000007303227416,AYCLIFFE BIZ,7011,Conferencesseminars fees etc,114.00,0.00,114.00
"Regeneration, Economy and Growth",Development and Housing,031500,Housing Solutions - Core Team,Supplies and Services,348037,Subsistence E348,01-Sep-2020,000007303227420,HOTEL 52 STANLEY,5812,Subsistence,136.00,0.00,136.00
"Regeneration, Economy and Growth",Development and Housing,031500,Housing Solutions - Core Team,Supplies and Services,352001,Conference Expenses,01-Sep-2020,000007303227424,HI NEWCASTLE WASHI,7011,Conferencesseminars fees etc,195.00,0.00,195.00
Children and Young Peoples Services,Head of Childrens Social Care,085331,New Lea Childrens Home,Supplies and Services,348037,Subsistence E348,01-Sep-2020,000007303227432,THAIKHUN METRO CENTRE,5814,Subsistence,30.75,0.00,30.75
Children and Young Peoples Services,Head of Early Help Inclusion & Vulnerable Children.,088106,Ferryhill & N.Aycliffe 0-19 Targeted Family Support,Supplies and Services,364301,Grants to Voluntary Organisations,01-Sep-2020,000007303227560,AMZNMKTPLACE AMAZON.CO,5999,Hardship,152.90,25.49,127.41
Children and Young Peoples Services,Head of Childrens Social Care,085351,Framwellgate Moor CU,Supplies and Services,328041,Clothing uniforms and laundry E328,01-Sep-2020,000007303227624,PRICE AND BUCKLAND,5137,Clothing uniforms and laundry,32.95,0.00,32.95
Children and Young Peoples Services,Head of Childrens Social Care,085333,Coxhoe Satelite Home,Supplies and Services,324117,Provisions E324,01-Sep-2020,000007303227750,ASDA SUPERSTORE 4987,5411,Catering costs - provisions,186.53,0.00,186.53
Children and Young Peoples Services,Head of Childrens Social Care,085333,Coxhoe Satelite Home,Supplies and Services,348037,Subsistence E348,01-Sep-2020,000007303227752,MCDONALDS,5812,Subsistence,15.77,0.00,15.77
Neighbourhoods and Climate Change,Environmental Services,010367,C&G - South Grounds Maintenance,Supplies and Services,304221,Equipment and Materials,01-Sep-2020,000007303227952,SCREWFIX DIRECT,5211,Direct materials,12.99,0.00,12.99
Neighbourhoods and Climate Change,Environmental Services,031200,North Pennines Core,Supplies and Services,312009,Newspapers books and periodicals E312,01-Sep-2020,000007303227994,BLACKWELL S,5942,Newspapers books and periodicals,12.99,0.00,12.99
Children and Young Peoples Services,Head of Early Help Inclusion & Vulnerable Children.,088115,North Area - Teenage Parent Programme,Supplies and Services,384302,Miscellaneous Expenses,01-Sep-2020,000007303228118,AMZNMktplace,5999,Activity expenses,15.75,2.64,13.11
Children and Young Peoples Services,Head of Early Help Inclusion & Vulnerable Children.,085962,Aycliffe Secure - Durham,Transfer Payments,515140,Social Services Clients,01-Sep-2020,000007303228264,FOOTASYLUM PLC,5691,Clothing allowances,31.99,0.00,31.99
Children and Young Peoples Services,Head of Early Help Inclusion & Vulnerable Children.,085957,Secure Management,Supplies and Services,304245,Equipment and Materials,01-Sep-2020,000007303228276,WILKO.COM,5399,Materials,55.00,9.17,45.83
Children and Young Peoples Services,Head of Early Help Inclusion & Vulnerable Children.,085965,Barnard,Supplies and Services,384999,Miscellaneous Expenses,01-Sep-2020,000007303228286,AMZNMktplace,5999,Other expenses,8.99,0.00,8.99
Children and Young Peoples Services,Head of Early Help Inclusion & Vulnerable Children.,085954,Walworth,Transfer Payments,515140,Social Services Clients,01-Sep-2020,000007303228290,JD SPORTS INTERNET,5941,Clothing allowances,75.00,0.00,75.00
Children and Young Peoples Services,Head of Early Help Inclusion & Vulnerable Children.,085965,Barnard,Transfer Payments,515140,Social Services Clients,01-Sep-2020,000007303228296,JD SPORTS INTERNET,5941,Clothing allowances,80.00,0.00,80.00
"Regeneration, Economy and Growth",Culture Sport and Tourism,054235,Bishop Auckland Town Hall Cafe,Supplies and Services,324117,Provisions E324,01-Sep-2020,000007303228380,JR HOLLAND FOODSERVICE,5499,Catering costs - provisions,121.78,0.00,121.78
Adult and Health Services,Head of Adults,055301,Stanley Pathways,Supplies and Services,324117,Provisions E324,01-Sep-2020,000007303228468,WILKO RETAIL LIMITED,5399,Catering costs - provisions,-7.00,0.00,-7.00
Children and Young Peoples Services,Head of Childrens Social Care,085633,Families First Chester-Le-Street,Supplies and Services,364340,Grants to Voluntary Organisations,01-Sep-2020,000007303228710,GO NORTH EAST LIMITED,4131,Contact expenses,20.00,0.00,20.00
"Regeneration, Economy and Growth",Development and Housing,031500,Housing Solutions - Core Team,Supplies and Services,304999,Equipment and Materials,01-Sep-2020,000007303228848,DUNCAN BELTON TA K,6513,Misc equipment tools and materials,350.00,0.00,350.00
Children and Young Peoples Services,Head of Childrens Social Care,085333,Coxhoe Satelite Home,Supplies and Services,304403,Equipment and Materials,01-Sep-2020,000007303228918,WWW ESPARES CO UK,5065,Other consumables,24.98,0.00,24.98
Children and Young Peoples Services,Head of Childrens Social Care,085331,New Lea Childrens Home,Supplies and Services,384999,Miscellaneous Expenses,01-Sep-2020,000007303228946,Amazon.co.uk 1S7GL7OV5,5969,Other expenses,22.39,3.73,18.66
Children and Young Peoples Services,Head of Childrens Social Care,085331,New Lea Childrens Home,Supplies and Services,304221,Equipment and Materials,01-Sep-2020,000007303228948,B & Q 1343,5200,Direct materials,38.00,0.00,38.00
Children and Young Peoples Services,Head of Childrens Social Care,085331,New Lea Childrens Home,Supplies and Services,348037,Subsistence E348,01-Sep-2020,000007303228950,BELLS FISH AND CHI,5812,Subsistence,12.00,0.00,12.00
Adult and Health Services,Head of Adults,055310,Positive Journeys (Tudhoe),Supplies and Services,324117,Provisions E324,01-Sep-2020,000007303229022,CO-OP GROUP FOOD,5411,Catering costs - provisions,1.50,0.00,1.50
Children and Young Peoples Services,Head of Childrens Social Care,085332,Middlestone Moor CU,Supplies and Services,304999,Equipment and Materials,01-Sep-2020,000007303229238,Amazon Prime IM6D63WI5,5968,Misc equipment tools and materials,7.99,0.00,7.99
Children and Young Peoples Services,Head of Early Help Inclusion & Vulnerable Children.,085810,CDYJS - Interventions Team,Supplies and Services,312009,Newspapers books and periodicals E312,01-Sep-2020,000007303229338,AMZN Mktp UK 9Q2R794Y5,5942,Newspapers books and periodicals,21.55,3.59,17.96
Children and Young Peoples Services,Head of Education and Skills,071801,Selby Cottage Childcare Centre,Supplies and Services,304403,Equipment and Materials,01-Sep-2020,000007306398070,AMZNMKTPLACE AMAZON.CO,5999,Other consumables,22.14,3.69,18.45
Children and Young Peoples Services,Head of Education and Skills,071801,Selby Cottage Childcare Centre,Supplies and Services,304403,Equipment and Materials,01-Sep-2020,000007306398070 - 1,AMZNMKTPLACE AMAZON.CO,5999,Other consumables,0.06,,0.06
Resources BK0010,Legal & Democratic Services,067910,Democratic Representation 067910,Supplies and Services,344033,Telephones,01-Sep-2020,000007306398106,AMZNMKTPLACE AMAZON.CO,5999,Telephones general-all costs,154.50,25.75,128.75
Resources BK0010,Legal & Democratic Services,067910,Democratic Representation 067910,Supplies and Services,344033,Telephones,01-Sep-2020,000007306398106 - 1,AMZNMKTPLACE AMAZON.CO,5999,Telephones general-all costs,0.25,,0.25
Neighbourhoods and Climate Change,Environmental Services,011060,C&G - Hardwick Park Catering,Supplies and Services,324117,Provisions E324,01-Sep-2020,000007306398604,BATLEYS PERTH,5300,Catering costs - provisions,356.46,59.41,297.05
Neighbourhoods and Climate Change,Environmental Services,011060,C&G - Hardwick Park Catering,Supplies and Services,324117,Provisions E324,01-Sep-2020,000007306398604 - 1,BATLEYS PERTH,5300,Catering costs - provisions,39.99,,39.99
"Regeneration, Economy and Growth",Corporate Property and Land,021234,Catering - Locomotion,Supplies and Services,324117,Provisions E324,01-Sep-2020,000007306398646,BATLEYS PERTH,5300,Catering costs - provisions,64.62,10.77,53.85
"Regeneration, Economy and Growth",Corporate Property and Land,021234,Catering - Locomotion,Supplies and Services,324117,Provisions E324,01-Sep-2020,000007306398646 - 1,BATLEYS PERTH,5300,Catering costs - provisions,60.62,,60.62
Children and Young Peoples Services,Head of Early Help Inclusion & Vulnerable Children.,085954,Walworth,Transfer Payments,515140,Social Services Clients,01-Sep-2020,000007313394484,HM.COM,5691,Clothing allowances,24.99,0.00,24.99
Adult and Health Services,Head of Adults,055302,Durham Pathways,Supplies and Services,304403,Equipment and Materials,02-Sep-2020,000007303226346,AMZNMktplace,5999,Other consumables,32.94,5.49,27.45
Adult and Health Services,Head of Adults,055302,Durham Pathways,Supplies and Services,304403,Equipment and Materials,02-Sep-2020,000007303226346 - 1,AMZNMktplace,5999,Other consumables,0.03,,0.03
Children and Young Peoples Services,Head of Childrens Social Care,085341,High Etherley Satelite Home,Supplies and Services,328041,Clothing uniforms and laundry E328,02-Sep-2020,000007306398012,TK MAXX,5331,Clothing uniforms and laundry,11.96,0.00,11.96
Children and Young Peoples Services,Head of Childrens Social Care,085341,High Etherley Satelite Home,Supplies and Services,324117,Provisions E324,02-Sep-2020,000007306398018,TESCO STORES 6329,5411,Catering costs - provisions,2.18,0.00,2.18
"Regeneration, Economy and Growth",Business Durham CL0850,030689,Inward Investment and Aftercare,Supplies and Services,304403,Equipment and Materials,02-Sep-2020,000007306398034,ADOBE CREATIVE CLOUD,5734,Other consumables,49.94,0.00,49.94
"Regeneration, Economy and Growth",Business Durham CL0850,030689,Inward Investment and Aftercare,Supplies and Services,342222,Computers and Communications,02-Sep-2020,000007306398040,FASTHOSTS INTERNET,4816,Comp hardware purch-network servers,72.66,0.00,72.66
"Regeneration, Economy and Growth",Business Durham CL0850,030689,Inward Investment and Aftercare,Supplies and Services,342222,Computers and Communications,02-Sep-2020,000007306398042,FASTHOSTS INTERNET,4816,Comp hardware purch-network servers,67.20,0.00,67.20
Resources BK0010,Digital and Customer Services,065481,Technical Services 065481,Supplies and Services,304259,Equipment and Materials,02-Sep-2020,000007306398112,SCREWFIX DIRECT,5211,Equipment-purchase and rental,54.98,9.16,45.82
Adult and Health Services,Head of Adults,055302,Durham Pathways,Supplies and Services,340001,Postages E340,02-Sep-2020,000007306398158,POST OFFICE COUNTER,9402,Postages,2.06,0.00,2.06
"Regeneration, Economy and Growth",Culture Sport and Tourism,030708,VCD - Marketing & Information,Supplies and Services,384199,Miscellaneous Expenses,02-Sep-2020,000007306398164,FACEBK FLFE3VAVC2,7311,Other hired and contracted services,326.07,0.00,326.07
"Regeneration, Economy and Growth",Culture Sport and Tourism,030708,VCD - Marketing & Information,Supplies and Services,384199,Miscellaneous Expenses,02-Sep-2020,000007306398168,MAILCHIMP MONTHLY,5968,Other hired and contracted services,202.96,0.00,202.96
Children and Young Peoples Services,Head of Childrens Social Care,085342,16 Hickstead Rise (previously 9 Cedar Ave),Supplies and Services,324117,Provisions E324,02-Sep-2020,000007306398174,WILKO RETAIL LIMITED,5399,Catering costs - provisions,17.70,0.00,17.70
Children and Young Peoples Services,Head of Childrens Social Care,085342,16 Hickstead Rise (previously 9 Cedar Ave),Supplies and Services,324117,Provisions E324,02-Sep-2020,000007306398176,HOTEL CHOCOLAT,5441,Catering costs - provisions,8.24,0.00,8.24
Children and Young Peoples Services,Head of Childrens Social Care,085342,16 Hickstead Rise (previously 9 Cedar Ave),Supplies and Services,324117,Provisions E324,02-Sep-2020,000007306398178,TESCO STORES 2916,5411,Catering costs - provisions,20.49,0.00,20.49
Children and Young Peoples Services,Head of Childrens Social Care,085342,16 Hickstead Rise (previously 9 Cedar Ave),Supplies and Services,324117,Provisions E324,02-Sep-2020,000007306398182,WM MORRISONS STORE,5411,Catering costs - provisions,20.82,0.00,20.82
Neighbourhoods and Climate Change,Environmental Services,010367,C&G - South Grounds Maintenance,Supplies and Services,304403,Equipment and Materials,02-Sep-2020,000007306398332,MAXWELLS DIY,5231,Other consumables,30.00,5.00,25.00
Neighbourhoods and Climate Change,Environmental Services,010367,C&G - South Grounds Maintenance,Supplies and Services,304403,Equipment and Materials,02-Sep-2020,000007306398336,MAXWELLS DIY,5231,Other consumables,40.00,6.67,33.33
"Regeneration, Economy and Growth",Culture Sport and Tourism,054233,Bishop Auckland Town Hall Library,Supplies and Services,324117,Provisions E324,02-Sep-2020,000007306398358,HERON FOODS LTD,5499,Catering costs - provisions,5.75,0.00,5.75
"Regeneration, Economy and Growth",Development and Housing,031576,B& B - Temp Accom,Supplies and Services,364320,Grants to Voluntary Organisations,02-Sep-2020,000007306398376,WWW.HOTEL52.CO.UK,7011,Accommodation assistance,166.00,0.00,166.00
Children and Young Peoples Services,Head of Early Help Inclusion & Vulnerable Children.,085965,Barnard,Supplies and Services,304403,Equipment and Materials,02-Sep-2020,000007306398378,AMZNMktplace,5999,Other consumables,31.50,5.25,26.25
Children and Young Peoples Services,Head of Early Help Inclusion & Vulnerable Children.,085965,Barnard,Supplies and Services,304403,Equipment and Materials,02-Sep-2020,000007306398382,AMZNMktplace,5999,Other consumables,49.98,8.33,41.65
Children and Young Peoples Services,Head of Early Help Inclusion & Vulnerable Children.,085956,Lumley,Supplies and Services,324117,Provisions E324,02-Sep-2020,000007306398384,TESCO STORES 6329,5411,Catering costs - provisions,4.65,0.00,4.65
Children and Young Peoples Services,Head of Early Help Inclusion & Vulnerable Children.,085956,Lumley,Supplies and Services,328041,Clothing uniforms and laundry E328,02-Sep-2020,000007306398388,ARGOS LTD,5310,Clothing uniforms and laundry,78.95,0.00,78.95
Children and Young Peoples Services,Head of Education and Skills,071732,Dean Bank Childcare,Supplies and Services,324117,Provisions E324,02-Sep-2020,000007306398488,ASDA GROCERIES ONLINE,5411,Catering costs - provisions,45.10,0.00,45.10
Children and Young Peoples Services,Head of Education and Skills,071732,Dean Bank Childcare,Supplies and Services,324117,Provisions E324,02-Sep-2020,000007306398492,TESCO STORES 2916,5411,Catering costs - provisions,42.65,0.00,42.65
"Regeneration, Economy and Growth",Development and Housing,030771,Durham Advance Flexible Fund,Supplies and Services,328041,Clothing uniforms and laundry E328,02-Sep-2020,000007306398534,WWW.DOROTHYPERKINS,5691,Clothing uniforms and laundry,27.95,0.00,27.95
"Regeneration, Economy and Growth",Development and Housing,031500,Housing Solutions - Core Team,Supplies and Services,352001,Conference Expenses,02-Sep-2020,000007306398542,HI NEWCASTLE WASHI,7011,Conferencesseminars fees etc,339.00,0.00,339.00
Children and Young Peoples Services,Head of Early Help Inclusion & Vulnerable Children.,088100,Durham West & CLS 0-19 Targeted Family Support,Supplies and Services,304403,Equipment and Materials,02-Sep-2020,000007306398586,AMZNMktplace,5999,Other consumables,37.96,0.00,37.96
Children and Young Peoples Services,Head of Early Help Inclusion & Vulnerable Children.,088113,Seaham  0-19 Community Family Hub,Supplies and Services,328041,Clothing uniforms and laundry E328,02-Sep-2020,000007306398590,ARGOS LTD,5310,Clothing uniforms and laundry,12.95,0.00,12.95
Children and Young Peoples Services,Head of Early Help Inclusion & Vulnerable Children.,088113,Seaham  0-19 Community Family Hub,Supplies and Services,328041,Clothing uniforms and laundry E328,02-Sep-2020,000007306398594,ARGOS LTD,5310,Clothing uniforms and laundry,74.98,0.00,74.98
"Regeneration, Economy and Growth",Corporate Property and Land,021234,Catering - Locomotion,Supplies and Services,324117,Provisions E324,02-Sep-2020,000007306398650,JR HOLLAND FOODSERVICE,5499,Catering costs - provisions,77.97,0.00,77.97
"Regeneration, Economy and Growth",Development and Housing,031576,B& B - Temp Accom,Supplies and Services,364320,Grants to Voluntary Organisations,02-Sep-2020,000007306398678,TOAST LETTINGS,7011,Accommodation assistance,525.00,0.00,525.00
Adult and Health Services,Head of Adults,055643,Hawthorn House LD Respite Unit,Supplies and Services,324117,Provisions E324,02-Sep-2020,000007306398788,TESCO STORES 5970,5411,Catering costs - provisions,5.75,0.00,5.75
Children and Young Peoples Services,Head of Childrens Social Care,085333,Coxhoe Satelite Home,Supplies and Services,324117,Provisions E324,02-Sep-2020,000007306398814,ASDA SUPERSTORE 4987,5411,Catering costs - provisions,47.78,0.00,47.78
Neighbourhoods and Climate Change,Environmental Services,010561,Fleet - Morrison Busty Fleet,Transport,215013,Running Costs of Vehicles,02-Sep-2020,000007306398860,DVLA VEHICLE TAX,9311,Vehicle Excise Duty (VED),267.50,0.00,267.50
"Regeneration, Economy and Growth",Corporate Property and Land,030691,Catering - Durham Dales Centre,Supplies and Services,324117,Provisions E324,02-Sep-2020,000007306398866,JR HOLLAND FOODSERVICE,5499,Catering costs - provisions,-15.08,0.00,-15.08
Adult and Health Services,Head of Adults,055643,Hawthorn House LD Respite Unit,Supplies and Services,324117,Provisions E324,02-Sep-2020,000007306398888,JR HOLLAND FOODSERVICE,5499,Catering costs - provisions,15.84,0.00,15.84
Adult and Health Services,Head of Adults,055643,Hawthorn House LD Respite Unit,Supplies and Services,324117,Provisions E324,02-Sep-2020,000007306398892,JR HOLLAND FOODSERVICE,5499,Catering costs - provisions,9.74,0.00,9.74
Children and Young Peoples Services,Head of Early Help Inclusion & Vulnerable Children.,088103,Consett & Stanley 0-19 Community Family Hub,Supplies and Services,364301,Grants to Voluntary Organisations,02-Sep-2020,000007306398910,Durham County CNCL,9399,Hardship,16.00,0.00,16.00
Children and Young Peoples Services,Head of Early Help Inclusion & Vulnerable Children.,074000,TTF-Attachment and Results,Transfer Payments,525033,Other,02-Sep-2020,000007306398918,MAGUIRE TA LTD,5713,Grants to individuals,247.00,0.00,247.00
Children and Young Peoples Services,Head of Early Help Inclusion & Vulnerable Children.,085962,Aycliffe Secure - Durham,Supplies and Services,304259,Equipment and Materials,02-Sep-2020,000007306398928,APPLIANCEDIRECT CO,5734,Equipment-purchase and rental,415.99,69.33,346.66
Children and Young Peoples Services,Head of Early Help Inclusion & Vulnerable Children.,085956,Lumley,Transfer Payments,515140,Social Services Clients,02-Sep-2020,000007306398930,BOOHOO.COM,5691,Clothing allowances,55.20,0.00,55.20
Children and Young Peoples Services,Head of Early Help Inclusion & Vulnerable Children.,085956,Lumley,Transfer Payments,515140,Social Services Clients,02-Sep-2020,000007306398934,BOOHOO.COM,5691,Clothing allowances,21.80,0.00,21.80
Children and Young Peoples Services,Head of Early Help Inclusion & Vulnerable Children.,085957,Secure Management,Supplies and Services,304221,Equipment and Materials,02-Sep-2020,000007306398936,SCREWFIX DIRECT,5211,Direct materials,34.99,5.83,29.16
Children and Young Peoples Services,Head of Early Help Inclusion & Vulnerable Children.,085954,Walworth,Supplies and Services,328041,Clothing uniforms and laundry E328,02-Sep-2020,000007306398942,JD SPORTS INTERNET,5941,Clothing uniforms and laundry,15.99,0.00,15.99
Children and Young Peoples Services,Head of Early Help Inclusion & Vulnerable Children.,085965,Barnard,Transfer Payments,515140,Social Services Clients,02-Sep-2020,000007306398944,JD SPORTS INTERNET,5941,Clothing allowances,110.00,0.00,110.00
Resources BK0010,Business Support,052986,CYPS - Locality and Operational Support,Supplies and Services,384999,Miscellaneous Expenses,02-Sep-2020,000007306398970,Amazon.co.uk E70161CA5,5969,Other expenses,28.80,0.00,28.80
"Regeneration, Economy and Growth",Culture Sport and Tourism,054235,Bishop Auckland Town Hall Cafe,Supplies and Services,324117,Provisions E324,02-Sep-2020,000007306398988,JR HOLLAND FOODSERVICE,5499,Catering costs - provisions,120.53,0.00,120.53
Children and Young Peoples Services,Head of Childrens Social Care,085332,Middlestone Moor CU,Supplies and Services,304999,Equipment and Materials,02-Sep-2020,000007306399000,SAVERS HEALTH & BEAUTY,5912,Misc equipment tools and materials,22.48,0.00,22.48
Children and Young Peoples Services,Head of Childrens Social Care,085332,Middlestone Moor CU,Supplies and Services,328041,Clothing uniforms and laundry E328,02-Sep-2020,000007306399002,POUNDLAND LTD 1390,5310,Clothing uniforms and laundry,30.20,0.00,30.20
Children and Young Peoples Services,Head of Childrens Social Care,085332,Middlestone Moor CU,Supplies and Services,348037,Subsistence E348,02-Sep-2020,000007306399006,GREGGS,5812,Subsistence,6.50,0.00,6.50
Children and Young Peoples Services,Head of Childrens Social Care,085333,Coxhoe Satelite Home,Supplies and Services,324117,Provisions E324,02-Sep-2020,000007306399014,B&M 681 - DURHAM,5399,Catering costs - provisions,13.70,0.00,13.70
Children and Young Peoples Services,Head of Childrens Social Care,085333,Coxhoe Satelite Home,Supplies and Services,324117,Provisions E324,02-Sep-2020,000007306399020,B&M 681 - DURHAM,5399,Catering costs - provisions,37.95,0.00,37.95
Children and Young Peoples Services,Head of Childrens Social Care,085333,Coxhoe Satelite Home,Supplies and Services,348037,Subsistence E348,02-Sep-2020,000007306399022,Pizza Roma,5812,Subsistence,32.50,0.00,32.50
Children and Young Peoples Services,Head of Childrens Social Care,085333,Coxhoe Satelite Home,Supplies and Services,304259,Equipment and Materials,02-Sep-2020,000007306399024,SPORTSDIRECT 264,5941,Equipment-purchase and rental,29.55,0.00,29.55
Children and Young Peoples Services,Head of Education and Skills,071802,Louisa Cent Nursery,Supplies and Services,324117,Provisions E324,02-Sep-2020,000007306399058,ALDI 11 774,5411,Catering costs - provisions,4.18,0.00,4.18
Children and Young Peoples Services,Head of Childrens Social Care,085633,Families First Chester-Le-Street,Supplies and Services,338045,Services,02-Sep-2020,000007306399068,GATESHEAD COUNCIL MOTO,9399,Legal expenses 338045,11.00,0.00,11.00
Children and Young Peoples Services,Head of Childrens Social Care,085331,New Lea Childrens Home,Supplies and Services,304259,Equipment and Materials,02-Sep-2020,000007306399148,DISCLOSURE & BARRING,9399,Equipment-purchase and rental,13.00,0.00,13.00
"Regeneration, Economy and Growth",Development and Housing,030771,Durham Advance Flexible Fund,Transport,235057,Public Transport,02-Sep-2020,000007306399220,GO NORTH EAST LIMITED,4131,Staff travelling,7.00,0.00,7.00
"Regeneration, Economy and Growth",Development and Housing,030776,LINKCD Flexible Fund,Supplies and Services,304403,Equipment and Materials,02-Sep-2020,000007309498720,AMZNMKTPLACE AMAZON.CO,5999,Other consumables,30.59,0.00,30.59
Children and Young Peoples Services,Head of Early Help Inclusion & Vulnerable Children.,088112,Seaham & Central Durham 0-19 Targeted Family Support,Supplies and Services,304403,Equipment and Materials,02-Sep-2020,000007309498758,AMZNMKTPLACE AMAZON.CO,5999,Other consumables,159.98,0.00,159.98
Children and Young Peoples Services,Head of Education and Skills,070169,Durham SSP,Supplies and Services,384199,Miscellaneous Expenses,02-Sep-2020,000007309499304,ZOOM.GBP,5968,Other hired and contracted services,14.39,2.40,11.99
Children and Young Peoples Services,Head of Early Help Inclusion & Vulnerable Children.,085956,Lumley,Transfer Payments,515140,Social Services Clients,02-Sep-2020,000007334833592,BOOHOO.COM,5691,Clothing allowances,-9.00,0.00,-9.00
Children and Young Peoples Services,Head of Education and Skills,054640,Durham Learning Resources 054640,Supplies and Services,384999,Miscellaneous Expenses,03-Sep-2020,000007306398084,Amazon.co.uk T26NM96R5,5969,Other expenses,77.20,0.00,77.20
Children and Young Peoples Services,Head of Education and Skills,071801,Selby Cottage Childcare Centre,Supplies and Services,324117,Provisions E324,03-Sep-2020,000007309498192,JR HOLLAND FOODSERVICE,5499,Catering costs - provisions,415.93,0.00,415.93
Children and Young Peoples Services,Head of Education and Skills,071801,Selby Cottage Childcare Centre,Supplies and Services,324117,Provisions E324,03-Sep-2020,000007309498198,TESCO STORES 2371,5411,Catering costs - provisions,41.33,0.00,41.33
Resources BK0010,Digital and Customer Services,065481,Technical Services 065481,Supplies and Services,304403,Equipment and Materials,03-Sep-2020,000007309498206,AMZNMktplace,5999,Other consumables,73.67,0.00,73.67
Children and Young Peoples Services,Childrens Services Operational Support,052951,Progression and Retention,Employees,040149,Recruitment Instruction and Training,03-Sep-2020,000007309498210,EUREKA!,8999,Training-all costs,600.00,100.00,500.00
"Regeneration, Economy and Growth",Development and Housing,030725,Community Economic Development 030725,Supplies and Services,352001,Conference Expenses,03-Sep-2020,000007309498214,EB HELPING SMALL BUSI,7399,Conferencesseminars fees etc,27.54,4.59,22.95
Resources BK0010,Digital and Customer Services,065481,Technical Services 065481,Supplies and Services,304259,Equipment and Materials,03-Sep-2020,000007309498216,SCREWFIX DIRECT,5211,Equipment-purchase and rental,54.98,9.16,45.82
"Regeneration, Economy and Growth",Development and Housing,030773,CLLD North,Transport,235057,Public Transport,03-Sep-2020,000007309498248,GO NORTH EAST LIMITED,4131,Staff travelling,20.00,0.00,20.00
"Regeneration, Economy and Growth",Development and Housing,030773,CLLD North,Transport,235057,Public Transport,03-Sep-2020,000007309498252,GO NORTH EAST LIMITED,4131,Staff travelling,20.00,0.00,20.00
Children and Young Peoples Services,Head of Education and Skills,078411,16-19 Education & Training,Supplies and Services,332047,Printing Stationery and Gen Off Exps,03-Sep-2020,000007309498254,AMZNMKTPLACE AMAZON.CO,5999,Stationery,21.99,3.67,18.32
Children and Young Peoples Services,Head of Education and Skills,075021,Youth Employment Initiative,Supplies and Services,364301,Grants to Voluntary Organisations,03-Sep-2020,000007309498258,WWW.DAVINESONLINE.COM,7230,Hardship,147.59,24.60,122.99
Children and Young Peoples Services,Head of Education and Skills,075021,Youth Employment Initiative,Supplies and Services,364301,Grants to Voluntary Organisations,03-Sep-2020,000007309498260,GO NORTH EAST LIMITED,4131,Hardship,4.50,0.00,4.50
Children and Young Peoples Services,Head of Education and Skills,075021,Youth Employment Initiative,Supplies and Services,364301,Grants to Voluntary Organisations,03-Sep-2020,000007309498264,HARDEDGE LIMITED 1,5661,Hardship,54.27,0.00,54.27
Children and Young Peoples Services,Head of Education and Skills,075021,Youth Employment Initiative,Supplies and Services,364301,Grants to Voluntary Organisations,03-Sep-2020,000007309498268,E RUSSUM & SONS LTD,5399,Hardship,36.95,6.16,30.79
Children and Young Peoples Services,Head of Education and Skills,075021,Youth Employment Initiative,Supplies and Services,364301,Grants to Voluntary Organisations,03-Sep-2020,000007309498270,WWW.LABEEBY.CO.UK,5691,Hardship,37.79,0.00,37.79
Children and Young Peoples Services,Head of Childrens Social Care,085342,16 Hickstead Rise (previously 9 Cedar Ave),Supplies and Services,324117,Provisions E324,03-Sep-2020,000007309498280,TESCO STORES 2916,5411,Catering costs - provisions,5.00,0.00,5.00
Children and Young Peoples Services,Head of Childrens Social Care,085333,Coxhoe Satelite Home,Supplies and Services,328041,Clothing uniforms and laundry E328,03-Sep-2020,000007309498420,BOOHOO.COM,5691,Clothing uniforms and laundry,28.70,0.00,28.70
Children and Young Peoples Services,Head of Childrens Social Care,085380,Operations Manager LAC Resources,Supplies and Services,328041,Clothing uniforms and laundry E328,03-Sep-2020,000007309498450,ARGOS LTD,5310,Clothing uniforms and laundry,328.94,0.00,328.94
Children and Young Peoples Services,Head of Childrens Social Care,085380,Operations Manager LAC Resources,Supplies and Services,328041,Clothing uniforms and laundry E328,03-Sep-2020,000007309498454,ARGOS LTD,5310,Clothing uniforms and laundry,69.99,0.00,69.99
"Regeneration, Economy and Growth",Culture Sport and Tourism,054233,Bishop Auckland Town Hall Library,Supplies and Services,324117,Provisions E324,03-Sep-2020,000007309498470,HERON FOODS LTD,5499,Catering costs - provisions,6.90,0.00,6.90
"Regeneration, Economy and Growth",Culture Sport and Tourism,054233,Bishop Auckland Town Hall Library,Supplies and Services,324117,Provisions E324,03-Sep-2020,000007309498474,HERON FOODS LTD,5499,Catering costs - provisions,9.00,0.00,9.00
Children and Young Peoples Services,Head of Childrens Social Care,085332,Middlestone Moor CU,Supplies and Services,324117,Provisions E324,03-Sep-2020,000007309498476,ALDI 59 774,5411,Catering costs - provisions,19.25,0.00,19.25
"Regeneration, Economy and Growth",Development and Housing,031576,B& B - Temp Accom,Supplies and Services,364320,Grants to Voluntary Organisations,03-Sep-2020,000007309498484,WWW.HOTEL52.CO.UK,7011,Accommodation assistance,78.00,0.00,78.00
Children and Young Peoples Services,Head of Early Help Inclusion & Vulnerable Children.,085956,Lumley,Supplies and Services,324117,Provisions E324,03-Sep-2020,000007309498492,TESCO STORES 6329,5411,Catering costs - provisions,-4.65,0.00,-4.65
"Regeneration, Economy and Growth",Development and Housing,030772,CLLD South,Employees,040149,Recruitment Instruction and Training,03-Sep-2020,000007309498522,NORTH EAST ACCESS (TRA,8249,Training-all costs,234.00,39.00,195.00
Children and Young Peoples Services,Head of Early Help Inclusion & Vulnerable Children.,088109,Spennymoor & Shildon 0-19 Community Family Hub,Supplies and Services,324117,Provisions E324,03-Sep-2020,000007309498562,TESCO STORES 2916,5411,Catering costs - provisions,38.20,0.00,38.20
Children and Young Peoples Services,Head of Education and Skills,071732,Dean Bank Childcare,Supplies and Services,324117,Provisions E324,03-Sep-2020,000007309498570,B&M 035 - SHILDON,5399,Catering costs - provisions,23.86,0.00,23.86
"Regeneration, Economy and Growth",Culture Sport and Tourism,054967,Theatre - Technical Staffing,Supplies and Services,304999,Equipment and Materials,03-Sep-2020,000007309498578,Soundtrack Your Brand,5815,Misc equipment tools and materials,291.48,0.00,291.48
Children and Young Peoples Services,Head of Childrens Social Care,085334,West Rainton Satelite Home,Supplies and Services,328041,Clothing uniforms and laundry E328,03-Sep-2020,000007309498604,SHOE ZONE 1860,5661,Clothing uniforms and laundry,5.48,0.00,5.48
Children and Young Peoples Services,Head of Childrens Social Care,085334,West Rainton Satelite Home,Supplies and Services,304999,Equipment and Materials,03-Sep-2020,000007309498616,HOME BARGAINS,5251,Misc equipment tools and materials,5.00,0.00,5.00
Children and Young Peoples Services,Head of Childrens Social Care,085334,West Rainton Satelite Home,Supplies and Services,304403,Equipment and Materials,03-Sep-2020,000007309498620,CARD FACTORY,5947,Other consumables,2.58,0.00,2.58
Children and Young Peoples Services,Head of Childrens Social Care,085334,West Rainton Satelite Home,Supplies and Services,304259,Equipment and Materials,03-Sep-2020,000007309498626,SPORTSDIRECT 264,5941,Equipment-purchase and rental,8.00,0.00,8.00
Neighbourhoods and Climate Change,Environmental Services,010314,Nei.Prot - Bereavement Services,Supplies and Services,304259,Equipment and Materials,03-Sep-2020,000007309498632,Durham County CNCL,9399,Equipment-purchase and rental,11.00,0.00,11.00
Children and Young Peoples Services,Head of Childrens Social Care,085341,High Etherley Satelite Home,Supplies and Services,324117,Provisions E324,03-Sep-2020,000007309498638,ASDA STORES,5411,Catering costs - provisions,2.59,0.00,2.59
"Regeneration, Economy and Growth",Development and Housing,031500,Housing Solutions - Core Team,Supplies and Services,352001,Conference Expenses,03-Sep-2020,000007309498692,WWW.HOTEL52.CO.UK,7011,Conferencesseminars fees etc,141.00,0.00,141.00
"Regeneration, Economy and Growth",Development and Housing,031500,Housing Solutions - Core Team,Supplies and Services,352001,Conference Expenses,03-Sep-2020,000007309498696,WWW.HOTEL52.CO.UK,7011,Conferencesseminars fees etc,420.00,0.00,420.00
"Regeneration, Economy and Growth",Development and Housing,031500,Housing Solutions - Core Team,Supplies and Services,352001,Conference Expenses,03-Sep-2020,000007309498700,HI NEWCASTLE WASHI,7011,Conferencesseminars fees etc,500.00,0.00,500.00
"Regeneration, Economy and Growth",Development and Housing,031500,Housing Solutions - Core Team,Supplies and Services,352001,Conference Expenses,03-Sep-2020,000007309498706,HI NEWCASTLE WASHI,7011,Conferencesseminars fees etc,330.00,0.00,330.00
"Regeneration, Economy and Growth",Development and Housing,031500,Housing Solutions - Core Team,Supplies and Services,352001,Conference Expenses,03-Sep-2020,000007309498710,HI NEWCASTLE WASHI,7011,Conferencesseminars fees etc,500.00,0.00,500.00
"Regeneration, Economy and Growth",Development and Housing,031500,Housing Solutions - Core Team,Supplies and Services,352001,Conference Expenses,03-Sep-2020,000007309498714,HI NEWCASTLE WASHI,7011,Conferencesseminars fees etc,265.00,0.00,265.00
Children and Young Peoples Services,Head of Childrens Social Care,085363,LAC & Permanence Team 3,Supplies and Services,338045,Services,03-Sep-2020,000007309498738,HARTLEPOOL BC CNP,9399,Legal expenses 338045,11.00,0.00,11.00
Children and Young Peoples Services,Head of Early Help Inclusion & Vulnerable Children.,085957,Secure Management,Supplies and Services,372009,Subscriptions E372,03-Sep-2020,000007309498742,Amazon Prime RF2H12NV5,5968,Subscriptions 372009,79.00,0.00,79.00
Neighbourhoods and Climate Change,Environmental Services,010367,C&G - South Grounds Maintenance,Supplies and Services,304403,Equipment and Materials,03-Sep-2020,000007309498768,MAXWELLS DIY,5231,Other consumables,3.00,0.00,3.00
Neighbourhoods and Climate Change,Environmental Services,010367,C&G - South Grounds Maintenance,Supplies and Services,304403,Equipment and Materials,03-Sep-2020,000007309498774,MAXWELLS DIY,5231,Other consumables,57.00,0.00,57.00
Neighbourhoods and Climate Change,Environmental Services,011060,C&G - Hardwick Park Catering,Supplies and Services,324117,Provisions E324,03-Sep-2020,000007309498786,JR HOLLAND FOODSERVICE,5499,Catering costs - provisions,8.87,0.00,8.87
"Regeneration, Economy and Growth",Development and Housing,031576,B& B - Temp Accom,Supplies and Services,364320,Grants to Voluntary Organisations,03-Sep-2020,000007309498880,HI NEWCASTLE WASHI,7011,Accommodation assistance,390.00,0.00,390.00
Children and Young Peoples Services,Head of Childrens Social Care,085551,Short Break Services-Park Hse Sher,Supplies and Services,304999,Equipment and Materials,03-Sep-2020,000007309498904,HOME BARGAINS,5251,Misc equipment tools and materials,5.05,0.00,5.05
Children and Young Peoples Services,Head of Childrens Social Care,085551,Short Break Services-Park Hse Sher,Supplies and Services,324117,Provisions E324,03-Sep-2020,000007309498908,ALDI 12 774,5411,Catering costs - provisions,60.18,0.00,60.18
Adult and Health Services,Head of Adults,055643,Hawthorn House LD Respite Unit,Supplies and Services,324117,Provisions E324,03-Sep-2020,000007309499074,SAINSBURYS SACAT 0776,5411,Catering costs - provisions,6.00,0.00,6.00
Children and Young Peoples Services,Head of Childrens Social Care,085333,Coxhoe Satelite Home,Supplies and Services,348037,Subsistence E348,03-Sep-2020,000007309499084,GREGGS,5812,Subsistence,2.95,0.00,2.95
Children and Young Peoples Services,Head of Childrens Social Care,085333,Coxhoe Satelite Home,Supplies and Services,348037,Subsistence E348,03-Sep-2020,000007309499088,MCDONALDS,5814,Subsistence,14.77,0.00,14.77
"Regeneration, Economy and Growth",Corporate Property and Land,030691,Catering - Durham Dales Centre,Supplies and Services,324117,Provisions E324,03-Sep-2020,000007309499160,JR HOLLAND FOODSERVICE,5499,Catering costs - provisions,98.45,0.00,98.45
Children and Young Peoples Services,Head of Education and Skills,078100,Curric and Professional Development 078100,Third Party Payments,430100,Rendered by Private Contractors,03-Sep-2020,000007309499202,EB TDT PERFORMANCE DE,7399,Payments to sub-contractors,130.00,0.00,130.00
Children and Young Peoples Services,Head of Early Help Inclusion & Vulnerable Children.,088102,Consett & Stanley 0-19 Targeted Family Support,Supplies and Services,340001,Postages E340,03-Sep-2020,000007309499212,POST OFFICE COUNTER,9402,Postages,0.76,0.00,0.76
Children and Young Peoples Services,Head of Early Help Inclusion & Vulnerable Children.,088103,Consett & Stanley 0-19 Community Family Hub,Supplies and Services,384302,Miscellaneous Expenses,03-Sep-2020,000007309499216,AMZNMktplace,5999,Activity expenses,16.98,2.84,14.14
Children and Young Peoples Services,Head of Early Help Inclusion & Vulnerable Children.,085957,Secure Management,Supplies and Services,304245,Equipment and Materials,03-Sep-2020,000007309499238,SCREWFIX DIRECT,5211,Materials,38.98,6.50,32.48
Resources BK0010,Business Support,052986,CYPS - Locality and Operational Support,Supplies and Services,328041,Clothing uniforms and laundry E328,03-Sep-2020,000007309499256,ARGOS LTD,5310,Clothing uniforms and laundry,259.99,0.00,259.99
Resources BK0010,Business Support,052986,CYPS - Locality and Operational Support,Supplies and Services,304259,Equipment and Materials,03-Sep-2020,000007309499258,WWW.DURHAM.GOV.UK,9399,Equipment-purchase and rental,35.00,0.00,35.00
"Regeneration, Economy and Growth",Development and Housing,031576,B& B - Temp Accom,Supplies and Services,364320,Grants to Voluntary Organisations,03-Sep-2020,000007309499274,BUDGET H EXPRESS HOTEL,7011,Accommodation assistance,113.16,18.86,94.30
"Regeneration, Economy and Growth",Development and Housing,031576,B& B - Temp Accom,Supplies and Services,364320,Grants to Voluntary Organisations,03-Sep-2020,000007309499274 - 1,BUDGET H EXPRESS HOTEL,7011,Accommodation assistance,282.84,,282.84
Children and Young Peoples Services,Head of Education and Skills,070169,Durham SSP,Supplies and Services,384199,Miscellaneous Expenses,03-Sep-2020,000007309499306,AMZNMKTPLACE AMAZON.CO,5999,Other hired and contracted services,428.99,0.00,428.99
Neighbourhoods and Climate Change,Environmental Services,010301,C&G - North Grounds Maintenance,Supplies and Services,304221,Equipment and Materials,03-Sep-2020,000007309499342,CARRS BILLINGTON SPENN,5599,Direct materials,96.00,0.00,96.00
Adult and Health Services,Head of Adults,055309,Peterlee Pathways,Supplies and Services,384999,Miscellaneous Expenses,03-Sep-2020,000007309499372,Amazon.co.uk OQ94S7WP5,5969,Other expenses,16.74,2.79,13.95
"Regeneration, Economy and Growth",Development and Housing,030771,Durham Advance Flexible Fund,Supplies and Services,308011,Furniture,03-Sep-2020,000007309499414,MH STAR UK LTD,5712,Furniture repair and replacement,106.38,17.73,88.65
"Regeneration, Economy and Growth",Development and Housing,030771,Durham Advance Flexible Fund,Supplies and Services,328041,Clothing uniforms and laundry E328,03-Sep-2020,000007309499416,INDUSTRIAL WORKWEA,5137,Clothing uniforms and laundry,46.43,7.74,38.69
Adult and Health Services,Head of Adults,055309,Peterlee Pathways,Supplies and Services,328041,Clothing uniforms and laundry E328,03-Sep-2020,000007309499420,POUNDSTRETCHER 396,5331,Clothing uniforms and laundry,6.85,0.00,6.85
Adult and Health Services,Head of Adults,055309,Peterlee Pathways,Supplies and Services,324117,Provisions E324,03-Sep-2020,000007309499422,LIDL GB PETERLEE,5411,Catering costs - provisions,2.68,0.00,2.68
Neighbourhoods and Climate Change,Environmental Services,011060,C&G - Hardwick Park Catering,Supplies and Services,324117,Provisions E324,03-Sep-2020,000007313392790,BATLEYS PERTH,5300,Catering costs - provisions,279.96,46.66,233.30
Neighbourhoods and Climate Change,Environmental Services,011060,C&G - Hardwick Park Catering,Supplies and Services,324117,Provisions E324,03-Sep-2020,000007313392790 - 1,BATLEYS PERTH,5300,Catering costs - provisions,133.70,,133.70
Children and Young Peoples Services,Head of Childrens Social Care,085333,Coxhoe Satelite Home,Supplies and Services,328041,Clothing uniforms and laundry E328,03-Sep-2020,000007313393770,PRIMARK,5651,Clothing uniforms and laundry,42.30,0.00,42.30
Neighbourhoods and Climate Change,Environmental Services,010900,Fleet - Meadowfield Fleet,Supplies and Services,304259,Equipment and Materials,03-Sep-2020,000007313393926,DVLA DUP REG DOC,9399,Equipment-purchase and rental,25.00,0.00,25.00
"Regeneration, Economy and Growth",Corporate Property and Land,030691,Catering - Durham Dales Centre,Supplies and Services,324117,Provisions E324,03-Sep-2020,000007313393968,BATLEYS PERTH,5300,Catering costs - provisions,124.32,20.72,103.60
"Regeneration, Economy and Growth",Corporate Property and Land,030691,Catering - Durham Dales Centre,Supplies and Services,324117,Provisions E324,03-Sep-2020,000007313393968 - 1,BATLEYS PERTH,5300,Catering costs - provisions,77.27,,77.27
"Regeneration, Economy and Growth",Corporate Property and Land,030691,Catering - Durham Dales Centre,Premises,145009,Cleaning and Domestic Supplies,03-Sep-2020,000007339249840,ALLIANCE DISPOSABLES L,2842,Other cleaning and domestic costs,38.56,6.43,32.13
"Regeneration, Economy and Growth",Corporate Property and Land,030691,Catering - Durham Dales Centre,Premises,145009,Cleaning and Domestic Supplies,03-Sep-2020,000007339249846,ALLIANCE DISPOSABLES L,2842,Other cleaning and domestic costs,23.58,3.93,19.65
"Regeneration, Economy and Growth",Development and Housing,030771,Durham Advance Flexible Fund,Supplies and Services,384999,Miscellaneous Expenses,04-Sep-2020,000007309498668,Amazon.co.uk FY0RE2FX5,5969,Other expenses,595.42,0.00,595.42
Children and Young Peoples Services,Head of Childrens Social Care,085551,Short Break Services-Park Hse Sher,Supplies and Services,304403,Equipment and Materials,04-Sep-2020,000007309498912,AMZNMktplace,5999,Other consumables,57.37,0.00,57.37
"Regeneration, Economy and Growth",Development and Housing,030771,Durham Advance Flexible Fund,Supplies and Services,384999,Miscellaneous Expenses,04-Sep-2020,000007309499418,Amazon.co.uk 8H0G364C5,5969,Other expenses,51.00,0.00,51.00
Children and Young Peoples Services,Head of Childrens Social Care,085341,High Etherley Satelite Home,Supplies and Services,324117,Provisions E324,04-Sep-2020,000007313390032,TESCO STORES 6329,5411,Catering costs - provisions,98.93,0.00,98.93
"Regeneration, Economy and Growth",Business Durham CL0850,030689,Inward Investment and Aftercare,Supplies and Services,342033,Computers and Communications,04-Sep-2020,000007313390076,STK Shutterstock,7333,Computer hardware,19.00,0.00,19.00
"Regeneration, Economy and Growth",Business Durham CL0850,030689,Inward Investment and Aftercare,Supplies and Services,342222,Computers and Communications,04-Sep-2020,000007313390110,FASTHOSTS INTERNET,4816,Comp hardware purch-network servers,6.34,0.00,6.34
"Regeneration, Economy and Growth",Development and Housing,031578,Client Travel Reimbursements,Transport,235057,Public Transport,04-Sep-2020,000007313390214,NX Website,4131,Staff travelling,66.70,0.00,66.70
Resources BK0010,Digital and Customer Services,065481,Technical Services 065481,Supplies and Services,304403,Equipment and Materials,04-Sep-2020,000007313390246,AMZNMktplace,5999,Other consumables,73.67,0.00,73.67
Resources BK0010,Digital and Customer Services,065481,Technical Services 065481,Supplies and Services,304403,Equipment and Materials,04-Sep-2020,000007313390258,AMZNMktplace,5999,Other consumables,22.99,3.83,19.16
Resources BK0010,Digital and Customer Services,065481,Technical Services 065481,Supplies and Services,304403,Equipment and Materials,04-Sep-2020,000007313390266,AMZNMktplace,5999,Other consumables,88.11,0.00,88.11
Children and Young Peoples Services,Head of Education and Skills,075021,Youth Employment Initiative,Supplies and Services,364301,Grants to Voluntary Organisations,04-Sep-2020,000007313390488,GO NORTH EAST LIMITED,4131,Hardship,25.00,0.00,25.00
Children and Young Peoples Services,Head of Education and Skills,075021,Youth Employment Initiative,Supplies and Services,364301,Grants to Voluntary Organisations,04-Sep-2020,000007313390518,E RUSSUM & SONS LTD,5399,Hardship,36.95,6.16,30.79
"Regeneration, Economy and Growth",Culture Sport and Tourism,030705,Visit County Durham 030705,Employees,040149,Recruitment Instruction and Training,04-Sep-2020,000007313390618,LONDON SCHOOL OF INTER,8299,Training-all costs,10.00,0.00,10.00
Children and Young Peoples Services,Head of Childrens Social Care,085332,Middlestone Moor CU,Supplies and Services,324117,Provisions E324,04-Sep-2020,000007313390664,TESCO STORES 2371,5411,Catering costs - provisions,99.82,0.00,99.82
"Regeneration, Economy and Growth",Culture Sport and Tourism,054233,Bishop Auckland Town Hall Library,Supplies and Services,324117,Provisions E324,04-Sep-2020,000007313391308,HERON FOODS LTD,5499,Catering costs - provisions,15.50,0.00,15.50
"Regeneration, Economy and Growth",Culture Sport and Tourism,054233,Bishop Auckland Town Hall Library,Supplies and Services,304403,Equipment and Materials,04-Sep-2020,000007313391326,HOLLAND & BARRETT,5999,Other consumables,1.04,0.00,1.04
Children and Young Peoples Services,Head of Early Help Inclusion & Vulnerable Children.,085954,Walworth,Transfer Payments,515140,Social Services Clients,04-Sep-2020,000007313391504,Nike,5655,Clothing allowances,67.90,0.00,67.90
Children and Young Peoples Services,Head of Early Help Inclusion & Vulnerable Children.,085952,Secure Education,Supplies and Services,304259,Equipment and Materials,04-Sep-2020,000007313391518,PMT ONLINE,5733,Equipment-purchase and rental,155.90,0.00,155.90
Children and Young Peoples Services,Head of Early Help Inclusion & Vulnerable Children.,085954,Walworth,Supplies and Services,324117,Provisions E324,04-Sep-2020,000007313391530,TESCO STORES 6329,5411,Catering costs - provisions,139.50,0.00,139.50
Children and Young Peoples Services,Head of Early Help Inclusion & Vulnerable Children.,085954,Walworth,Transfer Payments,515140,Social Services Clients,04-Sep-2020,000007313391536,WWW.NIKESTORE.COM,5691,Clothing allowances,32.95,0.00,32.95
Children and Young Peoples Services,Head of Education and Skills,071732,Dean Bank Childcare,Supplies and Services,304403,Equipment and Materials,04-Sep-2020,000007313392082,AMZNMktplace,5999,Other consumables,35.00,5.83,29.17
Children and Young Peoples Services,Head of Education and Skills,071732,Dean Bank Childcare,Supplies and Services,328041,Clothing uniforms and laundry E328,04-Sep-2020,000007313392094,ARGOS LTD,5310,Clothing uniforms and laundry,416.59,0.00,416.59
Children and Young Peoples Services,Head of Childrens Social Care,085334,West Rainton Satelite Home,Supplies and Services,324117,Provisions E324,04-Sep-2020,000007313392212,TESCO STORES 2371,5411,Catering costs - provisions,53.61,0.00,53.61
Children and Young Peoples Services,Head of Childrens Social Care,085334,West Rainton Satelite Home,Supplies and Services,324117,Provisions E324,04-Sep-2020,000007313392224,TESCO STORES 2371,5411,Catering costs - provisions,20.30,0.00,20.30
"Regeneration, Economy and Growth",Development and Housing,030771,Durham Advance Flexible Fund,Transport,235057,Public Transport,04-Sep-2020,000007313392410,ARRIVA UK BUS,4131,Staff travelling,7.50,0.00,7.50
"Regeneration, Economy and Growth",Development and Housing,031500,Housing Solutions - Core Team,Supplies and Services,352001,Conference Expenses,04-Sep-2020,000007313392520,HI NEWCASTLE WASHI,7011,Conferencesseminars fees etc,72.00,0.00,72.00
"Regeneration, Economy and Growth",Development and Housing,031500,Housing Solutions - Core Team,Supplies and Services,352001,Conference Expenses,04-Sep-2020,000007313392528,HI NEWCASTLE WASHI,7011,Conferencesseminars fees etc,100.00,16.67,83.33
"Regeneration, Economy and Growth",Development and Housing,031500,Housing Solutions - Core Team,Supplies and Services,352001,Conference Expenses,04-Sep-2020,000007313392604,WWW.HOTEL52.CO.UK,7011,Conferencesseminars fees etc,108.00,0.00,108.00
Neighbourhoods and Climate Change,Environmental Services,011060,C&G - Hardwick Park Catering,Supplies and Services,304083,Equipment and Materials,04-Sep-2020,000007313392708,WWW.NISBETS.COM,5964,Catering equipment,86.53,0.00,86.53
Neighbourhoods and Climate Change,Environmental Services,011060,C&G - Hardwick Park Catering,Supplies and Services,324117,Provisions E324,04-Sep-2020,000007313392830,HOPWELLS LTD,5811,Catering costs - provisions,138.30,23.05,115.25
Neighbourhoods and Climate Change,Environmental Services,011060,C&G - Hardwick Park Catering,Supplies and Services,324117,Provisions E324,04-Sep-2020,000007313392830 - 1,HOPWELLS LTD,5811,Catering costs - provisions,30.91,,30.91
Neighbourhoods and Climate Change,Environmental Services,011060,C&G - Hardwick Park Catering,Supplies and Services,324117,Provisions E324,04-Sep-2020,000007313392840,HOPWELLS LTD,5811,Catering costs - provisions,290.88,48.48,242.40
Neighbourhoods and Climate Change,Environmental Services,011060,C&G - Hardwick Park Catering,Supplies and Services,324117,Provisions E324,04-Sep-2020,000007313392840 - 1,HOPWELLS LTD,5811,Catering costs - provisions,64.38,,64.38
Neighbourhoods and Climate Change,Environmental Services,011060,C&G - Hardwick Park Catering,Supplies and Services,324117,Provisions E324,04-Sep-2020,000007313392860,JR HOLLAND FOODSERVICE,5499,Catering costs - provisions,47.29,0.00,47.29
"Regeneration, Economy and Growth",Corporate Property and Land,021234,Catering - Locomotion,Supplies and Services,324117,Provisions E324,04-Sep-2020,000007313393038,HOPWELLS LTD,5811,Catering costs - provisions,22.50,3.75,18.75
"Regeneration, Economy and Growth",Corporate Property and Land,021234,Catering - Locomotion,Supplies and Services,324117,Provisions E324,04-Sep-2020,000007313393038 - 1,HOPWELLS LTD,5811,Catering costs - provisions,49.09,,49.09
"Regeneration, Economy and Growth",Corporate Property and Land,021234,Catering - Locomotion,Supplies and Services,324117,Provisions E324,04-Sep-2020,000007313393050,HOPWELLS LTD,5811,Catering costs - provisions,43.26,7.21,36.05
"Regeneration, Economy and Growth",Corporate Property and Land,021234,Catering - Locomotion,Supplies and Services,324117,Provisions E324,04-Sep-2020,000007313393050 - 1,HOPWELLS LTD,5811,Catering costs - provisions,147.34,,147.34
"Regeneration, Economy and Growth",Corporate Property and Land,021234,Catering - Locomotion,Supplies and Services,324117,Provisions E324,04-Sep-2020,000007313393056,JR HOLLAND FOODSERVICE,5499,Catering costs - provisions,101.80,0.00,101.80
"Regeneration, Economy and Growth",Corporate Property and Land,021234,Catering - Locomotion,Supplies and Services,324117,Provisions E324,04-Sep-2020,000007313393066,HOPWELLS LTD,5811,Catering costs - provisions,-21.92,0.00,-21.92
"Regeneration, Economy and Growth",Development and Housing,031576,B& B - Temp Accom,Supplies and Services,364320,Grants to Voluntary Organisations,04-Sep-2020,000007313393114,BUDGET H EXPRESS HOTEL,7011,Accommodation assistance,267.00,0.00,267.00
"Regeneration, Economy and Growth",Development and Housing,031500,Housing Solutions - Core Team,Supplies and Services,352001,Conference Expenses,04-Sep-2020,000007313393142,AYCLIFFE BIZ,7011,Conferencesseminars fees etc,114.00,0.00,114.00
"Regeneration, Economy and Growth",Development and Housing,031500,Housing Solutions - Core Team,Supplies and Services,352001,Conference Expenses,04-Sep-2020,000007313393160,AYCLIFFE BIZ,7011,Conferencesseminars fees etc,114.00,0.00,114.00
Children and Young Peoples Services,Head of Childrens Social Care,085624,Families First Crook,Supplies and Services,364301,Grants to Voluntary Organisations,04-Sep-2020,000007313393382,AMZNMktplace,5999,Hardship,29.89,4.98,24.91
Neighbourhoods and Climate Change,Community Protection,011035,Consumer Protection 011035,Employees,040149,Recruitment Instruction and Training,04-Sep-2020,000007313393576,PAYPAL ITSTRAINING,8299,Training-all costs,211.20,0.00,211.20
Children and Young Peoples Services,Head of Education and Skills,071802,Louisa Cent Nursery,Supplies and Services,324117,Provisions E324,04-Sep-2020,000007313393726,ASDA SUPERSTORE,5411,Catering costs - provisions,21.75,0.00,21.75
Children and Young Peoples Services,Head of Education and Skills,071802,Louisa Cent Nursery,Supplies and Services,324117,Provisions E324,04-Sep-2020,000007313393730,ASDA SUPERSTORE,5411,Catering costs - provisions,41.00,0.00,41.00
Children and Young Peoples Services,Head of Education and Skills,071802,Louisa Cent Nursery,Supplies and Services,328041,Clothing uniforms and laundry E328,04-Sep-2020,000007313393736,ARGOS LTD,5310,Clothing uniforms and laundry,59.97,0.00,59.97
Children and Young Peoples Services,Head of Childrens Social Care,085333,Coxhoe Satelite Home,Supplies and Services,324117,Provisions E324,04-Sep-2020,000007313393788,TESCO STORES 2371,5411,Catering costs - provisions,50.61,0.00,50.61
"Regeneration, Economy and Growth",Corporate Property and Land,030691,Catering - Durham Dales Centre,Supplies and Services,324117,Provisions E324,04-Sep-2020,000007313393990,HOPWELLS LTD,5811,Catering costs - provisions,67.49,0.00,67.49
"Regeneration, Economy and Growth",Corporate Property and Land,030691,Catering - Durham Dales Centre,Supplies and Services,324117,Provisions E324,04-Sep-2020,000007313394002,JR HOLLAND FOODSERVICE,5499,Catering costs - provisions,11.22,0.00,11.22
"Regeneration, Economy and Growth",Corporate Property and Land,030691,Catering - Durham Dales Centre,Supplies and Services,324117,Provisions E324,04-Sep-2020,000007313394026,JR HOLLAND FOODSERVICE,5499,Catering costs - provisions,73.03,0.00,73.03
"Regeneration, Economy and Growth",Development and Housing,031576,B& B - Temp Accom,Supplies and Services,364320,Grants to Voluntary Organisations,04-Sep-2020,000007313394102,WWW.HOTEL52.CO.UK,7011,Accommodation assistance,81.00,0.00,81.00
Adult and Health Services,Head of Adults,055643,Hawthorn House LD Respite Unit,Supplies and Services,324117,Provisions E324,04-Sep-2020,000007313394172,HOPWELLS LTD,5811,Catering costs - provisions,8.46,1.41,7.05
Adult and Health Services,Head of Adults,055643,Hawthorn House LD Respite Unit,Supplies and Services,324117,Provisions E324,04-Sep-2020,000007313394172 - 1,HOPWELLS LTD,5811,Catering costs - provisions,54.22,,54.22
Adult and Health Services,Head of Adults,055643,Hawthorn House LD Respite Unit,Supplies and Services,324117,Provisions E324,04-Sep-2020,000007313394184,JR HOLLAND FOODSERVICE,5499,Catering costs - provisions,15.33,0.00,15.33
Adult and Health Services,Head of Adults,055643,Hawthorn House LD Respite Unit,Supplies and Services,324117,Provisions E324,04-Sep-2020,000007313394194,JR HOLLAND FOODSERVICE,5499,Catering costs - provisions,21.76,0.00,21.76
Children and Young Peoples Services,Head of Early Help Inclusion & Vulnerable Children.,085954,Walworth,Transfer Payments,515140,Social Services Clients,04-Sep-2020,000007313394442,Nike,5655,Clothing allowances,84.95,14.16,70.79
"Regeneration, Economy and Growth",Culture Sport and Tourism,054235,Bishop Auckland Town Hall Cafe,Supplies and Services,324117,Provisions E324,04-Sep-2020,000007313394658,HOPWELLS LTD,5811,Catering costs - provisions,58.92,0.00,58.92
"Regeneration, Economy and Growth",Culture Sport and Tourism,054235,Bishop Auckland Town Hall Cafe,Supplies and Services,324117,Provisions E324,04-Sep-2020,000007313394688,HOPWELLS LTD,5811,Catering costs - provisions,112.70,0.00,112.70
"Regeneration, Economy and Growth",Culture Sport and Tourism,054235,Bishop Auckland Town Hall Cafe,Supplies and Services,324117,Provisions E324,04-Sep-2020,000007313394700,JR HOLLAND FOODSERVICE,5499,Catering costs - provisions,48.40,0.00,48.40
"Regeneration, Economy and Growth",Culture Sport and Tourism,054235,Bishop Auckland Town Hall Cafe,Supplies and Services,324117,Provisions E324,04-Sep-2020,000007313394718,JR HOLLAND FOODSERVICE,5499,Catering costs - provisions,111.72,0.00,111.72
"Regeneration, Economy and Growth",Culture Sport and Tourism,054235,Bishop Auckland Town Hall Cafe,Supplies and Services,324117,Provisions E324,04-Sep-2020,000007313394730,JR HOLLAND FOODSERVICE,5499,Catering costs - provisions,7.99,0.00,7.99
"Regeneration, Economy and Growth",Culture Sport and Tourism,054235,Bishop Auckland Town Hall Cafe,Supplies and Services,324117,Provisions E324,04-Sep-2020,000007313394746,HOPWELLS LTD,5811,Catering costs - provisions,-11.84,0.00,-11.84
Children and Young Peoples Services,Head of Childrens Social Care,085332,Middlestone Moor CU,Supplies and Services,332047,Printing Stationery and Gen Off Exps,04-Sep-2020,000007313395054,Vue Entertainment Ltd,7832,Stationery,9.98,0.00,9.98
Children and Young Peoples Services,Head of Childrens Social Care,085332,Middlestone Moor CU,Supplies and Services,324117,Provisions E324,04-Sep-2020,000007313395076,KEN WARNE LTD (O5),5411,Catering costs - provisions,6.25,0.00,6.25
Children and Young Peoples Services,Head of Childrens Social Care,085332,Middlestone Moor CU,Supplies and Services,348037,Subsistence E348,04-Sep-2020,000007313395094,MCDONALDS,5812,Subsistence,9.57,0.00,9.57
"Regeneration, Economy and Growth",Development and Housing,031576,B& B - Temp Accom,Supplies and Services,364320,Grants to Voluntary Organisations,04-Sep-2020,000007313395236,BUDGET H EXPRESS HOTEL,7011,Accommodation assistance,85.14,14.19,70.95
"Regeneration, Economy and Growth",Development and Housing,031576,B& B - Temp Accom,Supplies and Services,364320,Grants to Voluntary Organisations,04-Sep-2020,000007313395236 - 1,BUDGET H EXPRESS HOTEL,7011,Accommodation assistance,212.86,,212.86
Children and Young Peoples Services,Head of Childrens Social Care,085333,Coxhoe Satelite Home,Supplies and Services,304221,Equipment and Materials,04-Sep-2020,000007313395262,B & Q 1343,5200,Direct materials,12.97,0.00,12.97
Children and Young Peoples Services,Head of Childrens Social Care,085333,Coxhoe Satelite Home,Supplies and Services,324117,Provisions E324,04-Sep-2020,000007313395280,CO-OP GROUP 310016,5411,Catering costs - provisions,5.55,0.00,5.55
Children and Young Peoples Services,Head of Childrens Social Care,085352,Tow Law CU,Supplies and Services,344033,Telephones,04-Sep-2020,000007313395426,VESTA VODAFONE,4814,Telephones general-all costs,10.00,0.00,10.00
Children and Young Peoples Services,Head of Education and Skills,071802,Louisa Cent Nursery,Supplies and Services,324117,Provisions E324,04-Sep-2020,000007313395492,ASDA SUPERSTORE,5411,Catering costs - provisions,123.00,0.00,123.00
Children and Young Peoples Services,Head of Education and Skills,071802,Louisa Cent Nursery,Supplies and Services,304221,Equipment and Materials,04-Sep-2020,000007313395506,B&Q DIRECT,5200,Direct materials,94.43,0.00,94.43
Children and Young Peoples Services,Head of Childrens Social Care,085331,New Lea Childrens Home,Supplies and Services,308011,Furniture,04-Sep-2020,000007313395964,SURPLUS STOCK & FACTOR,5719,Furniture repair and replacement,395.00,0.00,395.00
Adult and Health Services,Commissioning inc Supporting People,052100,Supporting the Provider Market,Supplies and Services,384999,Miscellaneous Expenses,04-Sep-2020,000007313395970,Amazon.co.uk KO8OF1KG5,5969,Other expenses,33.75,0.00,33.75
"Regeneration, Economy and Growth",Corporate Property and Land,021235,Catering - Wharton Park,Supplies and Services,324117,Provisions E324,04-Sep-2020,000007313396118,JR HOLLAND FOODSERVICE,5499,Catering costs - provisions,28.23,0.00,28.23
"Regeneration, Economy and Growth",Development and Housing,030771,Durham Advance Flexible Fund,Supplies and Services,304403,Equipment and Materials,04-Sep-2020,000007313396478,SP TATTI LASHES,5734,Other consumables,104.46,17.41,87.05
"Regeneration, Economy and Growth",Development and Housing,030771,Durham Advance Flexible Fund,Supplies and Services,304403,Equipment and Materials,04-Sep-2020,000007313396478 - 1,SP TATTI LASHES,5734,Other consumables,0.03,,0.03
Children and Young Peoples Services,Head of Early Help Inclusion & Vulnerable Children.,085810,CDYJS - Interventions Team,Supplies and Services,328041,Clothing uniforms and laundry E328,04-Sep-2020,000007313396518,PRINTERPIX UK LIMITED,5699,Clothing uniforms and laundry,24.15,0.00,24.15
Children and Young Peoples Services,Head of Education and Skills,070264,EDC Premises,Supplies and Services,384956,Miscellaneous Expenses,04-Sep-2020,000007317009418,TVLICENSING.CO.UK,7392,Licences,157.50,0.00,157.50
"Regeneration, Economy and Growth",Culture Sport and Tourism,010601,Spennymoor Leisure Cr - General,Supplies and Services,372009,Subscriptions E372,04-Sep-2020,000007317009420,TVLICENSING.CO.UK,7392,Subscriptions 372009,157.50,0.00,157.50
"Regeneration, Economy and Growth",Culture Sport and Tourism,011266,Blackhill Park,Supplies and Services,384956,Miscellaneous Expenses,04-Sep-2020,000007317009424,TVLICENSING.CO.UK,7392,Licences,157.50,0.00,157.50
Neighbourhoods and Climate Change,Environmental Services,011060,C&G - Hardwick Park Catering,Supplies and Services,324117,Provisions E324,04-Sep-2020,000007317009660,BATLEYS PERTH,5300,Catering costs - provisions,139.56,23.26,116.30
Neighbourhoods and Climate Change,Environmental Services,011060,C&G - Hardwick Park Catering,Supplies and Services,324117,Provisions E324,04-Sep-2020,000007317009660 - 1,BATLEYS PERTH,5300,Catering costs - provisions,54.38,,54.38
Adult and Health Services,Head of Adults,055643,Hawthorn House LD Respite Unit,Supplies and Services,324117,Provisions E324,04-Sep-2020,000007317009894,BATLEYS PERTH,5300,Catering costs - provisions,22.26,3.71,18.55
Adult and Health Services,Head of Adults,055643,Hawthorn House LD Respite Unit,Supplies and Services,324117,Provisions E324,04-Sep-2020,000007317009894 - 1,BATLEYS PERTH,5300,Catering costs - provisions,110.22,,110.22
Adult and Health Services,Head of Adults,055643,Hawthorn House LD Respite Unit,Supplies and Services,324117,Provisions E324,04-Sep-2020,000007317009898,BATLEYS PERTH,5300,Catering costs - provisions,10.69,0.00,10.69
"Regeneration, Economy and Growth",Development and Housing,031500,Housing Solutions - Core Team,Supplies and Services,352001,Conference Expenses,05-Sep-2020,000007313390450,WWW.HOTEL52.CO.UK,7011,Conferencesseminars fees etc,351.99,0.00,351.99
Children and Young Peoples Services,Head of Childrens Social Care,085352,Tow Law CU,Supplies and Services,324117,Provisions E324,05-Sep-2020,000007313391188,ASDA STORES,5411,Catering costs - provisions,128.90,0.00,128.90
Children and Young Peoples Services,Head of Childrens Social Care,085352,Tow Law CU,Supplies and Services,304999,Equipment and Materials,05-Sep-2020,000007313391200,SUPERDRUG STORES PLC,5912,Misc equipment tools and materials,17.83,0.00,17.83
Children and Young Peoples Services,Head of Childrens Social Care,085332,Middlestone Moor CU,Supplies and Services,324117,Provisions E324,05-Sep-2020,000007313391390,LIDL GB SPENNYMOOR,5411,Catering costs - provisions,2.42,0.00,2.42
Children and Young Peoples Services,Head of Early Help Inclusion & Vulnerable Children.,085956,Lumley,Supplies and Services,324117,Provisions E324,05-Sep-2020,000007313391542,TESCO STORES 6329,5411,Catering costs - provisions,90.96,0.00,90.96
Children and Young Peoples Services,Head of Childrens Social Care,085334,West Rainton Satelite Home,Supplies and Services,304403,Equipment and Materials,05-Sep-2020,000007313392236,AMZNMktplace,5999,Other consumables,6.70,0.00,6.70
Children and Young Peoples Services,Head of Childrens Social Care,085334,West Rainton Satelite Home,Supplies and Services,324117,Provisions E324,05-Sep-2020,000007313394216,TESCO STORES 2371,5411,Catering costs - provisions,21.41,0.00,21.41
Children and Young Peoples Services,Head of Childrens Social Care,085333,Coxhoe Satelite Home,Supplies and Services,328041,Clothing uniforms and laundry E328,05-Sep-2020,000007313395160,MATALAN,5691,Clothing uniforms and laundry,30.50,0.00,30.50
"Regeneration, Economy and Growth",Culture Sport and Tourism,054233,Bishop Auckland Town Hall Library,Supplies and Services,324117,Provisions E324,05-Sep-2020,000007313395854,HERON FOODS LTD,5499,Catering costs - provisions,9.94,0.00,9.94
Children and Young Peoples Services,Head of Childrens Social Care,085333,Coxhoe Satelite Home,Supplies and Services,324117,Provisions E324,05-Sep-2020,000007317009992,B&M 681 - DURHAM,5399,Catering costs - provisions,9.98,0.00,9.98
Children and Young Peoples Services,Head of Childrens Social Care,085333,Coxhoe Satelite Home,Supplies and Services,324117,Provisions E324,05-Sep-2020,000007317009994,B&M 681 - DURHAM,5399,Catering costs - provisions,3.94,0.00,3.94
Children and Young Peoples Services,Head of Childrens Social Care,085333,Coxhoe Satelite Home,Supplies and Services,324117,Provisions E324,05-Sep-2020,000007317009998,B&M 681 - DURHAM,5399,Catering costs - provisions,9.98,0.00,9.98
Children and Young Peoples Services,Head of Childrens Social Care,085341,High Etherley Satelite Home,Supplies and Services,324117,Provisions E324,06-Sep-2020,000007313390176,TESCO STORES 6329,5411,Catering costs - provisions,13.89,0.00,13.89
Resources BK0010,Digital and Customer Services,065481,Technical Services 065481,Supplies and Services,304403,Equipment and Materials,06-Sep-2020,000007313390272,AMZNMktplace,5999,Other consumables,20.00,3.33,16.67
Resources BK0010,Digital and Customer Services,065481,Technical Services 065481,Supplies and Services,304403,Equipment and Materials,06-Sep-2020,000007313390280,AMZNMktplace,5999,Other consumables,20.00,3.33,16.67
Resources BK0010,Digital and Customer Services,065481,Technical Services 065481,Supplies and Services,304403,Equipment and Materials,06-Sep-2020,000007313390282,AMZNMktplace,5999,Other consumables,20.00,3.33,16.67
Resources BK0010,Digital and Customer Services,065481,Technical Services 065481,Supplies and Services,304403,Equipment and Materials,06-Sep-2020,000007313390290,AMZNMKTPLACE AMAZON.CO,5999,Other consumables,9.99,0.00,9.99
"Regeneration, Economy and Growth",Development and Housing,031500,Housing Solutions - Core Team,Supplies and Services,348037,Subsistence E348,06-Sep-2020,000007313390468,HOTEL 52 STANLEY,5812,Subsistence,114.00,0.00,114.00
Adult and Health Services,Head of Adults,055302,Durham Pathways,Supplies and Services,304403,Equipment and Materials,06-Sep-2020,000007313390586,AMZNMKTPLACE AMAZON.CO,5999,Other consumables,74.12,12.38,61.74
Children and Young Peoples Services,Head of Childrens Social Care,085342,16 Hickstead Rise (previously 9 Cedar Ave),Supplies and Services,324117,Provisions E324,06-Sep-2020,000007313390650,TESCO STORES 2916,5411,Catering costs - provisions,198.84,0.00,198.84
Children and Young Peoples Services,Head of Childrens Social Care,085352,Tow Law CU,Supplies and Services,324117,Provisions E324,06-Sep-2020,000007313391204,CO-OP GROUP 010989,5411,Catering costs - provisions,11.25,0.00,11.25
Children and Young Peoples Services,Head of Early Help Inclusion & Vulnerable Children.,085965,Barnard,Supplies and Services,324117,Provisions E324,06-Sep-2020,000007313391554,TESCO STORES 6329,5411,Catering costs - provisions,134.85,0.00,134.85
Children and Young Peoples Services,Head of Early Help Inclusion & Vulnerable Children.,085962,Aycliffe Secure - Durham,Transfer Payments,515140,Social Services Clients,06-Sep-2020,000007313391556,WWW.NIKESTORE.COM,5691,Clothing allowances,24.95,0.00,24.95
Children and Young Peoples Services,Head of Childrens Social Care,085511,Emergency Duty Team,Supplies and Services,324117,Provisions E324,06-Sep-2020,000007313391566,ASDA STORES LTD 4313,5411,Catering costs - provisions,43.19,0.00,43.19
Children and Young Peoples Services,Head of Education and Skills,071732,Dean Bank Childcare,Supplies and Services,324117,Provisions E324,06-Sep-2020,000007313392098,SAINSBURYS SACAT (2303,5411,Catering costs - provisions,18.31,0.00,18.31
Children and Young Peoples Services,Head of Childrens Social Care,085334,West Rainton Satelite Home,Supplies and Services,304999,Equipment and Materials,06-Sep-2020,000007313392248,WWW.INFINITEAIR.CO.UK,7991,Misc equipment tools and materials,53.85,0.00,53.85
Children and Young Peoples Services,Head of Childrens Social Care,085334,West Rainton Satelite Home,Supplies and Services,304259,Equipment and Materials,06-Sep-2020,000007313392260,CURRYS ONLINE,5732,Equipment-purchase and rental,218.99,0.00,218.99
Children and Young Peoples Services,Head of Early Help Inclusion & Vulnerable Children.,085962,Aycliffe Secure - Durham,Supplies and Services,348037,Subsistence E348,06-Sep-2020,000007313392358,Just Eat,5814,Subsistence,58.60,0.00,58.60
"Regeneration, Economy and Growth",Development and Housing,030771,Durham Advance Flexible Fund,Supplies and Services,304403,Equipment and Materials,06-Sep-2020,000007313392416,AMZNMKTPLACE AMAZON.CO,5999,Other consumables,354.80,0.00,354.80
Children and Young Peoples Services,Head of Education and Skills,071903,Early Years Sustainability,Supplies and Services,384999,Miscellaneous Expenses,06-Sep-2020,000007313392474,Amazon.co.uk 9070U1MO5,5969,Other expenses,17.49,0.00,17.49
Children and Young Peoples Services,Head of Childrens Social Care,085352,Tow Law CU,Supplies and Services,324117,Provisions E324,06-Sep-2020,000007313393244,CO-OP GROUP 010989,5411,Catering costs - provisions,25.39,0.00,25.39
Children and Young Peoples Services,Head of Childrens Social Care,085352,Tow Law CU,Supplies and Services,304999,Equipment and Materials,06-Sep-2020,000007313393252,Amazon Prime,5968,Misc equipment tools and materials,-7.99,0.00,-7.99
Adult and Health Services,Head of Adults,055643,Hawthorn House LD Respite Unit,Supplies and Services,324117,Provisions E324,06-Sep-2020,000007313393698,CO-OP GROUP 010465,5411,Catering costs - provisions,4.40,0.00,4.40
Children and Young Peoples Services,Head of Education and Skills,071802,Louisa Cent Nursery,Supplies and Services,304999,Equipment and Materials,06-Sep-2020,000007313393748,HOME BARGAINS,5251,Misc equipment tools and materials,26.40,0.00,26.40
Children and Young Peoples Services,Head of Childrens Social Care,085342,16 Hickstead Rise (previously 9 Cedar Ave),Supplies and Services,304403,Equipment and Materials,06-Sep-2020,000007313394362,AMZNMKTPLACE AMAZON.CO,5999,Other consumables,18.77,0.00,18.77
Children and Young Peoples Services,Head of Childrens Social Care,085342,16 Hickstead Rise (previously 9 Cedar Ave),Supplies and Services,324117,Provisions E324,06-Sep-2020,000007313394380,TESCO STORES 2916,5411,Catering costs - provisions,32.61,0.00,32.61
Children and Young Peoples Services,Head of Early Help Inclusion & Vulnerable Children.,085954,Walworth,Supplies and Services,304403,Equipment and Materials,06-Sep-2020,000007313394466,AMZNMktplace,5999,Other consumables,29.97,5.01,24.96
"Regeneration, Economy and Growth",Transport and Contracted Services,031704,Care Connect - CCTV Countywide,Supplies and Services,304259,Equipment and Materials,06-Sep-2020,000007313394794,AMZNMktplace,5999,Equipment-purchase and rental,123.73,20.62,103.11
"Regeneration, Economy and Growth",Transport and Contracted Services,031704,Care Connect - CCTV Countywide,Supplies and Services,304259,Equipment and Materials,06-Sep-2020,000007313394822,AMZNMktplace,5999,Equipment-purchase and rental,123.73,20.62,103.11
Children and Young Peoples Services,Head of Childrens Social Care,085332,Middlestone Moor CU,Supplies and Services,304999,Equipment and Materials,06-Sep-2020,000007313395112,HOME BARGAINS,5251,Misc equipment tools and materials,11.44,0.00,11.44
Children and Young Peoples Services,Head of Childrens Social Care,085333,Coxhoe Satelite Home,Supplies and Services,324117,Provisions E324,06-Sep-2020,000007313395288,CO-OP GROUP 310016,5411,Catering costs - provisions,6.80,0.00,6.80
Children and Young Peoples Services,Head of Childrens Social Care,085352,Tow Law CU,Supplies and Services,348037,Subsistence E348,06-Sep-2020,000007313395464,MCDONALDS,5812,Subsistence,19.38,0.00,19.38
Children and Young Peoples Services,Head of Childrens Social Care,085352,Tow Law CU,Supplies and Services,348037,Subsistence E348,06-Sep-2020,000007313395476,MCDONALDS,5812,Subsistence,16.29,0.00,16.29
Children and Young Peoples Services,Head of Education and Skills,071802,Louisa Cent Nursery,Supplies and Services,304221,Equipment and Materials,06-Sep-2020,000007313395514,B & Q 1332,5200,Direct materials,6.55,0.00,6.55
Adult and Health Services,Head of Adults,055302,Durham Pathways,Supplies and Services,304403,Equipment and Materials,06-Sep-2020,000007317009330,AMZNMKTPLACE AMAZON.CO,5999,Other consumables,27.82,0.00,27.82
"Regeneration, Economy and Growth",Development and Housing,031500,Housing Solutions - Core Team,Supplies and Services,384999,Miscellaneous Expenses,06-Sep-2020,000007317009750,ARGOS LTD,5310,Other expenses,-64.00,0.00,-64.00
Children and Young Peoples Services,Head of Childrens Social Care,085333,Coxhoe Satelite Home,Supplies and Services,324117,Provisions E324,06-Sep-2020,000007317010016,B&M 681 - DURHAM,5399,Catering costs - provisions,14.44,0.00,14.44
"Regeneration, Economy and Growth",Business Durham CL0850,030689,Inward Investment and Aftercare,Supplies and Services,304999,Equipment and Materials,07-Sep-2020,000007317009262,LinkedIn 5881355284,5968,Misc equipment tools and materials,45.06,0.00,45.06
Children and Young Peoples Services,Head of Education and Skills,071801,Selby Cottage Childcare Centre,Supplies and Services,384999,Miscellaneous Expenses,07-Sep-2020,000007317009266,Amazon.co.uk ZN0OX6LD5,5969,Other expenses,10.25,1.71,8.54
Children and Young Peoples Services,Head of Education and Skills,071801,Selby Cottage Childcare Centre,Supplies and Services,304403,Equipment and Materials,07-Sep-2020,000007317009272,AMZNMktplace,5999,Other consumables,119.99,20.00,99.99
Children and Young Peoples Services,Head of Education and Skills,071801,Selby Cottage Childcare Centre,Supplies and Services,304403,Equipment and Materials,07-Sep-2020,000007317009276,AMZNMktplace,5999,Other consumables,16.98,2.83,14.15
Resources BK0010,Digital and Customer Services,065432,Web Development Group,Supplies and Services,342053,Computers and Communications,07-Sep-2020,000007317009280,WPMU DEV INCSUBFEE.COM,7372,Computer software,14.42,0.00,14.42
Children and Young Peoples Services,Head of Childrens Social Care,085501,Child Care Cases Legal Expenses,Supplies and Services,304403,Equipment and Materials,07-Sep-2020,000007317009312,GEN REGISTER OFFICE,9399,Other consumables,28.00,0.00,28.00
Children and Young Peoples Services,Head of Education and Skills,075021,Youth Employment Initiative,Supplies and Services,364301,Grants to Voluntary Organisations,07-Sep-2020,000007317009324,DARLINGTON BC INTERNET,9399,Hardship,11.00,0.00,11.00
Children and Young Peoples Services,Head of Childrens Social Care,085342,16 Hickstead Rise (previously 9 Cedar Ave),Supplies and Services,348037,Subsistence E348,07-Sep-2020,000007317009336,NANDOS PERI PERI,5812,Subsistence,25.30,0.00,25.30
Children and Young Peoples Services,Head of Childrens Social Care,085342,16 Hickstead Rise (previously 9 Cedar Ave),Supplies and Services,348037,Subsistence E348,07-Sep-2020,000007317009340,NANDOS PERI PERI,5812,Subsistence,2.40,0.00,2.40
Children and Young Peoples Services,Head of Childrens Social Care,085342,16 Hickstead Rise (previously 9 Cedar Ave),Transport,235057,Public Transport,07-Sep-2020,000007317009344,ARRIVA UK BUS,4131,Staff travelling,90.00,0.00,90.00
Children and Young Peoples Services,Head of Childrens Social Care,085332,Middlestone Moor CU,Supplies and Services,324117,Provisions E324,07-Sep-2020,000007317009348,ALDI 74 774,5411,Catering costs - provisions,7.96,0.00,7.96
Children and Young Peoples Services,Head of Childrens Social Care,085333,Coxhoe Satelite Home,Supplies and Services,324117,Provisions E324,07-Sep-2020,000007317009400,CO-OP GROUP 010488,5411,Catering costs - provisions,8.76,0.00,8.76
Children and Young Peoples Services,Head of Childrens Social Care,085352,Tow Law CU,Supplies and Services,324117,Provisions E324,07-Sep-2020,000007317009406,CO-OP GROUP 010989,5411,Catering costs - provisions,4.40,0.00,4.40
"Regeneration, Economy and Growth",Development and Housing,030544,Rural Employability - Client Engagement,Supplies and Services,328041,Clothing uniforms and laundry E328,07-Sep-2020,000007317009428,WWW.LABEEBY.CO.UK,5691,Clothing uniforms and laundry,45.69,0.00,45.69
"Regeneration, Economy and Growth",Culture Sport and Tourism,054233,Bishop Auckland Town Hall Library,Supplies and Services,324117,Provisions E324,07-Sep-2020,000007317009436,HERON FOODS LTD,5499,Catering costs - provisions,9.18,0.00,9.18
"Regeneration, Economy and Growth",Culture Sport and Tourism,054233,Bishop Auckland Town Hall Library,Supplies and Services,324117,Provisions E324,07-Sep-2020,000007317009440,HERON FOODS LTD,5499,Catering costs - provisions,8.34,0.00,8.34
Neighbourhoods and Climate Change,Environmental Services,010367,C&G - South Grounds Maintenance,Supplies and Services,304221,Equipment and Materials,07-Sep-2020,000007317009442,BTL TIMBER AND HARDWAR,5099,Direct materials,140.02,0.00,140.02
"Regeneration, Economy and Growth",Development and Housing,031576,B& B - Temp Accom,Supplies and Services,364320,Grants to Voluntary Organisations,07-Sep-2020,000007317009444,HOTEL 52 STANLEY,5812,Accommodation assistance,188.00,0.00,188.00
"Regeneration, Economy and Growth",Development and Housing,031576,B& B - Temp Accom,Supplies and Services,364320,Grants to Voluntary Organisations,07-Sep-2020,000007317009446,BUDGET H EXPRESS HOTEL,7011,Accommodation assistance,25.44,4.24,21.20
"Regeneration, Economy and Growth",Development and Housing,031576,B& B - Temp Accom,Supplies and Services,364320,Grants to Voluntary Organisations,07-Sep-2020,000007317009446 - 1,BUDGET H EXPRESS HOTEL,7011,Accommodation assistance,63.56,,63.56
Children and Young Peoples Services,Head of Early Help Inclusion & Vulnerable Children.,085954,Walworth,Supplies and Services,328041,Clothing uniforms and laundry E328,07-Sep-2020,000007317009450,FOOTASYLUM PLC,5691,Clothing uniforms and laundry,21.99,0.00,21.99
"Regeneration, Economy and Growth",Development and Housing,030772,CLLD South,Supplies and Services,304259,Equipment and Materials,07-Sep-2020,000007317009474,SECURITY INDUSTRY,7393,Equipment-purchase and rental,190.00,0.00,190.00
"Regeneration, Economy and Growth",Culture Sport and Tourism,054775,Durham Town Hall 054775,Supplies and Services,304403,Equipment and Materials,07-Sep-2020,000007317009476,AMZNMKTPLACE AMAZON.CO,5999,Other consumables,13.99,2.33,11.66
"Regeneration, Economy and Growth",Development and Housing,031576,B& B - Temp Accom,Supplies and Services,364320,Grants to Voluntary Organisations,07-Sep-2020,000007317009508,HOTEL 52 STANLEY,5812,Accommodation assistance,68.00,0.00,68.00
"Regeneration, Economy and Growth",Development and Housing,031576,B& B - Temp Accom,Supplies and Services,364320,Grants to Voluntary Organisations,07-Sep-2020,000007317009514,BUDGET H EXPRESS HOTEL,7011,Accommodation assistance,89.00,0.00,89.00
"Regeneration, Economy and Growth",Development and Housing,031576,B& B - Temp Accom,Supplies and Services,364320,Grants to Voluntary Organisations,07-Sep-2020,000007317009518,BUDGET H EXPRESS HOTEL,7011,Accommodation assistance,500.00,0.00,500.00
"Regeneration, Economy and Growth",Development and Housing,031576,B& B - Temp Accom,Supplies and Services,364320,Grants to Voluntary Organisations,07-Sep-2020,000007317009520,BUDGET H EXPRESS HOTEL,7011,Accommodation assistance,34.00,0.00,34.00
Children and Young Peoples Services,Head of Education and Skills,071732,Dean Bank Childcare,Supplies and Services,324117,Provisions E324,07-Sep-2020,000007317009550,ASDA GROCERIES ONLINE,5411,Catering costs - provisions,45.53,0.00,45.53
Children and Young Peoples Services,Head of Education and Skills,071732,Dean Bank Childcare,Supplies and Services,324117,Provisions E324,07-Sep-2020,000007317009552,ASDA GROCERIES ONLINE,5411,Catering costs - provisions,53.26,0.00,53.26
Children and Young Peoples Services,Head of Childrens Social Care,085334,West Rainton Satelite Home,Supplies and Services,384999,Miscellaneous Expenses,07-Sep-2020,000007317009562,Amazon.co.uk M15MG8075,5969,Other expenses,17.74,0.00,17.74
Children and Young Peoples Services,Head of Childrens Social Care,085332,Middlestone Moor CU,Supplies and Services,348037,Subsistence E348,07-Sep-2020,000007317009576,GREGGS PLC,5812,Subsistence,3.20,0.00,3.20
"Regeneration, Economy and Growth",Development and Housing,031500,Housing Solutions - Core Team,Supplies and Services,352001,Conference Expenses,07-Sep-2020,000007317009626,WWW.HOTEL52.CO.UK,7011,Conferencesseminars fees etc,234.00,0.00,234.00
"Regeneration, Economy and Growth",Development and Housing,031500,Housing Solutions - Core Team,Supplies and Services,348037,Subsistence E348,07-Sep-2020,000007317009628,HOTEL 52 STANLEY,5812,Subsistence,232.00,0.00,232.00
"Regeneration, Economy and Growth",Development and Housing,031500,Housing Solutions - Core Team,Supplies and Services,348037,Subsistence E348,07-Sep-2020,000007317009632,HOTEL 52 STANLEY,5812,Subsistence,83.00,0.00,83.00
"Regeneration, Economy and Growth",Development and Housing,031500,Housing Solutions - Core Team,Supplies and Services,352001,Conference Expenses,07-Sep-2020,000007317009634,HI NEWCASTLE WASHI,7011,Conferencesseminars fees etc,325.00,0.00,325.00
Children and Young Peoples Services,Head of Childrens Social Care,085363,LAC & Permanence Team 3,Supplies and Services,338045,Services,07-Sep-2020,000007317009648,Durham County CNCL,9399,Legal expenses 338045,11.00,0.00,11.00
Neighbourhoods and Climate Change,Environmental Services,011060,C&G - Hardwick Park Catering,Supplies and Services,324117,Provisions E324,07-Sep-2020,000007317009662,FREEMAN CATERING BUTCH,5422,Catering costs - provisions,15.68,0.00,15.68
Neighbourhoods and Climate Change,Environmental Services,011060,C&G - Hardwick Park Catering,Supplies and Services,324117,Provisions E324,07-Sep-2020,000007317009664,FREEMAN CATERING BUTCH,5422,Catering costs - provisions,35.34,0.00,35.34
Neighbourhoods and Climate Change,Environmental Services,011060,C&G - Hardwick Park Catering,Premises,145009,Cleaning and Domestic Supplies,07-Sep-2020,000007317009666,ALLIANCE DISPOSABLES L,2842,Other cleaning and domestic costs,205.26,34.21,171.05
Neighbourhoods and Climate Change,Environmental Services,011060,C&G - Hardwick Park Catering,Premises,145009,Cleaning and Domestic Supplies,07-Sep-2020,000007317009666 - 1,ALLIANCE DISPOSABLES L,2842,Other cleaning and domestic costs,0.06,,0.06
Neighbourhoods and Climate Change,Environmental Services,011060,C&G - Hardwick Park Catering,Premises,145009,Cleaning and Domestic Supplies,07-Sep-2020,000007317009670,ALLIANCE DISPOSABLES L,2842,Other cleaning and domestic costs,325.90,54.32,271.58
"Regeneration, Economy and Growth",Corporate Property and Land,021234,Catering - Locomotion,Premises,145009,Cleaning and Domestic Supplies,07-Sep-2020,000007317009678,ALLIANCE DISPOSABLES L,2842,Other cleaning and domestic costs,62.14,10.36,51.78
"Regeneration, Economy and Growth",Corporate Property and Land,021234,Catering - Locomotion,Premises,145009,Cleaning and Domestic Supplies,07-Sep-2020,000007317009680,ALLIANCE DISPOSABLES L,2842,Other cleaning and domestic costs,269.66,44.95,224.71
"Regeneration, Economy and Growth",Development and Housing,031500,Housing Solutions - Core Team,Supplies and Services,348037,Subsistence E348,07-Sep-2020,000007317009708,HOTEL 52 STANLEY,5812,Subsistence,166.00,0.00,166.00
Children and Young Peoples Services,Head of Early Help Inclusion & Vulnerable Children.,071569,Woodhouse Close Childrens Centre,Supplies and Services,304259,Equipment and Materials,07-Sep-2020,000007317009742,WILKO RETAIL LIMITED,5399,Equipment-purchase and rental,19.69,0.00,19.69
Children and Young Peoples Services,Head of Childrens Social Care,085341,High Etherley Satelite Home,Supplies and Services,304999,Equipment and Materials,07-Sep-2020,000007317009768,HOME BARGAINS,5251,Misc equipment tools and materials,8.91,0.00,8.91
Children and Young Peoples Services,Head of Childrens Social Care,085333,Coxhoe Satelite Home,Supplies and Services,324117,Provisions E324,07-Sep-2020,000007317009814,CO-OP GROUP 310016,5411,Catering costs - provisions,5.10,0.00,5.10
Children and Young Peoples Services,Head of Childrens Social Care,085333,Coxhoe Satelite Home,Supplies and Services,324117,Provisions E324,07-Sep-2020,000007317009818,CO-OP GROUP 310016,5411,Catering costs - provisions,2.20,0.00,2.20
Adult and Health Services,Head of Adults,055301,Stanley Pathways,Supplies and Services,324117,Provisions E324,07-Sep-2020,000007317009838,ASDA SUPERSTORE,5411,Catering costs - provisions,2.39,0.00,2.39
Neighbourhoods and Climate Change,Environmental Services,010367,C&G - South Grounds Maintenance,Supplies and Services,304221,Equipment and Materials,07-Sep-2020,000007317009890,SCREWFIX DIRECT,5211,Direct materials,97.95,0.00,97.95
Adult and Health Services,Head of Adults,055643,Hawthorn House LD Respite Unit,Supplies and Services,324117,Provisions E324,07-Sep-2020,000007317009902,FREEMAN CATERING BUTCH,5422,Catering costs - provisions,38.71,0.00,38.71
Adult and Health Services,Head of Adults,055643,Hawthorn House LD Respite Unit,Supplies and Services,324117,Provisions E324,07-Sep-2020,000007317009904,JR HOLLAND FOODSERVICE,5499,Catering costs - provisions,15.98,0.00,15.98
Children and Young Peoples Services,Head of Early Help Inclusion & Vulnerable Children.,085957,Secure Management,Supplies and Services,304259,Equipment and Materials,07-Sep-2020,000007317009942,JD SPORTS INTERNET,5941,Equipment-purchase and rental,-27.00,0.00,-27.00
Resources BK0010,Business Support,052986,CYPS - Locality and Operational Support,Supplies and Services,384237,Miscellaneous Expenses,07-Sep-2020,000007317009952,WWW.ADVENTUREVALLEY.CO,7999,Recreational exps outings parties,60.00,0.00,60.00
Resources BK0010,Business Support,052986,CYPS - Locality and Operational Support,Supplies and Services,384237,Miscellaneous Expenses,07-Sep-2020,000007317009954,WWW.ADVENTUREVALLEY.CO,7999,Recreational exps outings parties,30.00,0.00,30.00
Resources BK0010,Business Support,052986,CYPS - Locality and Operational Support,Supplies and Services,384237,Miscellaneous Expenses,07-Sep-2020,000007317009956,WWW.ADVENTUREVALLEY.CO,7999,Recreational exps outings parties,30.00,0.00,30.00
Resources BK0010,Business Support,052986,CYPS - Locality and Operational Support,Supplies and Services,304403,Equipment and Materials,07-Sep-2020,000007317009960,AMZNMktplace,5999,Other consumables,31.98,5.34,26.64
Resources BK0010,Business Support,052986,CYPS - Locality and Operational Support,Supplies and Services,384999,Miscellaneous Expenses,07-Sep-2020,000007317009962,WWW.BEAMISH.ORG.UK,7922,Other expenses,44.50,0.00,44.50
Resources BK0010,Business Support,052986,CYPS - Locality and Operational Support,Supplies and Services,384999,Miscellaneous Expenses,07-Sep-2020,000007317009966,WWW.BEAMISH.ORG.UK,7922,Other expenses,19.50,0.00,19.50
"Regeneration, Economy and Growth",Business Durham CL0850,030690,Durham Dales Centre - Tourist Information Centre,Supplies and Services,304337,Equipment and Materials,07-Sep-2020,000007317009970,WWW.GAINSBOROUGHGIFTWA,5947,Consumables/items for resale,740.91,0.00,740.91
"Regeneration, Economy and Growth",Culture Sport and Tourism,054235,Bishop Auckland Town Hall Cafe,Supplies and Services,324117,Provisions E324,07-Sep-2020,000007317009978,JR HOLLAND FOODSERVICE,5499,Catering costs - provisions,48.40,0.00,48.40
Children and Young Peoples Services,Head of Childrens Social Care,085332,Middlestone Moor CU,Supplies and Services,304403,Equipment and Materials,07-Sep-2020,000007317009982,AMZNMktplace,5999,Other consumables,79.18,0.00,79.18
Children and Young Peoples Services,Head of Childrens Social Care,085332,Middlestone Moor CU,Supplies and Services,304403,Equipment and Materials,07-Sep-2020,000007317009984,AMZNMKTPLACE AMAZON.CO,5999,Other consumables,111.15,0.00,111.15
"Regeneration, Economy and Growth",Development and Housing,031576,B& B - Temp Accom,Supplies and Services,364320,Grants to Voluntary Organisations,07-Sep-2020,000007317010012,BUDGET H EXPRESS HOTEL,7011,Accommodation assistance,84.84,14.14,70.70
"Regeneration, Economy and Growth",Development and Housing,031576,B& B - Temp Accom,Supplies and Services,364320,Grants to Voluntary Organisations,07-Sep-2020,000007317010012 - 1,BUDGET H EXPRESS HOTEL,7011,Accommodation assistance,212.16,,212.16
Children and Young Peoples Services,Head of Education and Skills,071802,Louisa Cent Nursery,Supplies and Services,324117,Provisions E324,07-Sep-2020,000007317010024,ALDI 11 774,5411,Catering costs - provisions,26.22,0.00,26.22
Children and Young Peoples Services,Head of Education and Skills,070169,Durham SSP,Supplies and Services,384199,Miscellaneous Expenses,07-Sep-2020,000007317010034,JANSEN DISPLAY,5111,Other hired and contracted services,116.34,19.39,96.95
Children and Young Peoples Services,Head of Childrens Social Care,085332,Middlestone Moor CU,Supplies and Services,348037,Subsistence E348,07-Sep-2020,000007317010050,J D WETHERSPOON PLC,5812,Subsistence,22.20,0.00,22.20
Children and Young Peoples Services,Head of Early Help Inclusion & Vulnerable Children.,088107,Ferryhill & Newton Aycliffe 0-19 Community Family Hub,Supplies and Services,304403,Equipment and Materials,07-Sep-2020,000007317010054,AMZNMktplace,5999,Other consumables,127.80,21.32,106.48
"Regeneration, Economy and Growth",Development and Housing,031500,Housing Solutions - Core Team,Supplies and Services,304999,Equipment and Materials,07-Sep-2020,000007317010066,DUNCAN BELTON TA K,6513,Misc equipment tools and materials,350.00,0.00,350.00
Children and Young Peoples Services,Head of Childrens Social Care,085352,Tow Law CU,Supplies and Services,348037,Subsistence E348,07-Sep-2020,000007317010096,MCDONALD`S,5812,Subsistence,10.38,0.00,10.38
Adult and Health Services,Head of Adults,056601,Substance Misuse,Supplies and Services,304403,Equipment and Materials,07-Sep-2020,000007317010102,AMZNMktplace,5999,Other consumables,12.95,2.16,10.79
Neighbourhoods and Climate Change,Environmental Services,031200,North Pennines Core,Supplies and Services,304221,Equipment and Materials,07-Sep-2020,000007317010122,KPCM DISPLAY LTD,5099,Direct materials,60.07,0.00,60.07
Resources BK0010,Business Support,052986,CYPS - Locality and Operational Support,Supplies and Services,324117,Provisions E324,07-Sep-2020,000007317010132,CO-OP GROUP FOOD,5411,Catering costs - provisions,36.00,0.00,36.00
Resources BK0010,Business Support,052986,CYPS - Locality and Operational Support,Supplies and Services,324117,Provisions E324,07-Sep-2020,000007317010134,CO-OP GROUP FOOD,5411,Catering costs - provisions,5.00,0.00,5.00
Children and Young Peoples Services,Head of Childrens Social Care,085501,Child Care Cases Legal Expenses,Supplies and Services,304403,Equipment and Materials,07-Sep-2020,000007330979552,GEN REGISTER OFFICE,9399,Other consumables,-7.50,0.00,-7.50
"Regeneration, Economy and Growth",Development and Housing,031500,Housing Solutions - Core Team,Supplies and Services,352001,Conference Expenses,07-Sep-2020,000009180295127,AYCLIFFE BIZ,7011,Conferencesseminars fees etc,152.00,0.00,152.00
Children and Young Peoples Services,Head of Early Help Inclusion & Vulnerable Children.,088106,Ferryhill & N.Aycliffe 0-19 Targeted Family Support,Supplies and Services,304259,Equipment and Materials,07-Sep-2020,000009180295201,ARGOS LTD,5310,Equipment-purchase and rental,-16.00,0.00,-16.00
Adult and Health Services,Head of Adults,055643,Hawthorn House LD Respite Unit,Supplies and Services,324117,Provisions E324,07-Sep-2020,000009180295353,BATLEYS PERTH,5300,Catering costs - provisions,-1.56,0.00,-1.56
Resources BK0010,Digital and Customer Services,065432,Web Development Group,Supplies and Services,342053,Computers and Communications,08-Sep-2020,000007317009286,WPMU DEV INCSUBFEE.COM,7372,Computer software,0.40,0.00,0.40
"Regeneration, Economy and Growth",Business Durham CL0850,030689,Inward Investment and Aftercare,Supplies and Services,342222,Computers and Communications,08-Sep-2020,000009180294309,FASTHOSTS INTERNET,4816,Comp hardware purch-network servers,17.98,0.00,17.98
Children and Young Peoples Services,Head of Childrens Social Care,085341,High Etherley Satelite Home,Supplies and Services,304221,Equipment and Materials,08-Sep-2020,000009180294323,B & Q 1120,5200,Direct materials,25.72,0.00,25.72
Children and Young Peoples Services,Head of Childrens Social Care,085341,High Etherley Satelite Home,Supplies and Services,304221,Equipment and Materials,08-Sep-2020,000009180294325,HOMEBASE LTD 822,5200,Direct materials,47.25,0.00,47.25
Children and Young Peoples Services,Head of Childrens Social Care,085341,High Etherley Satelite Home,Supplies and Services,304221,Equipment and Materials,08-Sep-2020,000009180294329,HOMEBASE LTD 822,5200,Direct materials,3.00,0.00,3.00
Children and Young Peoples Services,Head of Education and Skills,071801,Selby Cottage Childcare Centre,Supplies and Services,304999,Equipment and Materials,08-Sep-2020,000009180294337,Amazon Prime OA2WH9BG5,5968,Misc equipment tools and materials,7.99,0.00,7.99
Children and Young Peoples Services,Head of Education and Skills,071801,Selby Cottage Childcare Centre,Supplies and Services,304403,Equipment and Materials,08-Sep-2020,000009180294353,AMZNMktplace,5999,Other consumables,74.52,12.42,62.10
Children and Young Peoples Services,Head of Education and Skills,071801,Selby Cottage Childcare Centre,Supplies and Services,304403,Equipment and Materials,08-Sep-2020,000009180294353 - 1,AMZNMktplace,5999,Other consumables,0.08,,0.08
Adult and Health Services,Commissioning inc Supporting People,052100,Supporting the Provider Market,Supplies and Services,304403,Equipment and Materials,08-Sep-2020,000009180294365,WWW.SAFIELD.CO.UK,5947,Other consumables,9.99,1.67,8.32
Resources BK0010,Legal & Democratic Services,067953,Coroner County Durham & Darlington,Supplies and Services,338057,Services,08-Sep-2020,000009180294369,WESSEX MEDICAL,5047,Medical fees 338057,63.00,10.50,52.50
Children and Young Peoples Services,Head of Education and Skills,075021,Youth Employment Initiative,Supplies and Services,364301,Grants to Voluntary Organisations,08-Sep-2020,000009180294439,GO NORTH EAST LIMITED,4131,Hardship,5.30,0.00,5.30
Adult and Health Services,Head of Adults,055302,Durham Pathways,Supplies and Services,384999,Miscellaneous Expenses,08-Sep-2020,000009180294465,Amazon.co.uk B007A6GK5,5969,Other expenses,9.87,1.65,8.22
Children and Young Peoples Services,Head of Childrens Social Care,085332,Middlestone Moor CU,Supplies and Services,324117,Provisions E324,08-Sep-2020,000009180294485,TESCO STORES 2371,5411,Catering costs - provisions,66.81,0.00,66.81
"Regeneration, Economy and Growth",Development and Housing,030776,LINKCD Flexible Fund,Transport,235057,Public Transport,08-Sep-2020,000009180294581,GO NORTH EAST LIMITED,4131,Staff travelling,7.00,0.00,7.00
"Regeneration, Economy and Growth",Culture Sport and Tourism,054233,Bishop Auckland Town Hall Library,Supplies and Services,324117,Provisions E324,08-Sep-2020,000009180294595,TESCO STORES 2971,5411,Catering costs - provisions,48.25,0.00,48.25
Children and Young Peoples Services,Head of Childrens Social Care,085332,Middlestone Moor CU,Supplies and Services,324117,Provisions E324,08-Sep-2020,000009180294601,ASDA SUPERSTORE 4987,5411,Catering costs - provisions,29.29,0.00,29.29
"Regeneration, Economy and Growth",Development and Housing,031576,B& B - Temp Accom,Supplies and Services,364320,Grants to Voluntary Organisations,08-Sep-2020,000009180294631,WWW.HOTEL52.CO.UK,7011,Accommodation assistance,94.00,0.00,94.00
"Regeneration, Economy and Growth",Development and Housing,031576,B& B - Temp Accom,Supplies and Services,364320,Grants to Voluntary Organisations,08-Sep-2020,000009180294637,BUDGET H EXPRESS HOTEL,7011,Accommodation assistance,25.44,4.24,21.20
"Regeneration, Economy and Growth",Development and Housing,031576,B& B - Temp Accom,Supplies and Services,364320,Grants to Voluntary Organisations,08-Sep-2020,000009180294637 - 1,BUDGET H EXPRESS HOTEL,7011,Accommodation assistance,63.56,,63.56
"Regeneration, Economy and Growth",Development and Housing,031576,B& B - Temp Accom,Supplies and Services,364320,Grants to Voluntary Organisations,08-Sep-2020,000009180294645,BUDGET H EXPRESS HOTEL,7011,Accommodation assistance,25.44,4.24,21.20
"Regeneration, Economy and Growth",Development and Housing,031576,B& B - Temp Accom,Supplies and Services,364320,Grants to Voluntary Organisations,08-Sep-2020,000009180294645 - 1,BUDGET H EXPRESS HOTEL,7011,Accommodation assistance,63.56,,63.56
Children and Young Peoples Services,Head of Early Help Inclusion & Vulnerable Children.,085957,Secure Management,Supplies and Services,304403,Equipment and Materials,08-Sep-2020,000009180294651,AMZNMktplace,5999,Other consumables,50.97,8.51,42.46
Children and Young Peoples Services,Head of Early Help Inclusion & Vulnerable Children.,085962,Aycliffe Secure - Durham,Supplies and Services,328041,Clothing uniforms and laundry E328,08-Sep-2020,000009180294657,SP KRUDDEVENTS,5691,Clothing uniforms and laundry,81.00,0.00,81.00
Children and Young Peoples Services,Head of Early Help Inclusion & Vulnerable Children.,085962,Aycliffe Secure - Durham,Supplies and Services,328041,Clothing uniforms and laundry E328,08-Sep-2020,000009180294665,SP KRUDDEVENTS,5691,Clothing uniforms and laundry,49.00,0.00,49.00
Children and Young Peoples Services,Head of Early Help Inclusion & Vulnerable Children.,085956,Lumley,Supplies and Services,328041,Clothing uniforms and laundry E328,08-Sep-2020,000009180294673,ARGOS LTD,5310,Clothing uniforms and laundry,29.93,0.00,29.93
Children and Young Peoples Services,Head of Early Help Inclusion & Vulnerable Children.,085954,Walworth,Supplies and Services,328041,Clothing uniforms and laundry E328,08-Sep-2020,000009180294675,FOOTASYLUM PLC,5691,Clothing uniforms and laundry,-21.99,0.00,-21.99
Children and Young Peoples Services,Head of Childrens Social Care,085362,LAC & Permanence Team 2,Supplies and Services,304403,Equipment and Materials,08-Sep-2020,000009180294731,WWW.DURHAM.GOV.UK,9399,Other consumables,22.00,0.00,22.00
"Regeneration, Economy and Growth",Development and Housing,031576,B& B - Temp Accom,Supplies and Services,364320,Grants to Voluntary Organisations,08-Sep-2020,000009180294787,BUDGET H EXPRESS HOTEL,7011,Accommodation assistance,178.00,0.00,178.00
Neighbourhoods and Climate Change,Environmental Services,010314,Nei.Prot - Bereavement Services,Supplies and Services,304259,Equipment and Materials,08-Sep-2020,000009180294925,Durham County CNCL,9399,Equipment-purchase and rental,11.00,0.00,11.00
"Regeneration, Economy and Growth",Development and Housing,031500,Housing Solutions - Core Team,Supplies and Services,304259,Equipment and Materials,08-Sep-2020,000009180294955,EAST DURHAM HOMES,9399,Equipment-purchase and rental,-83.47,0.00,-83.47
"Regeneration, Economy and Growth",Development and Housing,030771,Durham Advance Flexible Fund,Supplies and Services,384999,Miscellaneous Expenses,08-Sep-2020,000009180294971,ARGOS LTD,5310,Other expenses,178.95,0.00,178.95
"Regeneration, Economy and Growth",Development and Housing,031500,Housing Solutions - Core Team,Supplies and Services,348037,Subsistence E348,08-Sep-2020,000009180294997,HOTEL 52 STANLEY,5812,Subsistence,232.00,0.00,232.00
Children and Young Peoples Services,Head of Childrens Social Care,085363,LAC & Permanence Team 3,Supplies and Services,338045,Services,08-Sep-2020,000009180295003,WWW.DURHAM.GOV.UK,9399,Legal expenses 338045,44.00,0.00,44.00
"Regeneration, Economy and Growth",Development and Housing,031623,Rough Sleeping Fund,Supplies and Services,384999,Miscellaneous Expenses,08-Sep-2020,000009180295111,B&Q DIRECT,5200,Other expenses,80.00,0.00,80.00
"Regeneration, Economy and Growth",Development and Housing,031500,Housing Solutions - Core Team,Supplies and Services,352001,Conference Expenses,08-Sep-2020,000009180295131,HI NEWCASTLE WASHI,7011,Conferencesseminars fees etc,358.00,0.00,358.00
Children and Young Peoples Services,Head of Childrens Social Care,085626,Families First Shildon/Chilton,Supplies and Services,364301,Grants to Voluntary Organisations,08-Sep-2020,000009180295193,Park Head Hotel,7011,Hardship,62.40,0.00,62.40
Children and Young Peoples Services,Head of Education and Skills,071802,Louisa Cent Nursery,Supplies and Services,324117,Provisions E324,08-Sep-2020,000009180295269,ALDI STORES,5411,Catering costs - provisions,11.07,0.00,11.07
Children and Young Peoples Services,Head of Childrens Social Care,085333,Coxhoe Satelite Home,Supplies and Services,324117,Provisions E324,08-Sep-2020,000009180295273,ASDA SUPERSTORE 4987,5411,Catering costs - provisions,108.84,0.00,108.84
Children and Young Peoples Services,Head of Childrens Social Care,085342,16 Hickstead Rise (previously 9 Cedar Ave),Supplies and Services,324117,Provisions E324,08-Sep-2020,000009180295289,TESCO STORES 2916,5411,Catering costs - provisions,16.97,0.00,16.97
Children and Young Peoples Services,Head of Education and Skills,078554,Adult Skills-Main,Supplies and Services,304403,Equipment and Materials,08-Sep-2020,000009180295325,AMZNMktplace,5999,Other consumables,19.48,0.00,19.48
Neighbourhoods and Climate Change,Environmental Services,010301,C&G - North Grounds Maintenance,Supplies and Services,304403,Equipment and Materials,08-Sep-2020,000009180295377,BESCOL,5231,Other consumables,70.85,0.00,70.85
Children and Young Peoples Services,Head of Early Help Inclusion & Vulnerable Children.,088103,Consett & Stanley 0-19 Community Family Hub,Supplies and Services,304403,Equipment and Materials,08-Sep-2020,000009180295381,AMZNMktplace,5999,Other consumables,31.98,5.34,26.64
Children and Young Peoples Services,Head of Early Help Inclusion & Vulnerable Children.,088103,Consett & Stanley 0-19 Community Family Hub,Supplies and Services,384999,Miscellaneous Expenses,08-Sep-2020,000009180295385,Amazon.co.uk DR42S9285,5969,Other expenses,35.50,5.92,29.58
Resources BK0010,Digital and Customer Services,065335,School Services - Implementations,Supplies and Services,304639,Equipment and Materials,08-Sep-2020,000009180295391,REPLACEBASE,5732,Technicians-supplies,130.95,0.00,130.95
Resources BK0010,Digital and Customer Services,065335,School Services - Implementations,Supplies and Services,304259,Equipment and Materials,08-Sep-2020,000009180295395,WWW.TOOLSTATION.COM,5251,Equipment-purchase and rental,11.68,0.00,11.68
Resources BK0010,Digital and Customer Services,065335,School Services - Implementations,Supplies and Services,304259,Equipment and Materials,08-Sep-2020,000009180295397,WWW.TOOLSTATION.COM,5251,Equipment-purchase and rental,11.68,0.00,11.68
Resources BK0010,Business Support,052986,CYPS - Locality and Operational Support,Supplies and Services,324117,Provisions E324,08-Sep-2020,000009180295441,WWW.RUSSUM.CO.UK,5399,Catering costs - provisions,220.96,0.00,220.96
"Regeneration, Economy and Growth",Development and Housing,031576,B& B - Temp Accom,Supplies and Services,364320,Grants to Voluntary Organisations,08-Sep-2020,000009180295471,WWW.HOTEL52.CO.UK,7011,Accommodation assistance,234.00,0.00,234.00
"Regeneration, Economy and Growth",Development and Housing,031576,B& B - Temp Accom,Transport,235073,Public Transport,08-Sep-2020,000009180295479,BLUELINE TAXIS,4121,Travel-clients/students/children,47.00,0.00,47.00
Children and Young Peoples Services,Head of Childrens Social Care,085352,Tow Law CU,Supplies and Services,324117,Provisions E324,08-Sep-2020,000009180295517,ASDA GROCERIES ONLINE,5411,Catering costs - provisions,175.83,0.00,175.83
Children and Young Peoples Services,Head of Education and Skills,070169,Durham SSP,Supplies and Services,384199,Miscellaneous Expenses,08-Sep-2020,000009180295539,Amazon.co.uk 1A4FB8L05,5969,Other hired and contracted services,13.99,0.00,13.99
Children and Young Peoples Services,Head of Education and Skills,070169,Durham SSP,Supplies and Services,384199,Miscellaneous Expenses,08-Sep-2020,000009180295543,FINDEL EDUCATION,5969,Other hired and contracted services,111.56,18.59,92.97
Children and Young Peoples Services,Head of Early Help Inclusion & Vulnerable Children.,088107,Ferryhill & Newton Aycliffe 0-19 Community Family Hub,Supplies and Services,304403,Equipment and Materials,08-Sep-2020,000009180295593,AMZNMktplace,5999,Other consumables,41.94,6.99,34.95
Children and Young Peoples Services,Head of Early Help Inclusion & Vulnerable Children.,088107,Ferryhill & Newton Aycliffe 0-19 Community Family Hub,Supplies and Services,304403,Equipment and Materials,08-Sep-2020,000009180295593 - 1,AMZNMktplace,5999,Other consumables,0.03,,0.03
Resources BK0010,Internal Audit and Insurance,065111,Corporate Fraud,Supplies and Services,352001,Conference Expenses,08-Sep-2020,000009180295677,HOPIN,7399,Conferencesseminars fees etc,149.00,0.00,149.00
Resources BK0010,Internal Audit and Insurance,065111,Corporate Fraud,Supplies and Services,352001,Conference Expenses,08-Sep-2020,000009180295679,GOVNET EVENTS,8699,Conferencesseminars fees etc,354.00,0.00,354.00
Adult and Health Services,Head of Adults,055310,Positive Journeys (Tudhoe),Supplies and Services,324117,Provisions E324,08-Sep-2020,000009180295681,ASDA SUPERSTORE 4987,5411,Catering costs - provisions,6.98,0.00,6.98
Adult and Health Services,Head of Adults,055310,Positive Journeys (Tudhoe),Supplies and Services,328041,Clothing uniforms and laundry E328,08-Sep-2020,000009180295687,THE WORKS,5310,Clothing uniforms and laundry,20.00,0.00,20.00
Children and Young Peoples Services,Head of Education and Skills,076001,Music Service,Supplies and Services,304999,Equipment and Materials,08-Sep-2020,000009180295739,HOME BARGAINS SPENNYMO,5251,Misc equipment tools and materials,43.50,0.00,43.50
Children and Young Peoples Services,Head of Education and Skills,076001,Music Service,Supplies and Services,304999,Equipment and Materials,08-Sep-2020,000009180295743,HOME BARGAINS,5251,Misc equipment tools and materials,42.91,0.00,42.91
Children and Young Peoples Services,Head of Education and Skills,076001,Music Service,Supplies and Services,304999,Equipment and Materials,08-Sep-2020,000009180295747,HOME BARGAINS,5251,Misc equipment tools and materials,99.50,0.00,99.50
Children and Young Peoples Services,Head of Childrens Social Care,085333,Coxhoe Satelite Home,Supplies and Services,324117,Provisions E324,08-Sep-2020,000009180295827,CO-OP GROUP 310016,5411,Catering costs - provisions,4.00,0.00,4.00
Children and Young Peoples Services,Head of Childrens Social Care,085333,Coxhoe Satelite Home,Supplies and Services,344033,Telephones,08-Sep-2020,000009182809055,EE BROADBAND,4812,Telephones general-all costs,50.50,0.00,50.50
Neighbourhoods and Climate Change,Environmental Services,011060,C&G - Hardwick Park Catering,Supplies and Services,324117,Provisions E324,08-Sep-2020,000009182809337,BATLEYS PERTH,5300,Catering costs - provisions,-13.79,-2.30,-11.49
Children and Young Peoples Services,Head of Education and Skills,078554,Adult Skills-Main,Supplies and Services,304403,Equipment and Materials,08-Sep-2020,000009182809607,AMZNMKTPLACE AMAZON.CO,5999,Other consumables,34.97,0.00,34.97
"Regeneration, Economy and Growth",Culture Sport and Tourism,054235,Bishop Auckland Town Hall Cafe,Supplies and Services,324117,Provisions E324,08-Sep-2020,000009182809683,BATLEYS PERTH,5300,Catering costs - provisions,123.72,20.62,103.10
"Regeneration, Economy and Growth",Culture Sport and Tourism,054235,Bishop Auckland Town Hall Cafe,Supplies and Services,324117,Provisions E324,08-Sep-2020,000009182809683 - 1,BATLEYS PERTH,5300,Catering costs - provisions,149.77,,149.77
Children and Young Peoples Services,Head of Early Help Inclusion & Vulnerable Children.,085962,Aycliffe Secure - Durham,Transfer Payments,515140,Social Services Clients,09-Sep-2020,000009180294667,Amazon.co.uk UZ15A7UI5,5969,Clothing allowances,14.60,2.44,12.16
Resources BK0010,Digital and Customer Services,065327,School Services - Managed Service Unit (MSU),Supplies and Services,304639,Equipment and Materials,09-Sep-2020,000009180295401,AMZNMktplace,5999,Technicians-supplies,35.98,6.00,29.98
Children and Young Peoples Services,Head of Childrens Social Care,085341,High Etherley Satelite Home,Supplies and Services,324117,Provisions E324,09-Sep-2020,000009182808903,TESCO STORES 6329,5411,Catering costs - provisions,83.11,0.00,83.11
Children and Young Peoples Services,Head of Childrens Social Care,085341,High Etherley Satelite Home,Supplies and Services,324117,Provisions E324,09-Sep-2020,000009182808905,TESCO STORES 6329,5411,Catering costs - provisions,51.52,0.00,51.52
"Regeneration, Economy and Growth",Business Durham CL0850,030689,Inward Investment and Aftercare,Supplies and Services,304999,Equipment and Materials,09-Sep-2020,000009182808907,MAILCHIMP MONTHLY,5968,Misc equipment tools and materials,78.39,0.00,78.39
Children and Young Peoples Services,Head of Education and Skills,071801,Selby Cottage Childcare Centre,Supplies and Services,304403,Equipment and Materials,09-Sep-2020,000009182808917,AMZNMktplace,5999,Other consumables,29.88,5.04,24.84
"Regeneration, Economy and Growth",Development and Housing,031576,B& B - Temp Accom,Supplies and Services,352001,Conference Expenses,09-Sep-2020,000009182808921,BUDGET H EXPRESS HOTEL,7011,Conferencesseminars fees etc,50.88,8.48,42.40
"Regeneration, Economy and Growth",Development and Housing,031576,B& B - Temp Accom,Supplies and Services,364320,Grants to Voluntary Organisations,09-Sep-2020,000009182808921 - 1,BUDGET H EXPRESS HOTEL,7011,Accommodation assistance,127.12,,127.12
Adult and Health Services,Head of Adults,052765,Deprivation of Liberty,Supplies and Services,342033,Computers and Communications,09-Sep-2020,000009182808931,AMZNMktplace,5999,Computer hardware,26.95,4.49,22.46
Adult and Health Services,Head of Adults,053812,Maple Court Extra,Supplies and Services,304403,Equipment and Materials,09-Sep-2020,000009182808935,AMZNMktplace,5999,Other consumables,16.92,2.82,14.10
Children and Young Peoples Services,Head of Education and Skills,075021,Youth Employment Initiative,Supplies and Services,364301,Grants to Voluntary Organisations,09-Sep-2020,000009182808959,GO NORTH EAST LIMITED,4131,Hardship,68.00,0.00,68.00
Adult and Health Services,Head of Adults,055302,Durham Pathways,Supplies and Services,324117,Provisions E324,09-Sep-2020,000009182808963,SAINSBURYS SACAT 0776,5411,Catering costs - provisions,11.30,0.00,11.30
Children and Young Peoples Services,Head of Childrens Social Care,085342,16 Hickstead Rise (previously 9 Cedar Ave),Supplies and Services,324117,Provisions E324,09-Sep-2020,000009182808973,TESCO STORES 2916,5411,Catering costs - provisions,15.50,0.00,15.50
Dedicated Schools Grant BG0015,DSG High Needs Block,079050,SENSS-Sensory,Supplies and Services,304403,Equipment and Materials,09-Sep-2020,000009182808977,AMZNMKTPLACE AMAZON.CO,5999,Other consumables,65.88,0.00,65.88
Dedicated Schools Grant BG0015,DSG High Needs Block,079050,SENSS-Sensory,Supplies and Services,304403,Equipment and Materials,09-Sep-2020,000009182808981,AMZNMktplace,5999,Other consumables,32.94,0.00,32.94
Children and Young Peoples Services,Head of Childrens Social Care,085332,Middlestone Moor CU,Supplies and Services,324117,Provisions E324,09-Sep-2020,000009182808985,TESCO STORES 2916,5411,Catering costs - provisions,10.95,0.00,10.95
Children and Young Peoples Services,Head of Childrens Social Care,085332,Middlestone Moor CU,Supplies and Services,324117,Provisions E324,09-Sep-2020,000009182808989,ALDI 74 774,5411,Catering costs - provisions,3.17,0.00,3.17
Children and Young Peoples Services,Head of Childrens Social Care,085341,High Etherley Satelite Home,Supplies and Services,324117,Provisions E324,09-Sep-2020,000009182808997,TESCO STORES 6329,5411,Catering costs - provisions,25.50,0.00,25.50
Children and Young Peoples Services,Head of Early Help Inclusion & Vulnerable Children.,071670,Willington Childrens Centre,Premises,145023,Cleaning and Domestic Supplies,09-Sep-2020,000009182809091,WM MORRISONS STORE,5411,Cleaning and domestic materials,18.00,0.00,18.00
Children and Young Peoples Services,Head of Early Help Inclusion & Vulnerable Children.,079599,Psychological-HQ,Employees,040149,Recruitment Instruction and Training,09-Sep-2020,000009182809117,WWW.ELKLAN.CO.UK,8299,Training-all costs,66.00,0.00,66.00
"Regeneration, Economy and Growth",Development and Housing,030772,CLLD South,Supplies and Services,304403,Equipment and Materials,09-Sep-2020,000009182809145,WWW.COMMODIOUS.CO.UK,5734,Other consumables,42.00,7.00,35.00
Children and Young Peoples Services,Head of Childrens Social Care,085361,LAC & Permanence Team 1,Supplies and Services,304403,Equipment and Materials,09-Sep-2020,000009182809151,WWW.DURHAM.GOV.UK,9399,Other consumables,11.00,0.00,11.00
Children and Young Peoples Services,Head of Education and Skills,071732,Dean Bank Childcare,Supplies and Services,324117,Provisions E324,09-Sep-2020,000009182809237,B&M 035 - SHILDON,5399,Catering costs - provisions,113.36,0.00,113.36
"Regeneration, Economy and Growth",Development and Housing,031500,Housing Solutions - Core Team,Supplies and Services,304999,Equipment and Materials,09-Sep-2020,000009182809259,MY PROPERTY BOX LTD,6513,Misc equipment tools and materials,375.00,0.00,375.00
Children and Young Peoples Services,Head of Childrens Social Care,085334,West Rainton Satelite Home,Supplies and Services,328041,Clothing uniforms and laundry E328,09-Sep-2020,000009182809275,Gap Outlet Dalton,5651,Clothing uniforms and laundry,41.27,0.00,41.27
Children and Young Peoples Services,Head of Childrens Social Care,085334,West Rainton Satelite Home,Supplies and Services,328041,Clothing uniforms and laundry E328,09-Sep-2020,000009182809277,NEXT RETAIL LTD,5651,Clothing uniforms and laundry,9.55,0.00,9.55
Children and Young Peoples Services,Head of Childrens Social Care,085334,West Rainton Satelite Home,Supplies and Services,324117,Provisions E324,09-Sep-2020,000009182809279,MARKS&SPENCER PLC,5411,Catering costs - provisions,28.60,0.00,28.60
Children and Young Peoples Services,Head of Childrens Social Care,085334,West Rainton Satelite Home,Supplies and Services,304259,Equipment and Materials,09-Sep-2020,000009182809283,SPORTSDIRECT 178,5941,Equipment-purchase and rental,40.00,0.00,40.00
Children and Young Peoples Services,Head of Childrens Social Care,085363,LAC & Permanence Team 3,Supplies and Services,338045,Services,09-Sep-2020,000009182809285,ESSEX COUNTY COUNCI EC,9399,Legal expenses 338045,22.00,0.00,22.00
Children and Young Peoples Services,Head of Childrens Social Care,085363,LAC & Permanence Team 3,Supplies and Services,338045,Services,09-Sep-2020,000009182809289,SUNDERLAND CC,7523,Legal expenses 338045,22.00,0.00,22.00
Children and Young Peoples Services,Head of Childrens Social Care,085363,LAC & Permanence Team 3,Supplies and Services,338045,Services,09-Sep-2020,000009182809291,Durham County CNCL,9399,Legal expenses 338045,22.00,0.00,22.00
Children and Young Peoples Services,Head of Early Help Inclusion & Vulnerable Children.,085965,Barnard,Transfer Payments,515140,Social Services Clients,09-Sep-2020,000009182809295,FOOTASYLUM PLC,5691,Clothing allowances,74.99,0.00,74.99
Children and Young Peoples Services,Head of Early Help Inclusion & Vulnerable Children.,085962,Aycliffe Secure - Durham,Supplies and Services,324117,Provisions E324,09-Sep-2020,000009182809297,TESCO STORES 6329,5411,Catering costs - provisions,54.78,0.00,54.78
Children and Young Peoples Services,Head of Early Help Inclusion & Vulnerable Children.,088112,Seaham & Central Durham 0-19 Targeted Family Support,Supplies and Services,304403,Equipment and Materials,09-Sep-2020,000009182809313,AMZNMKTPLACE AMAZON.CO,5999,Other consumables,140.97,0.00,140.97
Children and Young Peoples Services,Head of Early Help Inclusion & Vulnerable Children.,088112,Seaham & Central Durham 0-19 Targeted Family Support,Supplies and Services,304403,Equipment and Materials,09-Sep-2020,000009182809317,AMZNMKTPLACE AMAZON.CO,5999,Other consumables,42.98,0.00,42.98
Neighbourhoods and Climate Change,Environmental Services,011060,C&G - Hardwick Park Catering,Supplies and Services,324117,Provisions E324,09-Sep-2020,000009182809333,JR HOLLAND FOODSERVICE,5499,Catering costs - provisions,23.15,0.00,23.15
"Regeneration, Economy and Growth",Corporate Property and Land,021234,Catering - Locomotion,Supplies and Services,324117,Provisions E324,09-Sep-2020,000009182809347,JR HOLLAND FOODSERVICE,5499,Catering costs - provisions,41.41,0.00,41.41
Children and Young Peoples Services,Head of Childrens Social Care,085331,New Lea Childrens Home,Supplies and Services,328041,Clothing uniforms and laundry E328,09-Sep-2020,000009182809409,Foot Locker Europe.com,5661,Clothing uniforms and laundry,94.99,0.00,94.99
"Regeneration, Economy and Growth",Development and Housing,031576,B& B - Temp Accom,Supplies and Services,364320,Grants to Voluntary Organisations,09-Sep-2020,000009182809441,HI NEWCASTLE WASHI,7011,Accommodation assistance,455.00,0.00,455.00
Children and Young Peoples Services,Head of Childrens Social Care,085352,Tow Law CU,Transport,215995,Running Costs of Vehicles,09-Sep-2020,000009182809475,PARKLANDS,5541,Vehicle running expenses,7.72,0.00,7.72
Children and Young Peoples Services,Head of Childrens Social Care,085352,Tow Law CU,Supplies and Services,348037,Subsistence E348,09-Sep-2020,000009182809477,MCDONALDS,5814,Subsistence,10.02,0.00,10.02
Children and Young Peoples Services,Head of Childrens Social Care,085334,West Rainton Satelite Home,Supplies and Services,384199,Miscellaneous Expenses,09-Sep-2020,000009182809537,ZAZZ THEATRE LTD,7911,Other hired and contracted services,28.95,0.00,28.95
Children and Young Peoples Services,Head of Education and Skills,071802,Louisa Cent Nursery,Supplies and Services,324117,Provisions E324,09-Sep-2020,000009182809575,ASDA SUPERSTORE,5411,Catering costs - provisions,36.60,0.00,36.60
Children and Young Peoples Services,Head of Childrens Social Care,085342,16 Hickstead Rise (previously 9 Cedar Ave),Supplies and Services,324117,Provisions E324,09-Sep-2020,000009182809583,TESCO STORES 2916,5411,Catering costs - provisions,40.00,0.00,40.00
"Regeneration, Economy and Growth",Corporate Property and Land,030691,Catering - Durham Dales Centre,Supplies and Services,324117,Provisions E324,09-Sep-2020,000009182809613,JR HOLLAND FOODSERVICE,5499,Catering costs - provisions,29.04,0.00,29.04
Adult and Health Services,Head of Adults,055306,Spennymoor Pathways,Supplies and Services,304999,Equipment and Materials,09-Sep-2020,000009182809615,HOME BARGAINS SPENNYMO,5251,Misc equipment tools and materials,1.18,0.00,1.18
Adult and Health Services,Head of Adults,055643,Hawthorn House LD Respite Unit,Supplies and Services,324117,Provisions E324,09-Sep-2020,000009182809621,JR HOLLAND FOODSERVICE,5499,Catering costs - provisions,15.80,2.63,13.17
Adult and Health Services,Head of Adults,055643,Hawthorn House LD Respite Unit,Supplies and Services,324117,Provisions E324,09-Sep-2020,000009182809623,JR HOLLAND FOODSERVICE,5499,Catering costs - provisions,9.74,0.00,9.74
Neighbourhoods and Climate Change,Environmental Services,031200,North Pennines Core,Employees,040149,Recruitment Instruction and Training,09-Sep-2020,000009182809625,WWW.PERMACULTURE.ORG.U,8398,Training-all costs,25.00,0.00,25.00
Children and Young Peoples Services,Head of Early Help Inclusion & Vulnerable Children.,088103,Consett & Stanley 0-19 Community Family Hub,Supplies and Services,304403,Equipment and Materials,09-Sep-2020,000009182809641,AMZNMktplace,5999,Other consumables,28.97,4.84,24.13
Children and Young Peoples Services,Head of Early Help Inclusion & Vulnerable Children.,088103,Consett & Stanley 0-19 Community Family Hub,Supplies and Services,304403,Equipment and Materials,09-Sep-2020,000009182809643,AMZNMktplace,5999,Other consumables,19.51,4.74,14.77
Children and Young Peoples Services,Head of Early Help Inclusion & Vulnerable Children.,088103,Consett & Stanley 0-19 Community Family Hub,Supplies and Services,304403,Equipment and Materials,09-Sep-2020,000009182809645,AMZNMktplace,5999,Other consumables,20.82,4.74,16.08
Children and Young Peoples Services,Head of Early Help Inclusion & Vulnerable Children.,088103,Consett & Stanley 0-19 Community Family Hub,Supplies and Services,304403,Equipment and Materials,09-Sep-2020,000009182809649,AMZNMktplace,5999,Other consumables,110.69,18.45,92.24
Resources BK0010,Digital and Customer Services,065335,School Services - Implementations,Supplies and Services,304639,Equipment and Materials,09-Sep-2020,000009182809663,REPLACEBASE,5732,Technicians-supplies,7.26,0.00,7.26
"Regeneration, Economy and Growth",Culture Sport and Tourism,054235,Bishop Auckland Town Hall Cafe,Supplies and Services,324117,Provisions E324,09-Sep-2020,000009182809687,JR HOLLAND FOODSERVICE,5499,Catering costs - provisions,273.45,0.00,273.45
Children and Young Peoples Services,Head of Education and Skills,076001,Music Service,Supplies and Services,304403,Equipment and Materials,09-Sep-2020,000009182809859,AMZNMktplace,5999,Other consumables,14.99,2.50,12.49
Children and Young Peoples Services,Head of Education and Skills,076001,Music Service,Supplies and Services,304999,Equipment and Materials,09-Sep-2020,000009182809865,HOME BARGAINS SPENNYMO,5251,Misc equipment tools and materials,29.50,0.00,29.50
Adult and Health Services,Head of Adults,055309,Peterlee Pathways,Supplies and Services,384999,Miscellaneous Expenses,09-Sep-2020,000009182809905,PETS AT HOME LTD,5995,Other expenses,6.00,0.00,6.00
Adult and Health Services,Head of Adults,055309,Peterlee Pathways,Supplies and Services,324117,Provisions E324,09-Sep-2020,000009182809907,B&M 212 - PETERLEE,5399,Catering costs - provisions,3.79,0.00,3.79
Children and Young Peoples Services,Head of Childrens Social Care,085334,West Rainton Satelite Home,Supplies and Services,324117,Provisions E324,09-Sep-2020,000009185828849,LIDL GB HOUGHTON LE S,5411,Catering costs - provisions,148.00,0.00,148.00
"Regeneration, Economy and Growth",Business Durham CL0850,030689,Inward Investment and Aftercare,Supplies and Services,304999,Equipment and Materials,10-Sep-2020,000009182808909,MAILCHIMP MONTHLY,5968,Misc equipment tools and materials,2.16,0.00,2.16
Children and Young Peoples Services,Head of Early Help Inclusion & Vulnerable Children.,088103,Consett & Stanley 0-19 Community Family Hub,Supplies and Services,304403,Equipment and Materials,10-Sep-2020,000009182809653,AMZNMktplace,5999,Other consumables,22.98,3.83,19.15
Children and Young Peoples Services,Head of Early Help Inclusion & Vulnerable Children.,088103,Consett & Stanley 0-19 Community Family Hub,Supplies and Services,304403,Equipment and Materials,10-Sep-2020,000009182809653 - 1,AMZNMktplace,5999,Other consumables,2.24,,2.24
Children and Young Peoples Services,Head of Early Help Inclusion & Vulnerable Children.,088103,Consett & Stanley 0-19 Community Family Hub,Supplies and Services,304403,Equipment and Materials,10-Sep-2020,000009182809659,AMZNMktplace,5999,Other consumables,74.68,12.46,62.22
Resources BK0010,Digital and Customer Services,065335,School Services - Implementations,Supplies and Services,304639,Equipment and Materials,10-Sep-2020,000009182809665,AMZNMktplace,5999,Technicians-supplies,13.90,2.32,11.58
"Regeneration, Economy and Growth",Business Durham CL0850,030689,Inward Investment and Aftercare,Third Party Payments,430100,Rendered by Private Contractors,10-Sep-2020,000009185827631,BLS monday.com,7399,Payments to sub-contractors,148.80,0.00,148.80
Children and Young Peoples Services,Head of Education and Skills,071801,Selby Cottage Childcare Centre,Supplies and Services,304403,Equipment and Materials,10-Sep-2020,000009185827689,AMZNMKTPLACE AMAZON.CO,5999,Other consumables,11.99,2.00,9.99
"Regeneration, Economy and Growth",Development and Housing,031576,B& B - Temp Accom,Supplies and Services,352001,Conference Expenses,10-Sep-2020,000009185827753,WWW.HOTEL52.CO.UK,7011,Conferencesseminars fees etc,22.26,3.71,18.55
"Regeneration, Economy and Growth",Development and Housing,031576,B& B - Temp Accom,Supplies and Services,352001,Conference Expenses,10-Sep-2020,000009185827753 - 1,WWW.HOTEL52.CO.UK,7011,Conferencesseminars fees etc,55.74,,55.74
Children and Young Peoples Services,Head of Education and Skills,075021,Youth Employment Initiative,Supplies and Services,336005,Advertising E336,10-Sep-2020,000009185827779,FACEBK R599ZVNSS2,7311,Advertising other than for staff,199.99,0.00,199.99
"Regeneration, Economy and Growth",Culture Sport and Tourism,054212,Stanley Library,Supplies and Services,304259,Equipment and Materials,10-Sep-2020,000009185827793,AMZNMktplace,5999,Equipment-purchase and rental,23.50,3.92,19.58
Neighbourhoods and Climate Change,Environmental Services,010367,C&G - South Grounds Maintenance,Supplies and Services,304403,Equipment and Materials,10-Sep-2020,000009185828027,MAXWELLS DIY,5231,Other consumables,52.50,8.75,43.75
"Regeneration, Economy and Growth",Development and Housing,030776,LINKCD Flexible Fund,Supplies and Services,324117,Provisions E324,10-Sep-2020,000009185828051,CO-OP GROUP FOOD,5411,Catering costs - provisions,8.40,0.00,8.40
Children and Young Peoples Services,Head of Childrens Social Care,085352,Tow Law CU,Supplies and Services,324117,Provisions E324,10-Sep-2020,000009185828065,NISA LOCAL,5411,Catering costs - provisions,1.14,0.00,1.14
Children and Young Peoples Services,Head of Childrens Social Care,085380,Operations Manager LAC Resources,Supplies and Services,328041,Clothing uniforms and laundry E328,10-Sep-2020,000009185828111,ARGOS LTD,5310,Clothing uniforms and laundry,73.91,0.00,73.91
Children and Young Peoples Services,Head of Childrens Social Care,085380,Operations Manager LAC Resources,Supplies and Services,328041,Clothing uniforms and laundry E328,10-Sep-2020,000009185828123,ARGOS LTD,5310,Clothing uniforms and laundry,263.00,0.00,263.00
"Regeneration, Economy and Growth",Culture Sport and Tourism,054233,Bishop Auckland Town Hall Library,Supplies and Services,324117,Provisions E324,10-Sep-2020,000009185828141,HERON FOODS LTD,5499,Catering costs - provisions,3.45,0.00,3.45
"Regeneration, Economy and Growth",Culture Sport and Tourism,054233,Bishop Auckland Town Hall Library,Supplies and Services,324117,Provisions E324,10-Sep-2020,000009185828157,TESCO STORES 2971,5411,Catering costs - provisions,7.00,0.00,7.00
"Regeneration, Economy and Growth",Development and Housing,030770,Durham Advance,Supplies and Services,328041,Clothing uniforms and laundry E328,10-Sep-2020,000009185828167,MATALAN.CO.UK,5691,Clothing uniforms and laundry,53.95,0.00,53.95
Children and Young Peoples Services,Head of Childrens Social Care,085332,Middlestone Moor CU,Supplies and Services,324117,Provisions E324,10-Sep-2020,000009185828187,WM MORRISONS STORE,5411,Catering costs - provisions,19.60,0.00,19.60
Neighbourhoods and Climate Change,Environmental Services,010367,C&G - South Grounds Maintenance,Supplies and Services,304221,Equipment and Materials,10-Sep-2020,000009185828215,BTL TIMBER AND HARDWAR,5099,Direct materials,23.28,0.00,23.28
Neighbourhoods and Climate Change,Environmental Services,010367,C&G - South Grounds Maintenance,Supplies and Services,304999,Equipment and Materials,10-Sep-2020,000009185828223,Snowballs,5251,Misc equipment tools and materials,5.00,0.00,5.00
Children and Young Peoples Services,Head of Early Help Inclusion & Vulnerable Children.,085954,Walworth,Transfer Payments,515140,Social Services Clients,10-Sep-2020,000009185828291,JD SPORTS INTERNET,5941,Clothing allowances,14.99,0.00,14.99
"Regeneration, Economy and Growth",Development and Housing,030772,CLLD South,Transport,235057,Public Transport,10-Sep-2020,000009185828413,ARRIVA UK BUS,4131,Staff travelling,19.10,0.00,19.10
"Regeneration, Economy and Growth",Development and Housing,030772,CLLD South,Transport,235057,Public Transport,10-Sep-2020,000009185828423,ARRIVA UK BUS,4131,Staff travelling,26.20,0.00,26.20
"Regeneration, Economy and Growth",Development and Housing,030772,CLLD South,Transport,235057,Public Transport,10-Sep-2020,000009185828433,ARRIVA UK BUS,4131,Staff travelling,26.20,0.00,26.20
Resources BK0010,Digital and Customer Services,065487,ICT Telephony Recharges,Supplies and Services,372009,Subscriptions E372,10-Sep-2020,000009185828563,NOMINET UK,7392,Subscriptions 372009,18.72,3.12,15.60
Children and Young Peoples Services,Head of Education and Skills,071732,Dean Bank Childcare,Supplies and Services,324117,Provisions E324,10-Sep-2020,000009185828611,SAINSBURYS SACAT (2303,5411,Catering costs - provisions,2.66,0.00,2.66
"Regeneration, Economy and Growth",Development and Housing,030771,Durham Advance Flexible Fund,Employees,040149,Recruitment Instruction and Training,10-Sep-2020,000009185828739,FUTURELEARN.COM,8299,Training-all costs,499.00,0.00,499.00
Children and Young Peoples Services,Head of Education and Skills,071903,Early Years Sustainability,Employees,040149,Recruitment Instruction and Training,10-Sep-2020,000009185828789,SAFEGUARDING IN SCHOOL,8299,Training-all costs,59.00,0.00,59.00
Children and Young Peoples Services,Head of Early Help Inclusion & Vulnerable Children.,085957,Secure Management,Supplies and Services,324117,Provisions E324,10-Sep-2020,000009185828859,TESCO STORES 6329,5411,Catering costs - provisions,90.87,0.00,90.87
Neighbourhoods and Climate Change,Environmental Services,010367,C&G - South Grounds Maintenance,Supplies and Services,304403,Equipment and Materials,10-Sep-2020,000009185828891,MAXWELLS DIY,5231,Other consumables,9.00,0.00,9.00
Children and Young Peoples Services,Head of Childrens Social Care,085621,Families First Aycliffe,Supplies and Services,364301,Grants to Voluntary Organisations,10-Sep-2020,000009185829153,SAINSBURYS SACAT 2199,5411,Hardship,16.00,0.00,16.00
Children and Young Peoples Services,Head of Childrens Social Care,085341,High Etherley Satelite Home,Supplies and Services,324117,Provisions E324,10-Sep-2020,000009185829217,IZ The Sweet Boutique,5499,Catering costs - provisions,5.60,0.00,5.60
Neighbourhoods and Climate Change,Community Protection,011035,Consumer Protection 011035,Supplies and Services,338048,Services,10-Sep-2020,000009185829325,HMCOURTS-SERVICE.G,9222,Court costs 338048,226.00,0.00,226.00
Adult and Health Services,Head of Adults,055643,Hawthorn House LD Respite Unit,Supplies and Services,324117,Provisions E324,10-Sep-2020,000009185829385,SAINSBURYS 0776,5411,Catering costs - provisions,14.10,0.00,14.10
Adult and Health Services,Head of Adults,055643,Hawthorn House LD Respite Unit,Supplies and Services,324117,Provisions E324,10-Sep-2020,000009185829395,CO-OP GROUP 010465,5411,Catering costs - provisions,2.00,0.00,2.00
Children and Young Peoples Services,Head of Childrens Social Care,085342,16 Hickstead Rise (previously 9 Cedar Ave),Supplies and Services,340001,Postages E340,10-Sep-2020,000009185829441,PPOINT_ YOUNGS NEWSAGE,5411,Postages,2.18,0.00,2.18
Children and Young Peoples Services,Head of Childrens Social Care,085352,Tow Law CU,Supplies and Services,324117,Provisions E324,10-Sep-2020,000009185829491,ASDA SUPERSTORE 4987,5411,Catering costs - provisions,72.50,0.00,72.50
Children and Young Peoples Services,Head of Childrens Social Care,085352,Tow Law CU,Supplies and Services,324117,Provisions E324,10-Sep-2020,000009185829501,ASDA SUPERSTORE 4987,5411,Catering costs - provisions,63.14,0.00,63.14
Children and Young Peoples Services,Head of Childrens Social Care,085352,Tow Law CU,Supplies and Services,324117,Provisions E324,10-Sep-2020,000009185829507,NISA LOCAL,5411,Catering costs - provisions,23.87,0.00,23.87
Neighbourhoods and Climate Change,Environmental Services,031200,North Pennines Core,Supplies and Services,332047,Printing Stationery and Gen Off Exps,10-Sep-2020,000009185829525,ROBSON PRINT LTD,5943,Stationery,28.60,0.00,28.60
Children and Young Peoples Services,Head of Early Help Inclusion & Vulnerable Children.,088103,Consett & Stanley 0-19 Community Family Hub,Supplies and Services,304403,Equipment and Materials,10-Sep-2020,000009185829587,AMZNMktplace,5999,Other consumables,18.99,3.17,15.82
Resources BK0010,Digital and Customer Services,065335,School Services - Implementations,Supplies and Services,304639,Equipment and Materials,10-Sep-2020,000009185829597,WWW.ALIEXPRESS.COM,5964,Technicians-supplies,14.25,0.00,14.25
"Regeneration, Economy and Growth",Development and Housing,030771,Durham Advance Flexible Fund,Employees,040149,Recruitment Instruction and Training,10-Sep-2020,000009185829615,VUE NCS CITB HS&E TEST,8299,Training-all costs,21.00,0.00,21.00
"Regeneration, Economy and Growth",Culture Sport and Tourism,054235,Bishop Auckland Town Hall Cafe,Supplies and Services,324117,Provisions E324,10-Sep-2020,000009185829663,JR HOLLAND FOODSERVICE,5499,Catering costs - provisions,7.99,0.00,7.99
"Regeneration, Economy and Growth",Development and Housing,031576,B& B - Temp Accom,Supplies and Services,364320,Grants to Voluntary Organisations,10-Sep-2020,000009185829741,WWW.HOTEL52.CO.UK,7011,Accommodation assistance,444.00,0.00,444.00
Children and Young Peoples Services,Head of Childrens Social Care,085342,16 Hickstead Rise (previously 9 Cedar Ave),Supplies and Services,324117,Provisions E324,10-Sep-2020,000009185829791,ASDA STORES LTD 4313,5411,Catering costs - provisions,30.15,0.00,30.15
Children and Young Peoples Services,Head of Education and Skills,071802,Louisa Cent Nursery,Supplies and Services,324117,Provisions E324,10-Sep-2020,000009185829801,ASDA GROCERIES ONLINE,5411,Catering costs - provisions,128.63,0.00,128.63
Children and Young Peoples Services,Head of Education and Skills,071802,Louisa Cent Nursery,Supplies and Services,324117,Provisions E324,10-Sep-2020,000009185829817,LIDL GB CONSETT,5411,Catering costs - provisions,97.86,0.00,97.86
"Regeneration, Economy and Growth",Development and Housing,031500,Housing Solutions - Core Team,Supplies and Services,352001,Conference Expenses,10-Sep-2020,000009185829927,WWW.HOTEL52.CO.UK,7011,Conferencesseminars fees etc,337.00,0.00,337.00
"Regeneration, Economy and Growth",Development and Housing,031500,Housing Solutions - Core Team,Supplies and Services,352001,Conference Expenses,10-Sep-2020,000009185829937,BUDGET H EXPRESS HOTEL,7011,Conferencesseminars fees etc,356.00,0.00,356.00
Adult and Health Services,Head of Adults,055309,Peterlee Pathways,Supplies and Services,324117,Provisions E324,10-Sep-2020,000009185830315,ALDI STORES,5411,Catering costs - provisions,2.98,0.00,2.98
Children and Young Peoples Services,Head of Education and Skills,071801,Selby Cottage Childcare Centre,Supplies and Services,304403,Equipment and Materials,10-Sep-2020,000009189503761,AMZNMKTPLACE AMAZON.CO,5999,Other consumables,11.99,2.00,9.99
Neighbourhoods and Climate Change,Environmental Services,011060,C&G - Hardwick Park Catering,Supplies and Services,324117,Provisions E324,10-Sep-2020,000009189505163,BATLEYS PERTH,5300,Catering costs - provisions,72.78,12.13,60.65
Neighbourhoods and Climate Change,Environmental Services,011060,C&G - Hardwick Park Catering,Supplies and Services,324117,Provisions E324,10-Sep-2020,000009189505163 - 1,BATLEYS PERTH,5300,Catering costs - provisions,123.48,,123.48
Children and Young Peoples Services,Head of Childrens Social Care,085352,Tow Law CU,Supplies and Services,328041,Clothing uniforms and laundry E328,10-Sep-2020,000009189505713,ARGOS LTD,5310,Clothing uniforms and laundry,48.94,0.00,48.94
"Regeneration, Economy and Growth",Corporate Property and Land,030691,Catering - Durham Dales Centre,Supplies and Services,324117,Provisions E324,10-Sep-2020,000009189505725,BATLEYS PERTH,5300,Catering costs - provisions,46.38,7.73,38.65
"Regeneration, Economy and Growth",Corporate Property and Land,030691,Catering - Durham Dales Centre,Supplies and Services,324117,Provisions E324,10-Sep-2020,000009189505725 - 1,BATLEYS PERTH,5300,Catering costs - provisions,45.86,,45.86
"Regeneration, Economy and Growth",Corporate Property and Land,021235,Catering - Wharton Park,Supplies and Services,324117,Provisions E324,10-Sep-2020,000009189506153,BATLEYS PERTH,5300,Catering costs - provisions,244.80,40.80,204.00
"Regeneration, Economy and Growth",Corporate Property and Land,021235,Catering - Wharton Park,Supplies and Services,324117,Provisions E324,10-Sep-2020,000009189506153 - 1,BATLEYS PERTH,5300,Catering costs - provisions,12.41,,12.41
Neighbourhoods and Climate Change,Environmental Services,011067,Nei.Prot - Pest Control,Supplies and Services,304403,Equipment and Materials,11-Sep-2020,000009185827721,AMZNMktplace,5999,Other consumables,50.97,0.00,50.97
Children and Young Peoples Services,Head of Childrens Social Care,085341,High Etherley Satelite Home,Supplies and Services,324117,Provisions E324,11-Sep-2020,000009189503593,ASDA STORES,5411,Catering costs - provisions,34.50,0.00,34.50
Children and Young Peoples Services,Head of Childrens Social Care,085341,High Etherley Satelite Home,Supplies and Services,324117,Provisions E324,11-Sep-2020,000009189503605,ASDA STORES,5411,Catering costs - provisions,26.59,0.00,26.59
Children and Young Peoples Services,Head of Education and Skills,071801,Selby Cottage Childcare Centre,Supplies and Services,304403,Equipment and Materials,11-Sep-2020,000009189503743,AMZNMktplace,5999,Other consumables,18.99,3.17,15.82
Children and Young Peoples Services,Head of Education and Skills,071801,Selby Cottage Childcare Centre,Supplies and Services,304403,Equipment and Materials,11-Sep-2020,000009189503757,AMZNMktplace,5999,Other consumables,89.98,15.00,74.98
Children and Young Peoples Services,Head of Education and Skills,071801,Selby Cottage Childcare Centre,Supplies and Services,304403,Equipment and Materials,11-Sep-2020,000009189503767,AMZNMktplace,5999,Other consumables,69.81,11.64,58.17
"Regeneration, Economy and Growth",Development and Housing,031576,B& B - Temp Accom,Supplies and Services,364320,Grants to Voluntary Organisations,11-Sep-2020,000009189503777,BUDGET H EXPRESS HOTEL,7011,Accommodation assistance,267.00,0.00,267.00
"Regeneration, Economy and Growth",Development and Housing,031576,B& B - Temp Accom,Supplies and Services,352001,Conference Expenses,11-Sep-2020,000009189503873,TOAST LETTINGS,7011,Conferencesseminars fees etc,500.00,0.00,500.00
"Regeneration, Economy and Growth",Development and Housing,031576,B& B - Temp Accom,Supplies and Services,352001,Conference Expenses,11-Sep-2020,000009189503879,TOAST LETTINGS,7011,Conferencesseminars fees etc,25.00,0.00,25.00
Children and Young Peoples Services,Head of Education and Skills,075021,Youth Employment Initiative,Supplies and Services,364301,Grants to Voluntary Organisations,11-Sep-2020,000009189503895,WWW.DAVINESONLINE.COM,7230,Hardship,109.59,0.00,109.59
Children and Young Peoples Services,Head of Education and Skills,075021,Youth Employment Initiative,Supplies and Services,364301,Grants to Voluntary Organisations,11-Sep-2020,000009189503903,WWW.DAVINESONLINE.COM,7230,Hardship,109.59,0.00,109.59
Children and Young Peoples Services,Head of Education and Skills,075021,Youth Employment Initiative,Supplies and Services,364301,Grants to Voluntary Organisations,11-Sep-2020,000009189503911,GO NORTH EAST LIMITED,4131,Hardship,17.00,0.00,17.00
Children and Young Peoples Services,Head of Education and Skills,075021,Youth Employment Initiative,Supplies and Services,364301,Grants to Voluntary Organisations,11-Sep-2020,000009189503915,GO NORTH EAST LIMITED,4131,Hardship,25.00,0.00,25.00
Children and Young Peoples Services,Head of Education and Skills,075021,Youth Employment Initiative,Supplies and Services,364301,Grants to Voluntary Organisations,11-Sep-2020,000009189503921,WWW.LABEEBY.CO.UK,5691,Hardship,38.59,0.00,38.59
Children and Young Peoples Services,Head of Education and Skills,075021,Youth Employment Initiative,Supplies and Services,364301,Grants to Voluntary Organisations,11-Sep-2020,000009189503925,WWW.LABEEBY.CO.UK,5691,Hardship,37.79,0.00,37.79
Children and Young Peoples Services,Head of Education and Skills,075021,Youth Employment Initiative,Supplies and Services,364301,Grants to Voluntary Organisations,11-Sep-2020,000009189503929,Amazon.co.uk 1R2234Q25,5969,Hardship,9.99,1.67,8.32
Children and Young Peoples Services,Head of Education and Skills,075021,Youth Employment Initiative,Supplies and Services,364301,Grants to Voluntary Organisations,11-Sep-2020,000009189503935,WWW.JOHNLEWIS.COM,5311,Hardship,24.95,4.16,20.79
Children and Young Peoples Services,Head of Education and Skills,075021,Youth Employment Initiative,Supplies and Services,364301,Grants to Voluntary Organisations,11-Sep-2020,000009189503945,JD SPORTS INTERNET,5941,Hardship,32.99,0.00,32.99
Children and Young Peoples Services,Head of Childrens Social Care,085332,Middlestone Moor CU,Supplies and Services,324117,Provisions E324,11-Sep-2020,000009189504019,TESCO STORES 2371,5411,Catering costs - provisions,128.06,0.00,128.06
Children and Young Peoples Services,Head of Childrens Social Care,085341,High Etherley Satelite Home,Supplies and Services,324117,Provisions E324,11-Sep-2020,000009189504135,WILKO RETAIL LIMITED,5399,Catering costs - provisions,9.45,0.00,9.45
Children and Young Peoples Services,Head of Childrens Social Care,085380,Operations Manager LAC Resources,Supplies and Services,328041,Clothing uniforms and laundry E328,11-Sep-2020,000009189504357,ARGOS LTD,5310,Clothing uniforms and laundry,172.95,0.00,172.95
Children and Young Peoples Services,Head of Childrens Social Care,085380,Operations Manager LAC Resources,Supplies and Services,328041,Clothing uniforms and laundry E328,11-Sep-2020,000009189504361,ARGOS LTD,5310,Clothing uniforms and laundry,28.94,0.00,28.94
"Regeneration, Economy and Growth",Development and Housing,030770,Durham Advance,Supplies and Services,344033,Telephones,11-Sep-2020,000009189504367,EE TOPUP VESTA,4814,Telephones general-all costs,10.00,0.00,10.00
Children and Young Peoples Services,Head of Early Help Inclusion & Vulnerable Children.,085954,Walworth,Supplies and Services,328041,Clothing uniforms and laundry E328,11-Sep-2020,000009189504465,Nike,5655,Clothing uniforms and laundry,55.97,0.00,55.97
Children and Young Peoples Services,Head of Early Help Inclusion & Vulnerable Children.,085957,Secure Management,Supplies and Services,304403,Equipment and Materials,11-Sep-2020,000009189504475,AMZNMktplace,5999,Other consumables,17.40,2.90,14.50
Children and Young Peoples Services,Head of Early Help Inclusion & Vulnerable Children.,085957,Secure Management,Supplies and Services,304403,Equipment and Materials,11-Sep-2020,000009189504475 - 1,AMZNMktplace,5999,Other consumables,0.05,,0.05
Children and Young Peoples Services,Head of Early Help Inclusion & Vulnerable Children.,085956,Lumley,Transfer Payments,515140,Social Services Clients,11-Sep-2020,000009189504479,AMZNMKTPLACE AMAZON.CO,5999,Clothing allowances,15.01,2.50,12.51
Children and Young Peoples Services,Head of Early Help Inclusion & Vulnerable Children.,085956,Lumley,Transfer Payments,515140,Social Services Clients,11-Sep-2020,000009189504489,FOOTASYLUM PLC,5691,Clothing allowances,59.99,0.00,59.99
Children and Young Peoples Services,Head of Early Help Inclusion & Vulnerable Children.,085956,Lumley,Transfer Payments,515140,Social Services Clients,11-Sep-2020,000009189504493,AMZNMKTPLACE AMAZON.CO,5999,Clothing allowances,6.99,0.00,6.99
Neighbourhoods and Climate Change,Environmental Services,010561,Fleet - Morrison Busty Fleet,Transport,215013,Running Costs of Vehicles,11-Sep-2020,000009189504861,DVLA VEHICLE TAX,9311,Vehicle Excise Duty (VED),167.50,0.00,167.50
Neighbourhoods and Climate Change,Environmental Services,010864,Fleet - Hackworth Road Fleet,Transport,215013,Running Costs of Vehicles,11-Sep-2020,000009189504869,DVLA VEHICLE TAX,9311,Vehicle Excise Duty (VED),167.50,0.00,167.50
Neighbourhoods and Climate Change,Environmental Services,010900,Fleet - Meadowfield Fleet,Transport,215013,Running Costs of Vehicles,11-Sep-2020,000009189504875,DVLA VEHICLE TAX,9311,Vehicle Excise Duty (VED),167.50,0.00,167.50
Neighbourhoods and Climate Change,Environmental Services,010900,Fleet - Meadowfield Fleet,Transport,215013,Running Costs of Vehicles,11-Sep-2020,000009189504877,DVLA VEHICLE TAX,9311,Vehicle Excise Duty (VED),167.50,0.00,167.50
Neighbourhoods and Climate Change,Environmental Services,010864,Fleet - Hackworth Road Fleet,Transport,215013,Running Costs of Vehicles,11-Sep-2020,000009189504881,DVLA VEHICLE TAX,9311,Vehicle Excise Duty (VED),167.50,0.00,167.50
Neighbourhoods and Climate Change,Environmental Services,010900,Fleet - Meadowfield Fleet,Transport,215013,Running Costs of Vehicles,11-Sep-2020,000009189504885,DVLA VEHICLE TAX,9311,Vehicle Excise Duty (VED),167.50,0.00,167.50
Neighbourhoods and Climate Change,Environmental Services,010864,Fleet - Hackworth Road Fleet,Transport,215013,Running Costs of Vehicles,11-Sep-2020,000009189504887,DVLA VEHICLE TAX,9311,Vehicle Excise Duty (VED),167.50,0.00,167.50
Neighbourhoods and Climate Change,Environmental Services,010864,Fleet - Hackworth Road Fleet,Transport,215013,Running Costs of Vehicles,11-Sep-2020,000009189504891,DVLA VEHICLE TAX,9311,Vehicle Excise Duty (VED),167.50,0.00,167.50
Neighbourhoods and Climate Change,Environmental Services,010561,Fleet - Morrison Busty Fleet,Transport,215013,Running Costs of Vehicles,11-Sep-2020,000009189504893,DVLA VEHICLE TAX,9311,Vehicle Excise Duty (VED),167.50,0.00,167.50
Children and Young Peoples Services,Head of Education and Skills,071732,Dean Bank Childcare,Supplies and Services,304403,Equipment and Materials,11-Sep-2020,000009189504979,AMZNMKTPLACE AMAZON.CO,5999,Other consumables,17.95,2.99,14.96
Children and Young Peoples Services,Head of Education and Skills,071732,Dean Bank Childcare,Supplies and Services,304403,Equipment and Materials,11-Sep-2020,000009189504983,AMZNMKTPLACE AMAZON.CO,5999,Other consumables,16.85,2.81,14.04
Children and Young Peoples Services,Head of Education and Skills,071732,Dean Bank Childcare,Supplies and Services,304403,Equipment and Materials,11-Sep-2020,000009189504985,AMZNMKTPLACE AMAZON.CO,5999,Other consumables,22.60,3.77,18.83
Children and Young Peoples Services,Head of Education and Skills,071732,Dean Bank Childcare,Third Party Payments,430100,Rendered by Private Contractors,11-Sep-2020,000009189504987,WWW.EYFS.INFO,7399,Payments to sub-contractors,121.20,0.00,121.20
Children and Young Peoples Services,Head of Childrens Social Care,085332,Middlestone Moor CU,Supplies and Services,324117,Provisions E324,11-Sep-2020,000009189505017,TESCO STORES 2916,5411,Catering costs - provisions,8.90,0.00,8.90
"Regeneration, Economy and Growth",Development and Housing,030771,Durham Advance Flexible Fund,Transport,235057,Public Transport,11-Sep-2020,000009189505031,ARRIVA UK BUS,4131,Staff travelling,7.50,0.00,7.50
Children and Young Peoples Services,Head of Education and Skills,071903,Early Years Sustainability,Employees,040149,Recruitment Instruction and Training,11-Sep-2020,000009189505035,PSHE ASSOCIATION,8398,Training-all costs,50.00,0.00,50.00
"Regeneration, Economy and Growth",Development and Housing,030771,Durham Advance Flexible Fund,Supplies and Services,304259,Equipment and Materials,11-Sep-2020,000009189505083,DVLA DRIVER ONLINE,9399,Equipment-purchase and rental,34.00,0.00,34.00
"Regeneration, Economy and Growth",Development and Housing,031500,Housing Solutions - Core Team,Transport,235057,Public Transport,11-Sep-2020,000009189505097,BLUE LINE TAXIS,4121,Staff travelling,49.60,0.00,49.60
"Regeneration, Economy and Growth",Development and Housing,031500,Housing Solutions - Core Team,Supplies and Services,352001,Conference Expenses,11-Sep-2020,000009189505099,WWW.HOTEL52.CO.UK,7011,Conferencesseminars fees etc,189.00,0.00,189.00
"Regeneration, Economy and Growth",Development and Housing,031500,Housing Solutions - Core Team,Supplies and Services,352001,Conference Expenses,11-Sep-2020,000009189505101,WWW.HOTEL52.CO.UK,7011,Conferencesseminars fees etc,305.00,0.00,305.00
"Regeneration, Economy and Growth",Development and Housing,031500,Housing Solutions - Core Team,Supplies and Services,304999,Equipment and Materials,11-Sep-2020,000009189505105,DUNCAN BELTON TA K,6513,Misc equipment tools and materials,200.00,0.00,200.00
Children and Young Peoples Services,Head of Early Help Inclusion & Vulnerable Children.,085965,Barnard,Supplies and Services,324117,Provisions E324,11-Sep-2020,000009189505115,TESCO STORES 6329,5411,Catering costs - provisions,60.68,0.00,60.68
Children and Young Peoples Services,Head of Early Help Inclusion & Vulnerable Children.,088113,Seaham  0-19 Community Family Hub,Supplies and Services,304403,Equipment and Materials,11-Sep-2020,000009189505129,AMZNMktplace,5999,Other consumables,29.99,0.00,29.99
Children and Young Peoples Services,Head of Early Help Inclusion & Vulnerable Children.,088113,Seaham  0-19 Community Family Hub,Supplies and Services,328041,Clothing uniforms and laundry E328,11-Sep-2020,000009189505131,ARGOS LTD,5310,Clothing uniforms and laundry,83.95,0.00,83.95
Neighbourhoods and Climate Change,Environmental Services,011060,C&G - Hardwick Park Catering,Supplies and Services,304083,Equipment and Materials,11-Sep-2020,000009189505143,AMZNMKTPLACE AMAZON.CO,5999,Catering equipment,77.20,12.88,64.32
Neighbourhoods and Climate Change,Environmental Services,011060,C&G - Hardwick Park Catering,Supplies and Services,304083,Equipment and Materials,11-Sep-2020,000009189505151,WWW.NISBETS.COM,5964,Catering equipment,9.35,0.00,9.35
Neighbourhoods and Climate Change,Environmental Services,011060,C&G - Hardwick Park Catering,Supplies and Services,324117,Provisions E324,11-Sep-2020,000009189505173,HOPWELLS LTD,5811,Catering costs - provisions,15.96,2.66,13.30
Neighbourhoods and Climate Change,Environmental Services,011060,C&G - Hardwick Park Catering,Supplies and Services,324117,Provisions E324,11-Sep-2020,000009189505173 - 1,HOPWELLS LTD,5811,Catering costs - provisions,117.59,,117.59
Neighbourhoods and Climate Change,Environmental Services,011060,C&G - Hardwick Park Catering,Supplies and Services,324117,Provisions E324,11-Sep-2020,000009189505179,JR HOLLAND FOODSERVICE,5499,Catering costs - provisions,85.30,0.00,85.30
Resources BK0010,People & Talent Management,010984,Training and Development,Employees,040149,Recruitment Instruction and Training,11-Sep-2020,000009189505195,SQ IPROW,8699,Training-all costs,492.00,0.00,492.00
"Regeneration, Economy and Growth",Corporate Property and Land,021234,Catering - Locomotion,Supplies and Services,324117,Provisions E324,11-Sep-2020,000009189505199,HOPWELLS LTD,5811,Catering costs - provisions,15.96,2.66,13.30
"Regeneration, Economy and Growth",Corporate Property and Land,021234,Catering - Locomotion,Supplies and Services,324117,Provisions E324,11-Sep-2020,000009189505199 - 1,HOPWELLS LTD,5811,Catering costs - provisions,77.26,,77.26
"Regeneration, Economy and Growth",Corporate Property and Land,021234,Catering - Locomotion,Supplies and Services,324117,Provisions E324,11-Sep-2020,000009189505205,JR HOLLAND FOODSERVICE,5499,Catering costs - provisions,66.29,0.00,66.29
"Regeneration, Economy and Growth",Development and Housing,031500,Housing Solutions - Core Team,Supplies and Services,352001,Conference Expenses,11-Sep-2020,000009189505243,AYCLIFFE BIZ,7011,Conferencesseminars fees etc,114.00,0.00,114.00
Children and Young Peoples Services,Head of Early Help Inclusion & Vulnerable Children.,088108,Spennymoor & Shildon 0-19 Targeted Family Support,Supplies and Services,304259,Equipment and Materials,11-Sep-2020,000009189505359,Amazon.co.uk PF4ZV29U5,5969,Equipment-purchase and rental,10.58,1.76,8.82
Children and Young Peoples Services,Head of Early Help Inclusion & Vulnerable Children.,088108,Spennymoor & Shildon 0-19 Targeted Family Support,Supplies and Services,304259,Equipment and Materials,11-Sep-2020,000009189505365,AMZNMktplace,5999,Equipment-purchase and rental,7.99,1.33,6.66
Children and Young Peoples Services,Head of Early Help Inclusion & Vulnerable Children.,088108,Spennymoor & Shildon 0-19 Targeted Family Support,Supplies and Services,304259,Equipment and Materials,11-Sep-2020,000009189505367,AMZNMktplace,5999,Equipment-purchase and rental,19.95,3.35,16.60
Children and Young Peoples Services,Head of Early Help Inclusion & Vulnerable Children.,088108,Spennymoor & Shildon 0-19 Targeted Family Support,Supplies and Services,304259,Equipment and Materials,11-Sep-2020,000009189505369,HOME BARGAINS,5251,Equipment-purchase and rental,13.65,0.00,13.65
Children and Young Peoples Services,Head of Early Help Inclusion & Vulnerable Children.,088108,Spennymoor & Shildon 0-19 Targeted Family Support,Supplies and Services,304259,Equipment and Materials,11-Sep-2020,000009189505375,POUNDLAND LTD 1554,5310,Equipment-purchase and rental,107.00,0.00,107.00
Adult and Health Services,Head of Adults,055643,Hawthorn House LD Respite Unit,Supplies and Services,324117,Provisions E324,11-Sep-2020,000009189505529,CO-OP GROUP 010465,5411,Catering costs - provisions,4.70,0.00,4.70
Children and Young Peoples Services,Head of Education and Skills,071802,Louisa Cent Nursery,Supplies and Services,324117,Provisions E324,11-Sep-2020,000009189505553,ASDA SUPERSTORE,5411,Catering costs - provisions,1.35,0.00,1.35
Children and Young Peoples Services,Head of Childrens Social Care,085333,Coxhoe Satelite Home,Supplies and Services,324117,Provisions E324,11-Sep-2020,000009189505555,TESCO STORES 5596,5411,Catering costs - provisions,1.20,0.00,1.20
Children and Young Peoples Services,Head of Childrens Social Care,085333,Coxhoe Satelite Home,Transport,235057,Public Transport,11-Sep-2020,000009189505559,Arriva Durham County,4111,Staff travelling,9.20,0.00,9.20
Children and Young Peoples Services,Head of Childrens Social Care,085333,Coxhoe Satelite Home,Supplies and Services,324117,Provisions E324,11-Sep-2020,000009189505591,ASDA SUPERSTORE 4987,5411,Catering costs - provisions,139.14,0.00,139.14
Children and Young Peoples Services,Head of Childrens Social Care,085342,16 Hickstead Rise (previously 9 Cedar Ave),Supplies and Services,344033,Telephones,11-Sep-2020,000009189505599,WWW.VOXI.CO.UK,4814,Telephones general-all costs,10.00,0.00,10.00
Children and Young Peoples Services,Head of Childrens Social Care,085342,16 Hickstead Rise (previously 9 Cedar Ave),Supplies and Services,324117,Provisions E324,11-Sep-2020,000009189505615,PPOINT_ YOUNGS NEWSAGE,5411,Catering costs - provisions,2.00,0.00,2.00
Children and Young Peoples Services,Head of Childrens Social Care,085342,16 Hickstead Rise (previously 9 Cedar Ave),Supplies and Services,324117,Provisions E324,11-Sep-2020,000009189505623,TESCO STORES 2916,5411,Catering costs - provisions,28.33,0.00,28.33
Children and Young Peoples Services,Head of Childrens Social Care,085342,16 Hickstead Rise (previously 9 Cedar Ave),Supplies and Services,304403,Equipment and Materials,11-Sep-2020,000009189505625,CARD FACTORY,5947,Other consumables,7.30,0.00,7.30
Children and Young Peoples Services,Head of Childrens Social Care,085352,Tow Law CU,Supplies and Services,304999,Equipment and Materials,11-Sep-2020,000009189505703,HOLLYWOOD NAILS,7298,Misc equipment tools and materials,33.00,0.00,33.00
Children and Young Peoples Services,Head of Childrens Social Care,085352,Tow Law CU,Supplies and Services,324117,Provisions E324,11-Sep-2020,000009189505707,SHAKEAHOLIC,5499,Catering costs - provisions,3.45,0.00,3.45
Children and Young Peoples Services,Head of Childrens Social Care,085352,Tow Law CU,Supplies and Services,324117,Provisions E324,11-Sep-2020,000009189505711,ASDA SUPERSTORE 4987,5411,Catering costs - provisions,228.29,0.00,228.29
"Regeneration, Economy and Growth",Corporate Property and Land,030691,Catering - Durham Dales Centre,Supplies and Services,324117,Provisions E324,11-Sep-2020,000009189505727,HOPWELLS LTD,5811,Catering costs - provisions,59.92,0.00,59.92
"Regeneration, Economy and Growth",Corporate Property and Land,030691,Catering - Durham Dales Centre,Premises,145009,Cleaning and Domestic Supplies,11-Sep-2020,000009189505729,ALLIANCE DISPOSABLES L,2842,Other cleaning and domestic costs,10.08,1.68,8.40
"Regeneration, Economy and Growth",Corporate Property and Land,030691,Catering - Durham Dales Centre,Premises,145009,Cleaning and Domestic Supplies,11-Sep-2020,000009189505731,ALLIANCE DISPOSABLES L,2842,Other cleaning and domestic costs,103.57,17.26,86.31
"Regeneration, Economy and Growth",Corporate Property and Land,030691,Catering - Durham Dales Centre,Supplies and Services,324117,Provisions E324,11-Sep-2020,000009189505733,JR HOLLAND FOODSERVICE,5499,Catering costs - provisions,60.49,0.00,60.49
Neighbourhoods and Climate Change,Environmental Services,010367,C&G - South Grounds Maintenance,Supplies and Services,304221,Equipment and Materials,11-Sep-2020,000009189505753,SCREWFIX DIRECT,5211,Direct materials,17.86,0.00,17.86
Adult and Health Services,Head of Adults,055643,Hawthorn House LD Respite Unit,Supplies and Services,324117,Provisions E324,11-Sep-2020,000009189505755,HOPWELLS LTD,5811,Catering costs - provisions,27.15,0.00,27.15
Adult and Health Services,Head of Adults,055643,Hawthorn House LD Respite Unit,Supplies and Services,324117,Provisions E324,11-Sep-2020,000009189505759,JR HOLLAND FOODSERVICE,5499,Catering costs - provisions,8.52,0.00,8.52
Adult and Health Services,Head of Adults,055643,Hawthorn House LD Respite Unit,Supplies and Services,324117,Provisions E324,11-Sep-2020,000009189505761,JR HOLLAND FOODSERVICE,5499,Catering costs - provisions,15.33,0.00,15.33
Children and Young Peoples Services,Head of Early Help Inclusion & Vulnerable Children.,088102,Consett & Stanley 0-19 Targeted Family Support,Supplies and Services,340001,Postages E340,11-Sep-2020,000009189505805,POST OFFICE COUNTER,9402,Postages,2.30,0.00,2.30
Resources BK0010,Digital and Customer Services,065335,School Services - Implementations,Supplies and Services,304639,Equipment and Materials,11-Sep-2020,000009189505809,WWW.ALIEXPRESS.COM,5964,Technicians-supplies,125.26,0.00,125.26
Resources BK0010,Business Support,052986,CYPS - Locality and Operational Support,Supplies and Services,304403,Equipment and Materials,11-Sep-2020,000009189505833,AMZNMktplace,5999,Other consumables,27.45,4.58,22.87
Resources BK0010,Business Support,052986,CYPS - Locality and Operational Support,Supplies and Services,384999,Miscellaneous Expenses,11-Sep-2020,000009189505839,Amazon.co.uk 595SX5865,5969,Other expenses,7.98,1.34,6.64
Resources BK0010,Business Support,052986,CYPS - Locality and Operational Support,Supplies and Services,328041,Clothing uniforms and laundry E328,11-Sep-2020,000009189505841,ARGOS LTD,5310,Clothing uniforms and laundry,20.00,0.00,20.00
Resources BK0010,Business Support,052986,CYPS - Locality and Operational Support,Supplies and Services,328041,Clothing uniforms and laundry E328,11-Sep-2020,000009189505845,ARGOS LTD,5310,Clothing uniforms and laundry,326.95,0.00,326.95
Resources BK0010,Business Support,052986,CYPS - Locality and Operational Support,Supplies and Services,328041,Clothing uniforms and laundry E328,11-Sep-2020,000009189505847,ARGOS LTD,5310,Clothing uniforms and laundry,36.00,0.00,36.00
"Regeneration, Economy and Growth",Culture Sport and Tourism,054235,Bishop Auckland Town Hall Cafe,Supplies and Services,324117,Provisions E324,11-Sep-2020,000009189505855,HOPWELLS LTD,5811,Catering costs - provisions,155.72,0.00,155.72
"Regeneration, Economy and Growth",Culture Sport and Tourism,054235,Bishop Auckland Town Hall Cafe,Supplies and Services,324117,Provisions E324,11-Sep-2020,000009189505859,JR HOLLAND FOODSERVICE,5499,Catering costs - provisions,67.65,0.00,67.65
Children and Young Peoples Services,Head of Childrens Social Care,085333,Coxhoe Satelite Home,Supplies and Services,304403,Equipment and Materials,11-Sep-2020,000009189505947,AMZNMKTPLACE AMAZON.CO,5999,Other consumables,29.95,0.00,29.95
Children and Young Peoples Services,Head of Childrens Social Care,085333,Coxhoe Satelite Home,Supplies and Services,324117,Provisions E324,11-Sep-2020,000009189505953,B&M 681 - DURHAM,5399,Catering costs - provisions,3.68,0.00,3.68
Children and Young Peoples Services,Head of Childrens Social Care,085352,Tow Law CU,Supplies and Services,328041,Clothing uniforms and laundry E328,11-Sep-2020,000009189505979,Nike Store 00802,5655,Clothing uniforms and laundry,48.90,0.00,48.90
Children and Young Peoples Services,Head of Childrens Social Care,085352,Tow Law CU,Supplies and Services,324117,Provisions E324,11-Sep-2020,000009189505985,SAINSBURYS 0776,5411,Catering costs - provisions,5.40,0.00,5.40
Children and Young Peoples Services,Head of Childrens Social Care,085352,Tow Law CU,Supplies and Services,304999,Equipment and Materials,11-Sep-2020,000009189505987,SUPERDRUG STORES PLC,5912,Misc equipment tools and materials,27.75,0.00,27.75
Children and Young Peoples Services,Head of Childrens Social Care,085352,Tow Law CU,Supplies and Services,304999,Equipment and Materials,11-Sep-2020,000009189505989,SUPERDRUG STORES PLC,5912,Misc equipment tools and materials,22.55,0.00,22.55
Children and Young Peoples Services,Head of Childrens Social Care,085352,Tow Law CU,Supplies and Services,304403,Equipment and Materials,11-Sep-2020,000009189505993,CARD FACTORY,5947,Other consumables,7.56,0.00,7.56
Children and Young Peoples Services,Head of Childrens Social Care,085352,Tow Law CU,Supplies and Services,348037,Subsistence E348,11-Sep-2020,000009189505997,MCDONALDS,5812,Subsistence,16.94,0.00,16.94
Children and Young Peoples Services,Head of Childrens Social Care,085352,Tow Law CU,Supplies and Services,304403,Equipment and Materials,11-Sep-2020,000009189505999,AMZNMKTPLACE AMAZON.CO,5999,Other consumables,29.99,5.00,24.99
Children and Young Peoples Services,Head of Education and Skills,070169,Durham SSP,Supplies and Services,384199,Miscellaneous Expenses,11-Sep-2020,000009189506015,FENICE MEDIA LIMITED,2741,Other hired and contracted services,318.00,53.00,265.00
Resources BK0010,COVID19 - Resources,091007,COVID19 - Resources,Supplies and Services,342033,Computers and Communications,11-Sep-2020,000009189506123,AMZNMktplace,5999,Computer hardware,53.13,8.86,44.27
"Regeneration, Economy and Growth",Corporate Property and Land,021235,Catering - Wharton Park,Supplies and Services,324117,Provisions E324,11-Sep-2020,000009189506157,HOPWELLS LTD,5811,Catering costs - provisions,140.88,23.48,117.40
"Regeneration, Economy and Growth",Corporate Property and Land,021235,Catering - Wharton Park,Supplies and Services,324117,Provisions E324,11-Sep-2020,000009189506157 - 1,HOPWELLS LTD,5811,Catering costs - provisions,37.63,,37.63
"Regeneration, Economy and Growth",Corporate Property and Land,021235,Catering - Wharton Park,Supplies and Services,324117,Provisions E324,11-Sep-2020,000009189506161,JR HOLLAND FOODSERVICE,5499,Catering costs - provisions,20.12,0.00,20.12
Children and Young Peoples Services,Head of Education and Skills,076001,Music Service,Supplies and Services,304999,Equipment and Materials,11-Sep-2020,000009189506185,HOME BARGAINS SPENNYMO,5251,Misc equipment tools and materials,1.58,0.00,1.58
Neighbourhoods and Climate Change,Environmental Services,011060,C&G - Hardwick Park Catering,Supplies and Services,324117,Provisions E324,11-Sep-2020,000009193970273,BATLEYS PERTH,5300,Catering costs - provisions,147.60,24.60,123.00
Neighbourhoods and Climate Change,Environmental Services,011060,C&G - Hardwick Park Catering,Supplies and Services,324117,Provisions E324,11-Sep-2020,000009193970273 - 1,BATLEYS PERTH,5300,Catering costs - provisions,78.17,,78.17
Neighbourhoods and Climate Change,Environmental Services,011060,C&G - Hardwick Park Catering,Supplies and Services,324117,Provisions E324,11-Sep-2020,000009193970279,BATLEYS PERTH,5300,Catering costs - provisions,13.41,0.00,13.41
Adult and Health Services,Head of Adults,055643,Hawthorn House LD Respite Unit,Supplies and Services,324117,Provisions E324,11-Sep-2020,000009193970551,BATLEYS PERTH,5300,Catering costs - provisions,72.62,0.00,72.62
"Regeneration, Economy and Growth",Business Durham CL0850,030689,Inward Investment and Aftercare,Supplies and Services,304999,Equipment and Materials,12-Sep-2020,000009189503635,LinkedIn 5897400334,5968,Misc equipment tools and materials,16.85,0.00,16.85
Children and Young Peoples Services,Head of Childrens Social Care,085612,Families First Consett,Supplies and Services,364301,Grants to Voluntary Organisations,12-Sep-2020,000009189503721,ASDA GEORGE COM LEEDS,5411,Hardship,101.00,0.00,101.00
Children and Young Peoples Services,Head of Childrens Social Care,085342,16 Hickstead Rise (previously 9 Cedar Ave),Supplies and Services,328041,Clothing uniforms and laundry E328,12-Sep-2020,000009189503961,PRIMARK,5651,Clothing uniforms and laundry,68.70,0.00,68.70
Children and Young Peoples Services,Head of Childrens Social Care,085342,16 Hickstead Rise (previously 9 Cedar Ave),Supplies and Services,348037,Subsistence E348,12-Sep-2020,000009189503965,COSTA COFFEE,5814,Subsistence,6.70,0.00,6.70
Children and Young Peoples Services,Head of Childrens Social Care,085342,16 Hickstead Rise (previously 9 Cedar Ave),Supplies and Services,384999,Miscellaneous Expenses,12-Sep-2020,000009189503971,BODYCARE,5977,Other expenses,13.50,0.00,13.50
Children and Young Peoples Services,Head of Childrens Social Care,085342,16 Hickstead Rise (previously 9 Cedar Ave),Supplies and Services,328041,Clothing uniforms and laundry E328,12-Sep-2020,000009189503977,POUNDLAND LTD 1199,5310,Clothing uniforms and laundry,11.00,0.00,11.00
Children and Young Peoples Services,Head of Childrens Social Care,085332,Middlestone Moor CU,Supplies and Services,304403,Equipment and Materials,12-Sep-2020,000009189504411,AMZNMktplace,5999,Other consumables,75.48,12.58,62.90
Children and Young Peoples Services,Head of Childrens Social Care,085332,Middlestone Moor CU,Supplies and Services,304403,Equipment and Materials,12-Sep-2020,000009189504411 - 1,AMZNMktplace,5999,Other consumables,16.96,,16.96
Children and Young Peoples Services,Head of Childrens Social Care,085332,Middlestone Moor CU,Supplies and Services,324117,Provisions E324,12-Sep-2020,000009189504415,ASDA SUPERSTORE 4987,5411,Catering costs - provisions,26.73,0.00,26.73
Children and Young Peoples Services,Head of Early Help Inclusion & Vulnerable Children.,085954,Walworth,Transfer Payments,515140,Social Services Clients,12-Sep-2020,000009189504497,WWW.NIKESTORE.COM,5691,Clothing allowances,77.90,0.00,77.90
Children and Young Peoples Services,Head of Early Help Inclusion & Vulnerable Children.,085956,Lumley,Supplies and Services,324117,Provisions E324,12-Sep-2020,000009189505117,TESCO STORES 6329,5411,Catering costs - provisions,75.63,0.00,75.63
Children and Young Peoples Services,Head of Childrens Social Care,085331,New Lea Childrens Home,Supplies and Services,324117,Provisions E324,12-Sep-2020,000009189505255,WILKO RETAIL LIMITED,5399,Catering costs - provisions,97.14,0.00,97.14
Children and Young Peoples Services,Head of Early Help Inclusion & Vulnerable Children.,088108,Spennymoor & Shildon 0-19 Targeted Family Support,Supplies and Services,304259,Equipment and Materials,12-Sep-2020,000009189505377,AMZNMktplace,5999,Equipment-purchase and rental,18.20,3.04,15.16
Children and Young Peoples Services,Head of Early Help Inclusion & Vulnerable Children.,088108,Spennymoor & Shildon 0-19 Targeted Family Support,Supplies and Services,304259,Equipment and Materials,12-Sep-2020,000009189505381,AMZNMktplace,5999,Equipment-purchase and rental,4.99,0.83,4.16
Children and Young Peoples Services,Head of Early Help Inclusion & Vulnerable Children.,088108,Spennymoor & Shildon 0-19 Targeted Family Support,Supplies and Services,304259,Equipment and Materials,12-Sep-2020,000009189505389,AMZNMKTPLACE AMAZON.CO,5999,Equipment-purchase and rental,9.99,0.00,9.99
Children and Young Peoples Services,Head of Childrens Social Care,085331,New Lea Childrens Home,Supplies and Services,324117,Provisions E324,12-Sep-2020,000009189505425,B&M 681 - DURHAM,5399,Catering costs - provisions,19.99,0.00,19.99
Children and Young Peoples Services,Head of Childrens Social Care,085342,16 Hickstead Rise (previously 9 Cedar Ave),Supplies and Services,324117,Provisions E324,12-Sep-2020,000009189505631,TESCO STORES 2916,5411,Catering costs - provisions,10.00,0.00,10.00
Children and Young Peoples Services,Head of Education and Skills,078554,Adult Skills-Main,Supplies and Services,304403,Equipment and Materials,12-Sep-2020,000009189505681,AMZNMktplace,5999,Other consumables,29.98,0.00,29.98
Children and Young Peoples Services,Head of Education and Skills,078554,Adult Skills-Main,Supplies and Services,304403,Equipment and Materials,12-Sep-2020,000009189505683,AMZNMktplace,5999,Other consumables,178.49,0.00,178.49
Children and Young Peoples Services,Head of Early Help Inclusion & Vulnerable Children.,085957,Secure Management,Supplies and Services,304999,Equipment and Materials,12-Sep-2020,000009189505719,TESCO SUBSCRIPTION,5968,Misc equipment tools and materials,6.99,0.00,6.99
Children and Young Peoples Services,Head of Childrens Social Care,085334,West Rainton Satelite Home,Supplies and Services,348037,Subsistence E348,12-Sep-2020,000009189505801,KINGS CAFE,5814,Subsistence,8.00,0.00,8.00
Children and Young Peoples Services,Head of Childrens Social Care,085333,Coxhoe Satelite Home,Supplies and Services,324117,Provisions E324,12-Sep-2020,000009189505955,WILKO RETAIL LIMITED,5399,Catering costs - provisions,7.75,0.00,7.75
Children and Young Peoples Services,Head of Childrens Social Care,085333,Coxhoe Satelite Home,Supplies and Services,304999,Equipment and Materials,12-Sep-2020,000009189505959,SUPERDRUG STORES PLC,5912,Misc equipment tools and materials,4.99,0.00,4.99
Children and Young Peoples Services,Head of Childrens Social Care,085333,Coxhoe Satelite Home,Supplies and Services,324117,Provisions E324,12-Sep-2020,000009189505963,SAINSBURYS SACAT 0776,5411,Catering costs - provisions,38.10,0.00,38.10
Children and Young Peoples Services,Head of Childrens Social Care,085352,Tow Law CU,Supplies and Services,384237,Miscellaneous Expenses,12-Sep-2020,000009189506005,BLACKPOOL PLEASURE,7999,Recreational exps outings parties,128.00,0.00,128.00
Children and Young Peoples Services,Head of Childrens Social Care,085352,Tow Law CU,Supplies and Services,324117,Provisions E324,12-Sep-2020,000009189506093,SAINSBURYS 2199,5411,Catering costs - provisions,8.95,0.00,8.95
Children and Young Peoples Services,Head of Childrens Social Care,085341,High Etherley Satelite Home,Supplies and Services,384302,Miscellaneous Expenses,13-Sep-2020,000009189504143,THE WHITBURN GOLF CL L,7992,Activity expenses,22.85,0.00,22.85
Children and Young Peoples Services,Head of Childrens Social Care,085341,High Etherley Satelite Home,Supplies and Services,308011,Furniture,13-Sep-2020,000009189504147,ARGOFIELD LTD,5712,Furniture repair and replacement,23.94,0.00,23.94
Children and Young Peoples Services,Head of Childrens Social Care,085341,High Etherley Satelite Home,Supplies and Services,324117,Provisions E324,13-Sep-2020,000009189504151,STARBUCKS BISHOP AUCKL,5499,Catering costs - provisions,4.95,0.00,4.95
Children and Young Peoples Services,Head of Childrens Social Care,085341,High Etherley Satelite Home,Supplies and Services,342033,Computers and Communications,13-Sep-2020,000009189504157,WWW.STUDIO.CO.UK,5964,Computer hardware,52.92,0.00,52.92
Children and Young Peoples Services,Head of Childrens Social Care,085333,Coxhoe Satelite Home,Supplies and Services,348037,Subsistence E348,13-Sep-2020,000009189504277,INFINATE AIR CAFE- SWE,5812,Subsistence,5.00,0.00,5.00
Children and Young Peoples Services,Head of Childrens Social Care,085333,Coxhoe Satelite Home,Supplies and Services,304999,Equipment and Materials,13-Sep-2020,000009189504279,WWW.INFINITEAIR.CO.UK,7991,Misc equipment tools and materials,35.90,0.00,35.90
Children and Young Peoples Services,Head of Childrens Social Care,085333,Coxhoe Satelite Home,Supplies and Services,324117,Provisions E324,13-Sep-2020,000009189504283,B&M 681 - DURHAM,5399,Catering costs - provisions,44.35,0.00,44.35
Children and Young Peoples Services,Head of Early Help Inclusion & Vulnerable Children.,085954,Walworth,Supplies and Services,324117,Provisions E324,13-Sep-2020,000009189505119,TESCO STORES 6329,5411,Catering costs - provisions,4.65,0.00,4.65
Neighbourhoods and Climate Change,Environmental Services,026591,C&G - Hardwick Park,Supplies and Services,332047,Printing Stationery and Gen Off Exps,13-Sep-2020,000009189505155,AMZNMktplace,5999,Stationery,25.98,4.33,21.65
Children and Young Peoples Services,Head of Childrens Social Care,085551,Short Break Services-Park Hse Sher,Supplies and Services,324117,Provisions E324,13-Sep-2020,000009189505315,TESCO STORES 2371,5411,Catering costs - provisions,55.27,0.00,55.27
Children and Young Peoples Services,Head of Early Help Inclusion & Vulnerable Children.,088108,Spennymoor & Shildon 0-19 Targeted Family Support,Supplies and Services,304259,Equipment and Materials,13-Sep-2020,000009189505391,AMZNMKTPLACE AMAZON.CO,5999,Equipment-purchase and rental,14.89,0.00,14.89
Children and Young Peoples Services,Head of Early Help Inclusion & Vulnerable Children.,088108,Spennymoor & Shildon 0-19 Targeted Family Support,Supplies and Services,304259,Equipment and Materials,13-Sep-2020,000009189505393,AMZNMktplace,5999,Equipment-purchase and rental,85.47,14.25,71.22
Children and Young Peoples Services,Head of Early Help Inclusion & Vulnerable Children.,088108,Spennymoor & Shildon 0-19 Targeted Family Support,Supplies and Services,304259,Equipment and Materials,13-Sep-2020,000009189505399,AMZNMktplace,5999,Equipment-purchase and rental,28.58,4.78,23.80
Children and Young Peoples Services,Head of Early Help Inclusion & Vulnerable Children.,088108,Spennymoor & Shildon 0-19 Targeted Family Support,Supplies and Services,304259,Equipment and Materials,13-Sep-2020,000009189505403,AMZNMktplace,5999,Equipment-purchase and rental,38.50,6.44,32.06
Adult and Health Services,Head of Adults,055643,Hawthorn House LD Respite Unit,Supplies and Services,324117,Provisions E324,13-Sep-2020,000009189505535,CO-OP GROUP 010465,5411,Catering costs - provisions,4.05,0.00,4.05
Children and Young Peoples Services,Head of Childrens Social Care,085352,Tow Law CU,Supplies and Services,324117,Provisions E324,13-Sep-2020,000009189505715,NISA LOCAL,5411,Catering costs - provisions,6.29,0.00,6.29
Children and Young Peoples Services,Head of Childrens Social Care,085352,Tow Law CU,Supplies and Services,348037,Subsistence E348,13-Sep-2020,000009189506001,THE DAIRY BARN,5812,Subsistence,10.60,0.00,10.60
Resources BK0010,Digital and Customer Services,065432,Web Development Group,Supplies and Services,342053,Computers and Communications,13-Sep-2020,000009193969641,BLS POWERMAPPER,5734,Computer software,238.80,0.00,238.80
Children and Young Peoples Services,Head of Childrens Social Care,085332,Middlestone Moor CU,Supplies and Services,324117,Provisions E324,13-Sep-2020,000009193970193,SAINSBURYS LOC4622,5411,Catering costs - provisions,3.50,0.00,3.50
Children and Young Peoples Services,Head of Early Help Inclusion & Vulnerable Children.,088108,Spennymoor & Shildon 0-19 Targeted Family Support,Supplies and Services,304259,Equipment and Materials,13-Sep-2020,000009193970405,AMZNMKTPLACE AMAZON.CO,5999,Equipment-purchase and rental,56.70,9.45,47.25
Children and Young Peoples Services,Head of Childrens Social Care,085342,16 Hickstead Rise (previously 9 Cedar Ave),Supplies and Services,348037,Subsistence E348,13-Sep-2020,000009193970469,THE OLIVE GARDEN,5812,Subsistence,7.70,0.00,7.70
Children and Young Peoples Services,Head of Childrens Social Care,085342,16 Hickstead Rise (previously 9 Cedar Ave),Supplies and Services,324117,Provisions E324,13-Sep-2020,000009193970475,SAINSBURYS LOC4622,5411,Catering costs - provisions,3.00,0.00,3.00
Resources BK0010,Digital and Customer Services,065335,School Services - Implementations,Supplies and Services,304303,Equipment and Materials,13-Sep-2020,000009193970605,AMZNMKTPLACE AMAZON.CO,5999,Network for resale,24.99,4.17,20.82
Children and Young Peoples Services,Head of Childrens Social Care,085352,Tow Law CU,Supplies and Services,324117,Provisions E324,13-Sep-2020,000009193970711,SAINSBURYS LOC4634,5411,Catering costs - provisions,77.35,0.00,77.35
Children and Young Peoples Services,Head of Early Help Inclusion & Vulnerable Children.,085957,Secure Management,Supplies and Services,372009,Subscriptions E372,14-Sep-2020,000009189505121,TESCO SUBSCRIPTION,5968,Subscriptions 372009,6.99,0.00,6.99
Children and Young Peoples Services,Head of Early Help Inclusion & Vulnerable Children.,088108,Spennymoor & Shildon 0-19 Targeted Family Support,Supplies and Services,304259,Equipment and Materials,14-Sep-2020,000009189505401,AMZN Mktp UK S96409YD5,5942,Equipment-purchase and rental,6.75,1.13,5.62
Children and Young Peoples Services,Head of Early Help Inclusion & Vulnerable Children.,088108,Spennymoor & Shildon 0-19 Targeted Family Support,Supplies and Services,304259,Equipment and Materials,14-Sep-2020,000009189505405,AMZNMktplace,5999,Equipment-purchase and rental,43.20,7.20,36.00
Children and Young Peoples Services,Head of Early Help Inclusion & Vulnerable Children.,088108,Spennymoor & Shildon 0-19 Targeted Family Support,Supplies and Services,304259,Equipment and Materials,14-Sep-2020,000009189505405 - 1,AMZNMktplace,5999,Equipment-purchase and rental,92.70,,92.70
Children and Young Peoples Services,Head of Early Help Inclusion & Vulnerable Children.,088108,Spennymoor & Shildon 0-19 Targeted Family Support,Supplies and Services,304259,Equipment and Materials,14-Sep-2020,000009189505411,AMZNMktplace,5999,Equipment-purchase and rental,98.53,16.46,82.07
"Regeneration, Economy and Growth",Business Durham CL0850,030689,Inward Investment and Aftercare,Supplies and Services,304999,Equipment and Materials,14-Sep-2020,000009193969611,MOZ INC,5817,Misc equipment tools and materials,140.23,0.00,140.23
Children and Young Peoples Services,Head of Childrens Social Care,085341,High Etherley Satelite Home,Supplies and Services,324117,Provisions E324,14-Sep-2020,000009193969621,SPAR - GEM WEST AUCKLA,5411,Catering costs - provisions,3.50,0.00,3.50
Children and Young Peoples Services,Head of Childrens Social Care,085341,High Etherley Satelite Home,Supplies and Services,324117,Provisions E324,14-Sep-2020,000009193969629,TESCO STORES 6329,5411,Catering costs - provisions,22.13,0.00,22.13
Adult and Health Services,Adults Excluded,052602,ADASS / ADCS,Supplies and Services,304403,Equipment and Materials,14-Sep-2020,000009193969645,WWW.BLOOMANDWILD.COM,5992,Other consumables,56.95,0.00,56.95
Adult and Health Services,Commissioning inc Supporting People,052100,Supporting the Provider Market,Supplies and Services,304403,Equipment and Materials,14-Sep-2020,000009193969651,WWW.SAFIELD.CO.UK,5947,Other consumables,229.77,38.30,191.47
Neighbourhoods and Climate Change,Environmental Services,011067,Nei.Prot - Pest Control,Supplies and Services,304403,Equipment and Materials,14-Sep-2020,000009193969655,AMZNMktplace,5999,Other consumables,101.08,0.00,101.08
Children and Young Peoples Services,Head of Childrens Social Care,085357,LAC Bespoke Placements,Supplies and Services,352001,Conference Expenses,14-Sep-2020,000009193969689,Hotel on Booking.com,7011,Conferencesseminars fees etc,"2,320.00",0.00,2320.00
Neighbourhoods and Climate Change,Environmental Services,010383,C&G - South Street Cleansing,Supplies and Services,304221,Equipment and Materials,14-Sep-2020,000009193969723,BREWERS,5211,Direct materials,31.10,0.00,31.10
Children and Young Peoples Services,Head of Childrens Social Care,085342,16 Hickstead Rise (previously 9 Cedar Ave),Supplies and Services,324117,Provisions E324,14-Sep-2020,000009193969729,TESCO STORES 2916,5411,Catering costs - provisions,24.24,0.00,24.24
Children and Young Peoples Services,Head of Childrens Social Care,085342,16 Hickstead Rise (previously 9 Cedar Ave),Transport,235057,Public Transport,14-Sep-2020,000009193969735,ARRIVA UK BUS,4131,Staff travelling,-90.00,0.00,-90.00
"Regeneration, Economy and Growth",Culture Sport and Tourism,054233,Bishop Auckland Town Hall Library,Supplies and Services,324117,Provisions E324,14-Sep-2020,000009193969863,HERON FOODS LTD,5499,Catering costs - provisions,12.71,0.00,12.71
"Regeneration, Economy and Growth",Development and Housing,031576,B& B - Temp Accom,Supplies and Services,364320,Grants to Voluntary Organisations,14-Sep-2020,000009193969897,BUDGET H EXPRESS HOTEL,7011,Accommodation assistance,50.88,8.48,42.40
"Regeneration, Economy and Growth",Development and Housing,031576,B& B - Temp Accom,Supplies and Services,364320,Grants to Voluntary Organisations,14-Sep-2020,000009193969897 - 1,BUDGET H EXPRESS HOTEL,7011,Accommodation assistance,127.12,,127.12
"Regeneration, Economy and Growth",Development and Housing,031576,B& B - Temp Accom,Supplies and Services,364320,Grants to Voluntary Organisations,14-Sep-2020,000009193969949,HI NEWCASTLE WASHI,7011,Accommodation assistance,220.00,0.00,220.00
Children and Young Peoples Services,Head of Childrens Social Care,085352,Tow Law CU,Supplies and Services,324117,Provisions E324,14-Sep-2020,000009193969963,COOPLANDS BAKERY,5462,Catering costs - provisions,19.10,0.00,19.10
Neighbourhoods and Climate Change,Environmental Services,010900,Fleet - Meadowfield Fleet,Transport,215013,Running Costs of Vehicles,14-Sep-2020,000009193969967,DVLA VEHICLE TAX,9311,Vehicle Excise Duty (VED),267.50,0.00,267.50
Neighbourhoods and Climate Change,Environmental Services,010561,Fleet - Morrison Busty Fleet,Transport,215013,Running Costs of Vehicles,14-Sep-2020,000009193969971,DVLA VEHICLE TAX,9311,Vehicle Excise Duty (VED),267.50,0.00,267.50
Neighbourhoods and Climate Change,Environmental Services,010900,Fleet - Meadowfield Fleet,Transport,215013,Running Costs of Vehicles,14-Sep-2020,000009193969973,DVLA VEHICLE TAX,9311,Vehicle Excise Duty (VED),302.50,0.00,302.50
Neighbourhoods and Climate Change,Environmental Services,010864,Fleet - Hackworth Road Fleet,Transport,215013,Running Costs of Vehicles,14-Sep-2020,000009193969979,DVLA VEHICLE TAX,9311,Vehicle Excise Duty (VED),267.50,0.00,267.50
Neighbourhoods and Climate Change,Environmental Services,010900,Fleet - Meadowfield Fleet,Transport,215013,Running Costs of Vehicles,14-Sep-2020,000009193969983,DVLA VEHICLE TAX,9311,Vehicle Excise Duty (VED),267.50,0.00,267.50
Neighbourhoods and Climate Change,Environmental Services,010900,Fleet - Meadowfield Fleet,Transport,215013,Running Costs of Vehicles,14-Sep-2020,000009193969987,DVLA VEHICLE TAX,9311,Vehicle Excise Duty (VED),267.50,0.00,267.50
Neighbourhoods and Climate Change,Environmental Services,010900,Fleet - Meadowfield Fleet,Transport,215013,Running Costs of Vehicles,14-Sep-2020,000009193969995,DVLA VEHICLE TAX,9311,Vehicle Excise Duty (VED),267.50,0.00,267.50
Neighbourhoods and Climate Change,Environmental Services,010551,Fleet - Chilton Fleet,Transport,215013,Running Costs of Vehicles,14-Sep-2020,000009193970001,DVLA VEHICLE TAX,9311,Vehicle Excise Duty (VED),267.50,0.00,267.50
Neighbourhoods and Climate Change,Environmental Services,010864,Fleet - Hackworth Road Fleet,Transport,215013,Running Costs of Vehicles,14-Sep-2020,000009193970007,DVLA VEHICLE TAX,9311,Vehicle Excise Duty (VED),302.50,0.00,302.50
Neighbourhoods and Climate Change,Environmental Services,010551,Fleet - Chilton Fleet,Transport,215013,Running Costs of Vehicles,14-Sep-2020,000009193970011,DVLA VEHICLE TAX,9311,Vehicle Excise Duty (VED),267.50,0.00,267.50
Neighbourhoods and Climate Change,Environmental Services,010561,Fleet - Morrison Busty Fleet,Transport,215013,Running Costs of Vehicles,14-Sep-2020,000009193970017,DVLA VEHICLE TAX,9311,Vehicle Excise Duty (VED),267.50,0.00,267.50
Neighbourhoods and Climate Change,Environmental Services,010561,Fleet - Morrison Busty Fleet,Transport,215013,Running Costs of Vehicles,14-Sep-2020,000009193970023,DVLA VEHICLE TAX,9311,Vehicle Excise Duty (VED),267.50,0.00,267.50
Neighbourhoods and Climate Change,Environmental Services,010900,Fleet - Meadowfield Fleet,Transport,215013,Running Costs of Vehicles,14-Sep-2020,000009193970029,DVLA VEHICLE TAX,9311,Vehicle Excise Duty (VED),267.50,0.00,267.50
Neighbourhoods and Climate Change,Environmental Services,010900,Fleet - Meadowfield Fleet,Transport,215013,Running Costs of Vehicles,14-Sep-2020,000009193970033,DVLA VEHICLE TAX,9311,Vehicle Excise Duty (VED),267.50,0.00,267.50
Neighbourhoods and Climate Change,Environmental Services,010900,Fleet - Meadowfield Fleet,Transport,215013,Running Costs of Vehicles,14-Sep-2020,000009193970037,DVLA VEHICLE TAX,9311,Vehicle Excise Duty (VED),267.50,0.00,267.50
Neighbourhoods and Climate Change,Environmental Services,010551,Fleet - Chilton Fleet,Transport,215013,Running Costs of Vehicles,14-Sep-2020,000009193970043,DVLA VEHICLE TAX,9311,Vehicle Excise Duty (VED),302.50,0.00,302.50
Neighbourhoods and Climate Change,Environmental Services,010900,Fleet - Meadowfield Fleet,Transport,215013,Running Costs of Vehicles,14-Sep-2020,000009193970047,DVLA VEHICLE TAX,9311,Vehicle Excise Duty (VED),267.50,0.00,267.50
Neighbourhoods and Climate Change,Environmental Services,010551,Fleet - Chilton Fleet,Transport,215013,Running Costs of Vehicles,14-Sep-2020,000009193970053,DVLA VEHICLE TAX,9311,Vehicle Excise Duty (VED),267.50,0.00,267.50
Neighbourhoods and Climate Change,Environmental Services,010551,Fleet - Chilton Fleet,Transport,215013,Running Costs of Vehicles,14-Sep-2020,000009193970057,DVLA VEHICLE TAX,9311,Vehicle Excise Duty (VED),267.50,0.00,267.50
Neighbourhoods and Climate Change,Environmental Services,010561,Fleet - Morrison Busty Fleet,Transport,215013,Running Costs of Vehicles,14-Sep-2020,000009193970061,DVLA VEHICLE TAX,9311,Vehicle Excise Duty (VED),267.50,0.00,267.50
Neighbourhoods and Climate Change,Environmental Services,010551,Fleet - Chilton Fleet,Transport,215013,Running Costs of Vehicles,14-Sep-2020,000009193970063,DVLA VEHICLE TAX,9311,Vehicle Excise Duty (VED),267.50,0.00,267.50
Neighbourhoods and Climate Change,Environmental Services,010551,Fleet - Chilton Fleet,Transport,215013,Running Costs of Vehicles,14-Sep-2020,000009193970067,DVLA VEHICLE TAX,9311,Vehicle Excise Duty (VED),267.50,0.00,267.50
Neighbourhoods and Climate Change,Environmental Services,010900,Fleet - Meadowfield Fleet,Transport,215013,Running Costs of Vehicles,14-Sep-2020,000009193970069,DVLA VEHICLE TAX,9311,Vehicle Excise Duty (VED),267.50,0.00,267.50
Neighbourhoods and Climate Change,Environmental Services,010561,Fleet - Morrison Busty Fleet,Transport,215013,Running Costs of Vehicles,14-Sep-2020,000009193970075,DVLA VEHICLE TAX,9311,Vehicle Excise Duty (VED),267.50,0.00,267.50
Neighbourhoods and Climate Change,Environmental Services,010561,Fleet - Morrison Busty Fleet,Transport,215013,Running Costs of Vehicles,14-Sep-2020,000009193970081,DVLA VEHICLE TAX,9311,Vehicle Excise Duty (VED),267.50,0.00,267.50
Neighbourhoods and Climate Change,Environmental Services,010900,Fleet - Meadowfield Fleet,Transport,215013,Running Costs of Vehicles,14-Sep-2020,000009193970083,DVLA VEHICLE TAX,9311,Vehicle Excise Duty (VED),267.50,0.00,267.50
Neighbourhoods and Climate Change,Environmental Services,010900,Fleet - Meadowfield Fleet,Transport,215013,Running Costs of Vehicles,14-Sep-2020,000009193970087,DVLA VEHICLE TAX,9311,Vehicle Excise Duty (VED),267.50,0.00,267.50
Neighbourhoods and Climate Change,Environmental Services,010900,Fleet - Meadowfield Fleet,Transport,215013,Running Costs of Vehicles,14-Sep-2020,000009193970091,DVLA VEHICLE TAX,9311,Vehicle Excise Duty (VED),267.50,0.00,267.50
Neighbourhoods and Climate Change,Environmental Services,010864,Fleet - Hackworth Road Fleet,Transport,215013,Running Costs of Vehicles,14-Sep-2020,000009193970095,DVLA VEHICLE TAX,9311,Vehicle Excise Duty (VED),302.50,0.00,302.50
Neighbourhoods and Climate Change,Environmental Services,010900,Fleet - Meadowfield Fleet,Transport,215013,Running Costs of Vehicles,14-Sep-2020,000009193970099,DVLA VEHICLE TAX,9311,Vehicle Excise Duty (VED),267.50,0.00,267.50
Neighbourhoods and Climate Change,Environmental Services,010864,Fleet - Hackworth Road Fleet,Transport,215013,Running Costs of Vehicles,14-Sep-2020,000009193970103,DVLA VEHICLE TAX,9311,Vehicle Excise Duty (VED),267.50,0.00,267.50
